Directorate,Department,Expenditure Type,Ref.Doc.1,Vendor Name, Expenditure Amount (exc VAT) ,Payment Date
Assurance,Assurance,Agency/Interim Non Hays,60032101,REDACTED - PERSONAL DATA,120,17/12/2015
Assurance,Assurance,Equipment and Materials Purcha,20027038,HAVEN BISTRO & BAR,"1,552.11",15/12/2015
Assurance,Assurance,Equipment and Materials Purcha,20026797,HENDON SEA TRAINING CORPS.,867,10/12/2015
Assurance,Assurance,General Office Expenses,40001223,OFFICE DEPOT UK LTD,2.28,10/12/2015
Assurance,Assurance,General Office Expenses,40001240,OFFICE DEPOT UK LTD,6.67,18/12/2015
Assurance,Assurance,General Office Expenses,40001268,OFFICE DEPOT UK LTD,6.4,23/12/2015
Assurance,Assurance,General Office Expenses,40001292,OFFICE DEPOT UK LTD,25.65,29/12/2015
Assurance,Assurance,Other Services,60039935,ELECTORAL REFORM SERVICES,"4,295.30",07/12/2015
Assurance,Assurance,Other Services,60041028,ELECTORAL REFORM SERVICES,"2,403.84",17/12/2015
Assurance,Assurance,Other Services,60041345,ELECTORAL REFORM SERVICES,"3,273.80",29/12/2015
Assurance,Assurance,Other Services,60041814,REDACTED - PERSONAL DATA,515,24/12/2015
Assurance,Assurance,Other Services,20026571,THE INFORMATION COMMISSIONER,35,04/12/2015
Assurance,Assurance,Postage,60036019,ROYAL MAIL GROUP LIMITED,"1,524.15",02/12/2015
Assurance,Assurance,Postage,60039881,ROYAL MAIL GROUP LIMITED,94,07/12/2015
Assurance,Assurance,Postage,60039928,ROYAL MAIL GROUP LIMITED,0.44,07/12/2015
Assurance,Assurance,Postage,60040511,ROYAL MAIL GROUP LIMITED,"1,361.52",11/12/2015
Assurance,Assurance,Professional Services,60040807,ELECTORAL REFORM SERVICES,139.5,15/12/2015
Assurance,Assurance,Professional Services,60038238,PRICEWATERHOUSE COOPERS,"8,000.00",02/12/2015
Assurance,Assurance,Professional Services,60038275,PRICEWATERHOUSE COOPERS,"3,000.00",02/12/2015
Assurance,Assurance,Professional Services,60038305,PRICEWATERHOUSE COOPERS,"7,000.00",02/12/2015
Assurance,Assurance,Stationery,40001207,OFFICE DEPOT UK LTD,119,03/12/2015
Assurance,Assurance,Stationery,40001225,OFFICE DEPOT UK LTD,65.74,10/12/2015
Assurance,Assurance,Stationery,40001227,OFFICE DEPOT UK LTD,65.74,10/12/2015
Assurance,Assurance,Stationery,40001228,OFFICE DEPOT UK LTD,65.74,10/12/2015
Assurance,Assurance,Stationery,40001276,OFFICE DEPOT UK LTD,32.87,23/12/2015
Assurance,Assurance,Subscriptions,60038531,ASSOCIATION OF DEMOCRATIC SERVICES OFFIC,484,15/12/2015
Assurance,Assurance,Subscriptions,60039869,CHARTERED INST. INTERNAL AUDITORS,475,07/12/2015
Assurance,Assurance,Subscriptions,60041307,COMPANIES HOUSE,4,22/12/2015
Assurance,Assurance,Subscriptions,60040182,EQUIFAX LTD,"6,012.20",14/12/2015
Assurance,Assurance,Subscriptions,60039834,ITS TRAINING (UK) LTD,"3,276.00",09/12/2015
Assurance,Assurance,Training,60039923,ITS TRAINING (UK) LTD,"3,036.30",07/12/2015
Central Expenses,Central Expenses,Audit Fee,10012940,BDO LLP,"85,012.50",29/12/2015
Central Expenses,Central Expenses,Early Retirement Service Contr,20026434,TEACHERS PENSION,"23,202.63",17/12/2015
Central Expenses,Central Expenses,Insurance Claims,80001627,BISHOP LLOYD & JACKSON,"3,500.00",22/12/2015
Central Expenses,Central Expenses,Insurance Claims,60038623,CHARLES DUKES ASSESSORS,60,18/12/2015
Central Expenses,Central Expenses,Insurance Claims,60028139,CITY SUBURBAN TREE SURGEONS LTD,304.02,04/12/2015
Central Expenses,Central Expenses,Insurance Claims,60040201,CITY SUBURBAN TREE SURGEONS LTD,319.99,29/12/2015
Central Expenses,Central Expenses,Insurance Claims,60036751,CLYDE & CO LLP,441.5,14/12/2015
Central Expenses,Central Expenses,Insurance Claims,60038068,CLYDE & CO LLP,"1,335.00",03/12/2015
Central Expenses,Central Expenses,Insurance Claims,60039068,CLYDE & CO LLP,"1,380.00",03/12/2015
Central Expenses,Central Expenses,Insurance Claims,60037107,GOLDING COLLIE & COMPANY,60,21/12/2015
Central Expenses,Central Expenses,Insurance Claims,80001435,GOODGE LAW GENERAL CLIENTS ACC,"1,601.35",07/12/2015
Central Expenses,Central Expenses,Insurance Claims,20027291,GREGORY ABRAMS DAVIDSON LLP,"30,950.00",24/12/2015
Central Expenses,Central Expenses,Insurance Claims,80001511,JEMCA EDGWARE ROAD,"2,779.24",04/12/2015
Central Expenses,Central Expenses,Insurance Claims,60038833,JOHNSON AUSTIN PARTNERSHIP LLP,650,21/12/2015
Central Expenses,Central Expenses,Insurance Claims,80001491,SCOTT REES & CO. SOLICITORS,354,01/12/2015
Central Expenses,Central Expenses,Insurance Claims,60033253,THE BARNETGROUP LIMITED,"1,500.17",29/12/2015
Central Expenses,Central Expenses,Insurance Claims,80001545,TRADE UNION LEGAL LLP,"1,374.00",11/12/2015
Central Expenses,Central Expenses,Insurance Claims,80001590,TRUE SOLICITORS LLP,"4,697.00",18/12/2015
Central Expenses,Central Expenses,Joint Authorities - Third Party,EBX0094332,NORTH LONDON WASTE AUTHORITY,"894,643.00",23/12/2015
Central Expenses,Central Expenses,Other Establishments - Third P,EBX0093860,ENVIRONMENT AGENCY,"75,627.75",17/12/2015
Central Expenses,Central Expenses,Other Establishments - Third P,EBX0093452,LEE VALLEY REGIONAL PARK AUTH.,"33,052.02",16/12/2015
Central Expenses,Central Expenses,Other Establishments - Third P,EBX0093858,LONDON PENSIONS FUND AUTHORITY,"50,154.80",17/12/2015
Commercial,Births Deaths & Marriages,Miscellaneous Expenses,10012851,LONDON BOROUGH OF BRENT,"117,963.44",01/12/2015
Commercial,Births Deaths & Marriages,Miscellaneous Expenses,10012852,LONDON BOROUGH OF BRENT,"-4,328.74",01/12/2015
Commercial,Customer Support Group,Books-CDs-Audio-Video,60041081,SM ELECTRICAL SERVICES,270,18/12/2015
Commercial,Customer Support Group,Books-CDs-Audio-Video,60041139,SM ELECTRICAL SERVICES,370,18/12/2015
Commercial,Customer Support Group,Building Repairs & Maintenance,60039411,AJS LTD,239.25,16/12/2015
Commercial,Customer Support Group,Building Repairs & Maintenance,60039416,AJS LTD,132,16/12/2015
Commercial,Customer Support Group,Building Repairs & Maintenance,60039426,AJS LTD,24.75,11/12/2015
Commercial,Customer Support Group,Building Repairs & Maintenance,60039427,AJS LTD,478.5,11/12/2015
Commercial,Customer Support Group,Building Repairs & Maintenance,60039430,AJS LTD,312.5,04/12/2015
Commercial,Customer Support Group,Building Repairs & Maintenance,60039467,AJS LTD,123.75,11/12/2015
Commercial,Customer Support Group,Building Repairs & Maintenance,60039473,AJS LTD,82.5,11/12/2015
Commercial,Customer Support Group,Building Repairs & Maintenance,60039491,AJS LTD,"1,221.00",11/12/2015
Commercial,Customer Support Group,Building Repairs & Maintenance,60039492,AJS LTD,312.5,04/12/2015
Commercial,Customer Support Group,Building Repairs & Maintenance,60039493,AJS LTD,82.5,11/12/2015
Commercial,Customer Support Group,Building Repairs & Maintenance,60039504,AJS LTD,140.25,11/12/2015
Commercial,Customer Support Group,Building Repairs & Maintenance,60039527,AJS LTD,90.75,11/12/2015
Commercial,Customer Support Group,Building Repairs & Maintenance,60039535,AJS LTD,107.25,11/12/2015
Commercial,Customer Support Group,Building Repairs & Maintenance,60039544,AJS LTD,109.55,11/12/2015
Commercial,Customer Support Group,Building Repairs & Maintenance,60040604,AJS LTD,312.5,16/12/2015
Commercial,Customer Support Group,Building Repairs & Maintenance,60040608,AJS LTD,312.5,17/12/2015
Commercial,Customer Support Group,Building Repairs & Maintenance,60040617,AJS LTD,312.5,16/12/2015
Commercial,Customer Support Group,Building Repairs & Maintenance,60040622,AJS LTD,312.5,17/12/2015
Commercial,Customer Support Group,Building Repairs & Maintenance,60040637,AJS LTD,99,16/12/2015
Commercial,Customer Support Group,Building Repairs & Maintenance,60040671,AJS LTD,312.5,18/12/2015
Commercial,Customer Support Group,Building Repairs & Maintenance,60040675,AJS LTD,312.5,16/12/2015
Commercial,Customer Support Group,Building Repairs & Maintenance,60040715,AJS LTD,400,16/12/2015
Commercial,Customer Support Group,Building Repairs & Maintenance,60040728,AJS LTD,312.5,16/12/2015
Commercial,Customer Support Group,Building Repairs & Maintenance,60040469,ASBESTOS CONSULTANTS EUROPE LTD T/A ACE,"1,150.00",29/12/2015
Commercial,Customer Support Group,Building Repairs & Maintenance,60040211,D LONG (CONSTRUCTION) LTD,630,08/12/2015
Commercial,Customer Support Group,Building Repairs & Maintenance,60037436,DOORWAY-MAINTENANCE CO.,250,11/12/2015
Commercial,Customer Support Group,Building Repairs & Maintenance,60040993,DOORWAY-MAINTENANCE CO.,250,21/12/2015
Commercial,Customer Support Group,Building Repairs & Maintenance,60040995,DORMA UK LTD,449.36,29/12/2015
Commercial,Customer Support Group,Building Repairs & Maintenance,60037804,LEE SECURITY LONDON LIMITED,768.61,09/12/2015
Commercial,Customer Support Group,Building Repairs & Maintenance,60039579,LEE SECURITY LONDON LIMITED,15,11/12/2015
Commercial,Customer Support Group,Building Repairs & Maintenance,60039639,LEE SECURITY LONDON LIMITED,49.06,11/12/2015
Commercial,Customer Support Group,Building Repairs & Maintenance,60039679,LEE SECURITY LONDON LIMITED,80,11/12/2015
Commercial,Customer Support Group,Building Repairs & Maintenance,60039736,LEE SECURITY LONDON LIMITED,160,11/12/2015
Commercial,Customer Support Group,Building Repairs & Maintenance,60039766,LEE SECURITY LONDON LIMITED,163.88,11/12/2015
Commercial,Customer Support Group,Building Repairs & Maintenance,60039780,LEE SECURITY LONDON LIMITED,80,11/12/2015
Commercial,Customer Support Group,Building Repairs & Maintenance,60038213,LIFT & ENGINEERING SERVICES LTD,67.5,10/12/2015
Commercial,Customer Support Group,Building Repairs & Maintenance,60038215,LIFT & ENGINEERING SERVICES LTD,99.17,10/12/2015
Commercial,Customer Support Group,Building Repairs & Maintenance,60038217,LIFT & ENGINEERING SERVICES LTD,143.44,10/12/2015
Commercial,Customer Support Group,Building Repairs & Maintenance,60038220,LIFT & ENGINEERING SERVICES LTD,99.17,10/12/2015
Commercial,Customer Support Group,Building Repairs & Maintenance,60038227,LIFT & ENGINEERING SERVICES LTD,99.17,10/12/2015
Commercial,Customer Support Group,Building Repairs & Maintenance,60038318,LIFT & ENGINEERING SERVICES LTD,99.17,10/12/2015
Commercial,Customer Support Group,Building Repairs & Maintenance,60038319,LIFT & ENGINEERING SERVICES LTD,215.16,10/12/2015
Commercial,Customer Support Group,Building Repairs & Maintenance,60038329,LIFT & ENGINEERING SERVICES LTD,66.11,10/12/2015
Commercial,Customer Support Group,Building Repairs & Maintenance,60038366,LIFT & ENGINEERING SERVICES LTD,49.58,10/12/2015
Commercial,Customer Support Group,Building Repairs & Maintenance,60038394,LIFT & ENGINEERING SERVICES LTD,116,15/12/2015
Commercial,Customer Support Group,Building Repairs & Maintenance,60038400,LIFT & ENGINEERING SERVICES LTD,182.7,02/12/2015
Commercial,Customer Support Group,Building Repairs & Maintenance,60038414,LIFT & ENGINEERING SERVICES LTD,116,16/12/2015
Commercial,Customer Support Group,Building Repairs & Maintenance,60038452,LIFT & ENGINEERING SERVICES LTD,250,02/12/2015
Commercial,Customer Support Group,Building Repairs & Maintenance,60039520,LIFT & ENGINEERING SERVICES LTD,"8,386.00",21/12/2015
Commercial,Customer Support Group,Building Repairs & Maintenance,60041384,MILL HILL COUNTY HIGH SCHOOL,"10,894.50",29/12/2015
Commercial,Customer Support Group,Building Repairs & Maintenance,60036319,OAKRAY LIMITED,"1,476.32",02/12/2015
Commercial,Customer Support Group,Building Repairs & Maintenance,60039731,OAKRAY LIMITED,80,07/12/2015
Commercial,Customer Support Group,Building Repairs & Maintenance,60039789,OAKRAY LIMITED,96,07/12/2015
Commercial,Customer Support Group,Building Repairs & Maintenance,60040774,PUBLIC CLOCKS LTD,117,15/12/2015
Commercial,Customer Support Group,Building Repairs & Maintenance,60039389,REDACTED - PERSONAL DATA,395,02/12/2015
Commercial,Customer Support Group,Building Repairs & Maintenance,10012869,RGE SERVICES,62.93,14/12/2015
Commercial,Customer Support Group,Building Repairs & Maintenance,60025193,RGE SERVICES,310.65,17/12/2015
Commercial,Customer Support Group,Building Repairs & Maintenance,60026466,RGE SERVICES,"6,763.05",29/12/2015
Commercial,Customer Support Group,Building Repairs & Maintenance,60033142,RGE SERVICES,142.5,17/12/2015
Commercial,Customer Support Group,Building Repairs & Maintenance,60037625,RGE SERVICES,"1,319.55",08/12/2015
Commercial,Customer Support Group,Building Repairs & Maintenance,60037630,RGE SERVICES,62,03/12/2015
Commercial,Customer Support Group,Building Repairs & Maintenance,60037631,RGE SERVICES,62,03/12/2015
Commercial,Customer Support Group,Building Repairs & Maintenance,60037633,RGE SERVICES,262.2,03/12/2015
Commercial,Customer Support Group,Building Repairs & Maintenance,60037646,RGE SERVICES,111.6,14/12/2015
Commercial,Customer Support Group,Building Repairs & Maintenance,60037654,RGE SERVICES,154.96,03/12/2015
Commercial,Customer Support Group,Building Repairs & Maintenance,60037656,RGE SERVICES,62,03/12/2015
Commercial,Customer Support Group,Building Repairs & Maintenance,60037677,RGE SERVICES,427.35,03/12/2015
Commercial,Customer Support Group,Building Repairs & Maintenance,60037681,RGE SERVICES,57.15,03/12/2015
Commercial,Customer Support Group,Building Repairs & Maintenance,60037682,RGE SERVICES,107.48,03/12/2015
Commercial,Customer Support Group,Building Repairs & Maintenance,60037695,RGE SERVICES,62,03/12/2015
Commercial,Customer Support Group,Building Repairs & Maintenance,60037705,RGE SERVICES,62,03/12/2015
Commercial,Customer Support Group,Building Repairs & Maintenance,60037712,RGE SERVICES,"2,860.00",03/12/2015
Commercial,Customer Support Group,Building Repairs & Maintenance,60037719,RGE SERVICES,310.05,17/12/2015
Commercial,Customer Support Group,Building Repairs & Maintenance,60037722,RGE SERVICES,62,03/12/2015
Commercial,Customer Support Group,Building Repairs & Maintenance,60037724,RGE SERVICES,95.11,03/12/2015
Commercial,Customer Support Group,Building Repairs & Maintenance,60038724,RGE SERVICES,179.53,17/12/2015
Commercial,Customer Support Group,Building Repairs & Maintenance,60038732,RGE SERVICES,98.16,17/12/2015
Commercial,Customer Support Group,Building Repairs & Maintenance,60038739,RGE SERVICES,205.09,17/12/2015
Commercial,Customer Support Group,Building Repairs & Maintenance,60038740,RGE SERVICES,668,17/12/2015
Commercial,Customer Support Group,Building Repairs & Maintenance,60038748,RGE SERVICES,683.67,17/12/2015
Commercial,Customer Support Group,Building Repairs & Maintenance,60038750,RGE SERVICES,62,17/12/2015
Commercial,Customer Support Group,Building Repairs & Maintenance,60038751,RGE SERVICES,"1,952.53",17/12/2015
Commercial,Customer Support Group,Building Repairs & Maintenance,60038758,RGE SERVICES,193.73,17/12/2015
Commercial,Customer Support Group,Building Repairs & Maintenance,60038759,RGE SERVICES,209.13,17/12/2015
Commercial,Customer Support Group,Building Repairs & Maintenance,60038764,RGE SERVICES,154.54,17/12/2015
Commercial,Customer Support Group,Building Repairs & Maintenance,60038769,RGE SERVICES,62,17/12/2015
Commercial,Customer Support Group,Building Repairs & Maintenance,60038775,RGE SERVICES,"1,741.54",17/12/2015
Commercial,Customer Support Group,Building Repairs & Maintenance,60038777,RGE SERVICES,31,17/12/2015
Commercial,Customer Support Group,Building Repairs & Maintenance,60038788,RGE SERVICES,64.15,17/12/2015
Commercial,Customer Support Group,Building Repairs & Maintenance,60038789,RGE SERVICES,62,17/12/2015
Commercial,Customer Support Group,Building Repairs & Maintenance,60038791,RGE SERVICES,62,17/12/2015
Commercial,Customer Support Group,Building Repairs & Maintenance,60038792,RGE SERVICES,54.51,17/12/2015
Commercial,Customer Support Group,Building Repairs & Maintenance,60038803,RGE SERVICES,62,17/12/2015
Commercial,Customer Support Group,Building Repairs & Maintenance,60038805,RGE SERVICES,"1,214.27",17/12/2015
Commercial,Customer Support Group,Building Repairs & Maintenance,60038814,RGE SERVICES,62,17/12/2015
Commercial,Customer Support Group,Building Repairs & Maintenance,60038818,RGE SERVICES,72.73,17/12/2015
Commercial,Customer Support Group,Building Repairs & Maintenance,60038824,RGE SERVICES,91.53,17/12/2015
Commercial,Customer Support Group,Building Repairs & Maintenance,60038837,RGE SERVICES,485.75,17/12/2015
Commercial,Customer Support Group,Building Repairs & Maintenance,60040048,RGE SERVICES,166.25,29/12/2015
Commercial,Customer Support Group,Building Repairs & Maintenance,60040155,RGE SERVICES,28.5,29/12/2015
Commercial,Customer Support Group,Building Repairs & Maintenance,60040193,RGE SERVICES,95,29/12/2015
Commercial,Customer Support Group,Building Repairs & Maintenance,60040209,RGE SERVICES,104.5,29/12/2015
Commercial,Customer Support Group,Building Repairs & Maintenance,60040240,RGE SERVICES,147.25,29/12/2015
Commercial,Customer Support Group,Building Repairs & Maintenance,60041079,RGE SERVICES,182.47,18/12/2015
Commercial,Customer Support Group,Building Repairs & Maintenance,60018758,S W BRUCE & CO LTD,64,02/12/2015
Commercial,Customer Support Group,Building Repairs & Maintenance,60028152,S W BRUCE & CO LTD,95.67,02/12/2015
Commercial,Customer Support Group,Building Repairs & Maintenance,60038185,S W BRUCE & CO LTD,"19,250.00",15/12/2015
Commercial,Customer Support Group,Building Repairs & Maintenance,60038204,S W BRUCE & CO LTD,680,15/12/2015
Commercial,Customer Support Group,Building Repairs & Maintenance,60038230,S W BRUCE & CO LTD,230,15/12/2015
Commercial,Customer Support Group,Building Repairs & Maintenance,60038243,S W BRUCE & CO LTD,138,15/12/2015
Commercial,Customer Support Group,Building Repairs & Maintenance,60038252,S W BRUCE & CO LTD,"1,886.50",15/12/2015
Commercial,Customer Support Group,Building Repairs & Maintenance,60038270,S W BRUCE & CO LTD,"1,000.00",15/12/2015
Commercial,Customer Support Group,Building Repairs & Maintenance,60038271,S W BRUCE & CO LTD,646,15/12/2015
Commercial,Customer Support Group,Building Repairs & Maintenance,60038274,S W BRUCE & CO LTD,500,15/12/2015
Commercial,Customer Support Group,Building Repairs & Maintenance,60038331,S W BRUCE & CO LTD,147.95,15/12/2015
Commercial,Customer Support Group,Building Repairs & Maintenance,60038347,S W BRUCE & CO LTD,"4,850.70",15/12/2015
Commercial,Customer Support Group,Building Repairs & Maintenance,60038352,S W BRUCE & CO LTD,230,15/12/2015
Commercial,Customer Support Group,Building Repairs & Maintenance,60039255,S W BRUCE & CO LTD,82.5,23/12/2015
Commercial,Customer Support Group,Building Repairs & Maintenance,60039256,S W BRUCE & CO LTD,62.08,21/12/2015
Commercial,Customer Support Group,Building Repairs & Maintenance,60039261,S W BRUCE & CO LTD,108.91,21/12/2015
Commercial,Customer Support Group,Building Repairs & Maintenance,60039263,S W BRUCE & CO LTD,112.78,21/12/2015
Commercial,Customer Support Group,Building Repairs & Maintenance,60039266,S W BRUCE & CO LTD,57,21/12/2015
Commercial,Customer Support Group,Building Repairs & Maintenance,60039267,S W BRUCE & CO LTD,153.77,21/12/2015
Commercial,Customer Support Group,Building Repairs & Maintenance,60039268,S W BRUCE & CO LTD,28.5,21/12/2015
Commercial,Customer Support Group,Building Repairs & Maintenance,60039276,S W BRUCE & CO LTD,57,23/12/2015
Commercial,Customer Support Group,Building Repairs & Maintenance,60039277,S W BRUCE & CO LTD,104,23/12/2015
Commercial,Customer Support Group,Building Repairs & Maintenance,60039280,S W BRUCE & CO LTD,95.67,21/12/2015
Commercial,Customer Support Group,Building Repairs & Maintenance,60039290,S W BRUCE & CO LTD,139.02,21/12/2015
Commercial,Customer Support Group,Building Repairs & Maintenance,60039292,S W BRUCE & CO LTD,28.5,21/12/2015
Commercial,Customer Support Group,Building Repairs & Maintenance,60039296,S W BRUCE & CO LTD,101.8,21/12/2015
Commercial,Customer Support Group,Building Repairs & Maintenance,60039298,S W BRUCE & CO LTD,128.87,21/12/2015
Commercial,Customer Support Group,Building Repairs & Maintenance,60039300,S W BRUCE & CO LTD,52,23/12/2015
Commercial,Customer Support Group,Building Repairs & Maintenance,60039303,S W BRUCE & CO LTD,54.95,21/12/2015
Commercial,Customer Support Group,Building Repairs & Maintenance,60039309,S W BRUCE & CO LTD,57,23/12/2015
Commercial,Customer Support Group,Building Repairs & Maintenance,60039312,S W BRUCE & CO LTD,97.85,21/12/2015
Commercial,Customer Support Group,Building Repairs & Maintenance,60039313,S W BRUCE & CO LTD,51.17,21/12/2015
Commercial,Customer Support Group,Building Repairs & Maintenance,60039319,S W BRUCE & CO LTD,25,23/12/2015
Commercial,Customer Support Group,Building Repairs & Maintenance,60039326,S W BRUCE & CO LTD,25,23/12/2015
Commercial,Customer Support Group,Building Repairs & Maintenance,60039330,S W BRUCE & CO LTD,114.68,21/12/2015
Commercial,Customer Support Group,Building Repairs & Maintenance,60039331,S W BRUCE & CO LTD,500,23/12/2015
Commercial,Customer Support Group,Building Repairs & Maintenance,60039333,S W BRUCE & CO LTD,100.38,21/12/2015
Commercial,Customer Support Group,Building Repairs & Maintenance,60039337,S W BRUCE & CO LTD,38.91,21/12/2015
Commercial,Customer Support Group,Building Repairs & Maintenance,60039339,S W BRUCE & CO LTD,215.95,23/12/2015
Commercial,Customer Support Group,Building Repairs & Maintenance,60039352,S W BRUCE & CO LTD,109.12,21/12/2015
Commercial,Customer Support Group,Building Repairs & Maintenance,60039353,S W BRUCE & CO LTD,28.5,23/12/2015
Commercial,Customer Support Group,Building Repairs & Maintenance,60039360,S W BRUCE & CO LTD,68.24,21/12/2015
Commercial,Customer Support Group,Building Repairs & Maintenance,60039362,S W BRUCE & CO LTD,101.44,21/12/2015
Commercial,Customer Support Group,Building Repairs & Maintenance,60039365,S W BRUCE & CO LTD,192.12,23/12/2015
Commercial,Customer Support Group,Building Repairs & Maintenance,60039366,S W BRUCE & CO LTD,53.24,23/12/2015
Commercial,Customer Support Group,Building Repairs & Maintenance,60039371,S W BRUCE & CO LTD,71.71,21/12/2015
Commercial,Customer Support Group,Building Repairs & Maintenance,60039374,S W BRUCE & CO LTD,75.38,23/12/2015
Commercial,Customer Support Group,Building Repairs & Maintenance,60039375,S W BRUCE & CO LTD,66.56,21/12/2015
Commercial,Customer Support Group,Building Repairs & Maintenance,60039376,S W BRUCE & CO LTD,43.46,23/12/2015
Commercial,Customer Support Group,Building Repairs & Maintenance,60039382,S W BRUCE & CO LTD,112.56,21/12/2015
Commercial,Customer Support Group,Building Repairs & Maintenance,60039392,S W BRUCE & CO LTD,39.08,23/12/2015
Commercial,Customer Support Group,Building Repairs & Maintenance,60039393,S W BRUCE & CO LTD,57,21/12/2015
Commercial,Customer Support Group,Building Repairs & Maintenance,60039399,S W BRUCE & CO LTD,199.69,21/12/2015
Commercial,Customer Support Group,Building Repairs & Maintenance,60039403,S W BRUCE & CO LTD,28.5,23/12/2015
Commercial,Customer Support Group,Building Repairs & Maintenance,60039404,S W BRUCE & CO LTD,103.26,21/12/2015
Commercial,Customer Support Group,Building Repairs & Maintenance,60039405,S W BRUCE & CO LTD,56.7,21/12/2015
Commercial,Customer Support Group,Building Repairs & Maintenance,60039557,S W BRUCE & CO LTD,859.05,23/12/2015
Commercial,Customer Support Group,Building Repairs & Maintenance,60039608,S W BRUCE & CO LTD,585,23/12/2015
Commercial,Customer Support Group,Building Repairs & Maintenance,60039628,S W BRUCE & CO LTD,"3,312.00",23/12/2015
Commercial,Customer Support Group,Building Repairs & Maintenance,60039672,S W BRUCE & CO LTD,"1,918.50",23/12/2015
Commercial,Customer Support Group,Building Repairs & Maintenance,60039724,S W BRUCE & CO LTD,388.45,23/12/2015
Commercial,Customer Support Group,Building Repairs & Maintenance,60039747,S W BRUCE & CO LTD,431.25,23/12/2015
Commercial,Customer Support Group,Building Repairs & Maintenance,60039748,S W BRUCE & CO LTD,"1,665.28",23/12/2015
Commercial,Customer Support Group,Building Repairs & Maintenance,60040129,SECOM PLC,89,21/12/2015
Commercial,Customer Support Group,Building Repairs & Maintenance,60040266,SECOM PLC,89,21/12/2015
Commercial,Customer Support Group,Building Repairs & Maintenance,60041227,SIMPLY ALARMING SECURITY LTD,690,29/12/2015
Commercial,Customer Support Group,Building Repairs & Maintenance,60041817,THAMES WATER UTILITIES LIMITED,30.32,29/12/2015
Commercial,Customer Support Group,Cleaning and domestic material,60040060,HERTFORDSHIRE SUPPLIES   COUNTY CO,"1,656.30",10/12/2015
Commercial,Customer Support Group,Cleaning and domestic material,60040127,HERTFORDSHIRE SUPPLIES   COUNTY CO,867.72,08/12/2015
Commercial,Customer Support Group,Cleaning and domestic material,60040272,HERTFORDSHIRE SUPPLIES   COUNTY CO,"1,046.44",10/12/2015
Commercial,Customer Support Group,Comm(Periodend Processing)Rech,10012850,TMP (UK) LTD,64.95,01/12/2015
Commercial,Customer Support Group,CSG Services Contract Payment,10012876,CAPITA BUSINESS SERVICES LTD,"184,909.00",29/12/2015
Commercial,Customer Support Group,CSG Services Contract Payment,10012877,CAPITA BUSINESS SERVICES LTD,"1,217,421.80",29/12/2015
Commercial,Customer Support Group,CSG Services Contract Payment,10012935,CAPITA BUSINESS SERVICES LTD,"35,030.33",29/12/2015
Commercial,Customer Support Group,CSG Services Contract Payment,10012936,CAPITA BUSINESS SERVICES LTD,"-183,652.00",29/12/2015
Commercial,Customer Support Group,CSG Services Contract Payment,10012937,CAPITA BUSINESS SERVICES LTD,"-99,296.00",29/12/2015
Commercial,Customer Support Group,CSG Services Contract Payment,10012938,CAPITA BUSINESS SERVICES LTD,"-183,652.00",29/12/2015
Commercial,Customer Support Group,CSG Services Contract Payment,10012939,CAPITA BUSINESS SERVICES LTD,"84,842.00",29/12/2015
Commercial,Customer Support Group,CSG Services Contract Payment,60040022,CAPITA BUSINESS SERVICES LTD,"209,445.97",09/12/2015
Commercial,Customer Support Group,CSG Services Contract Payment,60040374,CAPITA BUSINESS SERVICES LTD,"-112,844.00",29/12/2015
Commercial,Customer Support Group,CSG Services Contract Payment,60040418,CAPITA BUSINESS SERVICES LTD,"10,115,342.00",10/12/2015
Commercial,Customer Support Group,CSG Services Contract Payment,60040431,CAPITA BUSINESS SERVICES LTD,"77,333.58",14/12/2015
Commercial,Customer Support Group,CSG Services Contract Payment,60040458,CAPITA BUSINESS SERVICES LTD,"630,487.00",10/12/2015
Commercial,Customer Support Group,CSG Services Contract Payment,60040481,CAPITA BUSINESS SERVICES LTD,"9,723.40",14/12/2015
Commercial,Customer Support Group,CSG Services Contract Payment,60041225,CAPITA BUSINESS SERVICES LTD,"82,575.00",29/12/2015
Commercial,Customer Support Group,CSG Services Contract Payment,60041257,CAPITA BUSINESS SERVICES LTD,"242,616.00",29/12/2015
Commercial,Customer Support Group,CSG Services Contract Payment,60041349,CAPITA BUSINESS SERVICES LTD,"86,990.00",29/12/2015
Commercial,Customer Support Group,CSG Services Contract Payment,60041362,CAPITA BUSINESS SERVICES LTD,"2,030.28",29/12/2015
Commercial,Customer Support Group,Electricity,10012848,BRITISH GAS BUSINESS,130.4,01/12/2015
Commercial,Customer Support Group,Electricity,60036317,KENT COUNTY COUNCIL (KCS),433.53,02/12/2015
Commercial,Customer Support Group,Electricity,60037463,KENT COUNTY COUNCIL (KCS),57.32,14/12/2015
Commercial,Customer Support Group,Electricity,60038130,KENT COUNTY COUNCIL (KCS),"7,513.62",03/12/2015
Commercial,Customer Support Group,Electricity,60039008,KENT COUNTY COUNCIL (KCS),"1,175.55",07/12/2015
Commercial,Customer Support Group,Electricity,60041062,KENT COUNTY COUNCIL (KCS),848.58,18/12/2015
Commercial,Customer Support Group,Fixtures and fittings,60038733,LYCO DIRECT LTD,377.19,17/12/2015
Commercial,Customer Support Group,Fixtures and fittings,60039603,LYCO DIRECT LTD,118.2,23/12/2015
Commercial,Customer Support Group,Fixtures and fittings,60039693,LYCO DIRECT LTD,10.16,23/12/2015
Commercial,Customer Support Group,Fixtures and fittings,60040159,LYCO DIRECT LTD,7.92,29/12/2015
Commercial,Customer Support Group,Fixtures and fittings,60040968,WAGSTAFF INTERIORS GROUP,267.5,18/12/2015
Commercial,Customer Support Group,Furniture-Purchase-Repair,60038076,LYCO DIRECT LTD,88.09,10/12/2015
Commercial,Customer Support Group,Gas,60039169,BRITISH GAS BUSINESS,80.35,09/12/2015
Commercial,Customer Support Group,Gas,60041796,BRITISH GAS TRADING LIMITED,141.18,24/12/2015
Commercial,Customer Support Group,Gas,60040940,COMER BUSINESS AND INNOVATION CENTRES,"32,592.14",17/12/2015
Commercial,Customer Support Group,Gas,60037508,KENT COUNTY COUNCIL (KCS),149.45,03/12/2015
Commercial,Customer Support Group,Gas,60038209,KENT COUNTY COUNCIL (KCS),"4,892.83",01/12/2015
Commercial,Customer Support Group,Gas,60038251,KENT COUNTY COUNCIL (KCS),701.41,01/12/2015
Commercial,Customer Support Group,Gas,60038264,KENT COUNTY COUNCIL (KCS),313.22,01/12/2015
Commercial,Customer Support Group,Gas,60038291,KENT COUNTY COUNCIL (KCS),"8,492.01",01/12/2015
Commercial,Customer Support Group,Operational Leases - Equipment,60038864,XEROX (UK) LTD,"3,034.59",03/12/2015
Commercial,Customer Support Group,Operational Leases - Equipment,60040584,XEROX FINANCE LTD,"3,219.02",11/12/2015
Commercial,Customer Support Group,Other Services,60040034,BLUE 9 SECURITY LIMITED,116,10/12/2015
Commercial,Customer Support Group,Other Services,60040038,BLUE 9 SECURITY LIMITED,50,10/12/2015
Commercial,Customer Support Group,Other Services,60040039,BLUE 9 SECURITY LIMITED,"23,423.00",15/12/2015
Commercial,Customer Support Group,Other Services,60040072,BLUE 9 SECURITY LIMITED,187.5,10/12/2015
Commercial,Customer Support Group,Other Services,60040118,BLUE 9 SECURITY LIMITED,116,10/12/2015
Commercial,Customer Support Group,Other Services,60040168,BLUE 9 SECURITY LIMITED,"8,141.75",10/12/2015
Commercial,Customer Support Group,Other Services,60040191,BLUE 9 SECURITY LIMITED,"1,552.50",10/12/2015
Commercial,Customer Support Group,Other Services,60040263,BLUE 9 SECURITY LIMITED,"1,000.50",10/12/2015
Commercial,Customer Support Group,Other Services,60040276,BLUE 9 SECURITY LIMITED,"20,520.00",10/12/2015
Commercial,Customer Support Group,Other Services,60040019,LEASING PROGRAMMES LIMITED,"1,235.00",29/12/2015
Commercial,Customer Support Group,Postage,60040579,ROYAL MAIL GROUP LIMITED,"7,136.28",11/12/2015
Commercial,Customer Support Group,Professional Services,60040111,EQUITA LTD HIGH COURT ENFORCEMENT,620.26,23/12/2015
Commercial,Customer Support Group,Professional Services,60039195,ROSSENDALES (COLLECT) LTD,85.91,03/12/2015
Commercial,Customer Support Group,Professional Services,60039203,ROSSENDALES (COLLECT) LTD,24.85,03/12/2015
Commercial,Customer Support Group,Professional Services,60039211,ROSSENDALES (COLLECT) LTD,661.38,02/12/2015
Commercial,Customer Support Group,Professional Services,60039233,ROSSENDALES (COLLECT) LTD,442.57,02/12/2015
Commercial,Customer Support Group,Professional Services,60040367,ROSSENDALES (COLLECT) LTD,20.66,16/12/2015
Commercial,Customer Support Group,Professional Services,60040817,ROSSENDALES (COLLECT) LTD,"1,185.22",23/12/2015
Commercial,Customer Support Group,Professional Services,60040820,ROSSENDALES (COLLECT) LTD,"1,943.24",16/12/2015
Commercial,Customer Support Group,Rents,60039868,CANAL & RIVER TRUST,"2,000.00",17/12/2015
Commercial,Customer Support Group,Rents,10012873,DANCASTLE ASSOCIATES LIMITED,"186,250.00",21/12/2015
Commercial,Customer Support Group,Rubbish Collection,60041120,PREMIER SHREDDING,63,18/12/2015
Commercial,Customer Support Group,Service Charges,10012874,MARYLEBONE ASSET MANAGEMENT LTD,"27,966.24",23/12/2015
Commercial,Customer Support Group,Service Charges,10012875,MARYLEBONE ASSET MANAGEMENT LTD,183.36,23/12/2015
Commercial,Customer Support Group,Ttl IT & Comms,20027261,VODAFONE LTD (BILLS ONLY),"15,307.27",24/12/2015
Commercial,Customer Support Group,Water Services,60037175,2468 LTD,"1,040.40",02/12/2015
Commercial,Customer Support Group,Water Services,10012872,AFFINITY WATER LIMITED,425.87,17/12/2015
Commercial,Customer Support Group,Water Services,60036991,AFFINITY WATER LIMITED,"1,383.20",02/12/2015
Commercial,Customer Support Group,Water Services,60040790,ANGEL SPRINGS LTD,138,29/12/2015
Commercial,Customer Support Group,Water Services,60040802,ANGEL SPRINGS LTD,40,29/12/2015
Commercial,Customer Support Group,Water Services,60040809,ANGEL SPRINGS LTD,151,29/12/2015
Commercial,Customer Support Group,Water Services,60040824,ANGEL SPRINGS LTD,150,29/12/2015
Commercial,Customer Support Group,Water Services,10012847,THAMES WATER UTILITIES LIMITED,548.38,01/12/2015
Commercial,Customer Support Group,Water Services,60039977,THAMES WATER UTILITIES LIMITED,449.46,08/12/2015
Commercial,HB LAW,Legal and Court Fees,60040036,LONDON BOROUGH OF HARROW,"210,420.20",10/12/2015
Commercial,Housing Needs Resources,Legal and Court Fees,60041278,THE BARNETGROUP LIMITED,"6,500.00",23/12/2015
Commercial,HRA,Advertising,60041676,TMP (UK) LTD,49.9,24/12/2015
Commercial,HRA,Consultants Fees,60036710,P P C R ASSOCIATES LTD,"1,616.08",02/12/2015
Commercial,HRA,Consultants Fees,60037903,PRIORITY ESTATES PROJECT LTD,"4,354.15",02/12/2015
Commercial,HRA,Consultants Fees,60039600,PRIORITY ESTATES PROJECT LTD,663.57,07/12/2015
Commercial,HRA,Consultants Fees,60039662,PRIORITY ESTATES PROJECT LTD,"2,200.28",07/12/2015
Commercial,HRA,Consultants Fees,60039732,PRIORITY ESTATES PROJECT LTD,663.57,07/12/2015
Commercial,HRA,Consultants Fees,60039755,PRIORITY ESTATES PROJECT LTD,"2,130.43",07/12/2015
Commercial,HRA,Consultants Fees,60039757,PRIORITY ESTATES PROJECT LTD,690.33,07/12/2015
Commercial,HRA,Consultants Fees,60039778,PRIORITY ESTATES PROJECT LTD,"1,606.61",07/12/2015
Commercial,HRA,Consultants Fees,60040754,PRIORITY ESTATES PROJECT LTD,"3,317.87",16/12/2015
Commercial,HRA,Consultants Fees,60040742,STRATEGIC URBAN FUTURES LIMITED,853.28,16/12/2015
Commercial,HRA,Consultants Fees,60006702,THE BARNETGROUP LIMITED,600,09/12/2015
Commercial,HRA,Consultants Fees,60037739,THE BARNETGROUP LIMITED,"1,261.20",24/12/2015
Commercial,HRA,Consultants Fees,60037830,THE BARNETGROUP LIMITED,688.98,24/12/2015
Commercial,HRA,Consultants Fees,60037845,THE BARNETGROUP LIMITED,801.6,21/12/2015
Commercial,HRA,Consultants Fees,60037852,THE BARNETGROUP LIMITED,422.28,24/12/2015
Commercial,HRA,Consultants Fees,60041737,THE BARNETGROUP LIMITED,"1,080.00",24/12/2015
Commercial,HRA,Printing-Contract,60041656,TMP (UK) LTD,"1,869.34",29/12/2015
Commercial,HRA,Printing-Contract,60041677,TMP (UK) LTD,"1,520.59",29/12/2015
Commercial,HRA,Printing-Contract,60041770,TMP (UK) LTD,"1,440.59",29/12/2015
Commercial,HRA,Printing-Contract,60041859,TMP (UK) LTD,"1,949.34",29/12/2015
Commercial,Parking & Infrastructure,Advertising,60040094,NEWSQUEST (LONDON) LIMITED,805,29/12/2015
Commercial,Parking & Infrastructure,Equipment and Materials Purcha,60037657,ACCESS INNOVATIONS UK LTD,730,11/12/2015
Commercial,Parking & Infrastructure,Equipment and Materials Purcha,60040053,ACCESS INNOVATIONS UK LTD,58.8,23/12/2015
Commercial,Parking & Infrastructure,Equipment and Materials Purcha,60040093,ACCESS INNOVATIONS UK LTD,580,23/12/2015
Commercial,Parking & Infrastructure,Equipment and Materials Purcha,60039517,ASD METAL SERVICES,590,10/12/2015
Commercial,Parking & Infrastructure,Equipment and Materials Purcha,60040371,ASD METAL SERVICES,365,10/12/2015
Commercial,Parking & Infrastructure,Equipment and Materials Purcha,60040432,ASD METAL SERVICES,730,23/12/2015
Commercial,Parking & Infrastructure,Equipment and Materials Purcha,60041287,ASD METAL SERVICES,312,23/12/2015
Commercial,Parking & Infrastructure,Equipment and Materials Purcha,60036119,COBURN SERVICES LTD,443.4,03/12/2015
Commercial,Parking & Infrastructure,Equipment and Materials Purcha,60038381,COBURN SERVICES LTD,"1,113.00",08/12/2015
Commercial,Parking & Infrastructure,Equipment and Materials Purcha,60039367,COBURN SERVICES LTD,443.4,10/12/2015
Commercial,Parking & Infrastructure,Equipment and Materials Purcha,60040448,COBURN SERVICES LTD,435.3,16/12/2015
Commercial,Parking & Infrastructure,Equipment and Materials Purcha,60040454,COBURN SERVICES LTD,"1,113.00",21/12/2015
Commercial,Parking & Infrastructure,Equipment and Materials Purcha,60041077,COBURN SERVICES LTD,"1,113.00",29/12/2015
Commercial,Parking & Infrastructure,Equipment and Materials Purcha,60038427,COLAS LTD,"1,890.00",04/12/2015
Commercial,Parking & Infrastructure,Equipment and Materials Purcha,60041145,COLAS LTD,"1,890.00",29/12/2015
Commercial,Parking & Infrastructure,Equipment and Materials Purcha,60031915,GREENHAM TRADING LIMITED,153.7,04/12/2015
Commercial,Parking & Infrastructure,Equipment and Materials Purcha,60038854,GREENHAM TRADING LIMITED,221.16,17/12/2015
Commercial,Parking & Infrastructure,Equipment and Materials Purcha,60038895,GREENHAM TRADING LIMITED,11.24,17/12/2015
Commercial,Parking & Infrastructure,Equipment and Materials Purcha,60039686,GREENHAM TRADING LIMITED,20.55,23/12/2015
Commercial,Parking & Infrastructure,Equipment and Materials Purcha,60039902,GREENHAM TRADING LIMITED,"1,221.00",23/12/2015
Commercial,Parking & Infrastructure,Equipment and Materials Purcha,60040110,GREENHAM TRADING LIMITED,39.36,29/12/2015
Commercial,Parking & Infrastructure,Equipment and Materials Purcha,60040520,GREENHAM TRADING LIMITED,371.19,29/12/2015
Commercial,Parking & Infrastructure,Equipment and Materials Purcha,60037165,LAFARGE TARMAC TRADING LIMITED,95.08,15/12/2015
Commercial,Parking & Infrastructure,Equipment and Materials Purcha,60037254,LAFARGE TARMAC TRADING LIMITED,91.42,15/12/2015
Commercial,Parking & Infrastructure,Equipment and Materials Purcha,60038377,LAFARGE TARMAC TRADING LIMITED,95.08,09/12/2015
Commercial,Parking & Infrastructure,Equipment and Materials Purcha,60038409,LAFARGE TARMAC TRADING LIMITED,276.09,15/12/2015
Commercial,Parking & Infrastructure,Equipment and Materials Purcha,60038416,LAFARGE TARMAC TRADING LIMITED,217.58,15/12/2015
Commercial,Parking & Infrastructure,Equipment and Materials Purcha,60038449,LAFARGE TARMAC TRADING LIMITED,96.91,15/12/2015
Commercial,Parking & Infrastructure,Equipment and Materials Purcha,60038454,LAFARGE TARMAC TRADING LIMITED,96.91,15/12/2015
Commercial,Parking & Infrastructure,Equipment and Materials Purcha,60038457,LAFARGE TARMAC TRADING LIMITED,120.67,15/12/2015
Commercial,Parking & Infrastructure,Equipment and Materials Purcha,60038485,LAFARGE TARMAC TRADING LIMITED,93.25,15/12/2015
Commercial,Parking & Infrastructure,Equipment and Materials Purcha,60039287,LAFARGE TARMAC TRADING LIMITED,113.53,03/12/2015
Commercial,Parking & Infrastructure,Equipment and Materials Purcha,60039361,LAFARGE TARMAC TRADING LIMITED,113.53,03/12/2015
Commercial,Parking & Infrastructure,Equipment and Materials Purcha,60039364,LAFARGE TARMAC TRADING LIMITED,118.93,08/12/2015
Commercial,Parking & Infrastructure,Equipment and Materials Purcha,60039534,LAFARGE TARMAC TRADING LIMITED,112.63,08/12/2015
Commercial,Parking & Infrastructure,Equipment and Materials Purcha,60040377,LAFARGE TARMAC TRADING LIMITED,111.72,11/12/2015
Commercial,Parking & Infrastructure,Equipment and Materials Purcha,60040384,LAFARGE TARMAC TRADING LIMITED,111.72,17/12/2015
Commercial,Parking & Infrastructure,Equipment and Materials Purcha,60040413,LAFARGE TARMAC TRADING LIMITED,115.33,17/12/2015
Commercial,Parking & Infrastructure,Equipment and Materials Purcha,60040427,LAFARGE TARMAC TRADING LIMITED,113.53,15/12/2015
Commercial,Parking & Infrastructure,Equipment and Materials Purcha,60040437,LAFARGE TARMAC TRADING LIMITED,115.33,15/12/2015
Commercial,Parking & Infrastructure,Equipment and Materials Purcha,60040460,LAFARGE TARMAC TRADING LIMITED,111.72,11/12/2015
Commercial,Parking & Infrastructure,Equipment and Materials Purcha,60040466,LAFARGE TARMAC TRADING LIMITED,115.33,17/12/2015
Commercial,Parking & Infrastructure,Equipment and Materials Purcha,60041140,LAFARGE TARMAC TRADING LIMITED,115.33,23/12/2015
Commercial,Parking & Infrastructure,Equipment and Materials Purcha,60041157,LAFARGE TARMAC TRADING LIMITED,230.66,23/12/2015
Commercial,Parking & Infrastructure,Equipment and Materials Purcha,60041230,LAFARGE TARMAC TRADING LIMITED,225.25,29/12/2015
Commercial,Parking & Infrastructure,Equipment and Materials Purcha,60041248,LAFARGE TARMAC TRADING LIMITED,232.46,23/12/2015
Commercial,Parking & Infrastructure,Equipment and Materials Purcha,60041844,LAFARGE TARMAC TRADING LIMITED,120.73,29/12/2015
Commercial,Parking & Infrastructure,Equipment and Materials Purcha,60041847,LAFARGE TARMAC TRADING LIMITED,113.53,29/12/2015
Commercial,Parking & Infrastructure,Equipment and Materials Purcha,60040651,NSL LTD,"4,952.25",15/12/2015
Commercial,Parking & Infrastructure,Equipment and Materials Purcha,60040368,RENNICK UK LTD,220.02,23/12/2015
Commercial,Parking & Infrastructure,Equipment and Materials Purcha,60040452,RENNICK UK LTD,469.05,23/12/2015
Commercial,Parking & Infrastructure,Equipment and Materials Purcha,10012853,SPANDEX LIMITED,157.7,03/12/2015
Commercial,Parking & Infrastructure,Equipment and Materials Purcha,60039510,TOUCAN TOOL CO.LTD,362.5,03/12/2015
Commercial,Parking & Infrastructure,Equipment and Materials Purcha,60041125,TOUCAN TOOL CO.LTD,326.29,18/12/2015
Commercial,Parking & Infrastructure,Equipment and Materials Purcha,60040009,TRUEFORM,435,23/12/2015
Commercial,Parking & Infrastructure,Equipment and Materials Purcha,60040468,WM SMITH & SONS LIMITED,120,10/12/2015
Commercial,Parking & Infrastructure,Equipment and Materials Purcha,60041295,WM SMITH & SONS LIMITED,329.68,21/12/2015
Commercial,Parking & Infrastructure,General Office Expenses,40001244,OFFICE DEPOT UK LTD,3.54,18/12/2015
Commercial,Parking & Infrastructure,Miscellaneous Expenses,60037715,PARKEON LIMITED,"7,375.00",08/12/2015
Commercial,Parking & Infrastructure,Miscellaneous Expenses,60038401,PARKEON LIMITED,796.5,15/12/2015
Commercial,Parking & Infrastructure,Miscellaneous Expenses,60038771,PARKEON LIMITED,"2,588.48",17/12/2015
Commercial,Parking & Infrastructure,Other Energy,60040414,KENT COUNTY COUNCIL (KCS),43.89,11/12/2015
Commercial,Parking & Infrastructure,Other Services,60038651,LONDON COUNCILS,"26,263.05",16/12/2015
Commercial,Parking & Infrastructure,Other Services,60038498,REDCORN LTD,95,10/12/2015
Commercial,Parking & Infrastructure,Professional Services,60039072,NSL LTD,33,09/12/2015
Commercial,Parking & Infrastructure,Professional Services,60040682,NSL LTD,"218,032.31",15/12/2015
Commercial,Parking & Infrastructure,Professional Services,60040929,NSL LTD,336,21/12/2015
Commercial,Parking & Infrastructure,Software Licences & Support,60037164,NCC SERVICES LTD,650,03/12/2015
Commercial,Parking & Infrastructure,Software Licences & Support,60034811,NSL LTD,814.81,18/12/2015
Commercial,Parking & Infrastructure,Software Licences & Support,60041007,NSL LTD,"33,096.71",18/12/2015
Commercial,Public Health,Equipment and Materials Purcha,10012867,CENTRAL LONDONCOMMUNITY HEALTHCARE,"37,500.00",11/12/2015
Commercial,Public Health,Equipment and Materials Purcha,10012868,CENTRAL LONDONCOMMUNITY HEALTHCARE,"37,500.00",11/12/2015
Commercial,Regional Enterprise,Advertising,60036521,TMP (UK) LTD,532.35,01/12/2015
Commercial,Regional Enterprise,Advertising,60037873,TMP (UK) LTD,382.66,01/12/2015
Commercial,Regional Enterprise,Advertising,60037884,TMP (UK) LTD,151.28,01/12/2015
Commercial,Regional Enterprise,Advertising,60037898,TMP (UK) LTD,286.72,01/12/2015
Commercial,Regional Enterprise,Advertising,60037937,TMP (UK) LTD,151.28,01/12/2015
Commercial,Regional Enterprise,Advertising,60037943,TMP (UK) LTD,382.66,01/12/2015
Commercial,Regional Enterprise,Advertising,60039553,TMP (UK) LTD,126.33,24/12/2015
Commercial,Regional Enterprise,Advertising,60039578,TMP (UK) LTD,126.33,24/12/2015
Commercial,Regional Enterprise,Advertising,60039659,TMP (UK) LTD,321.82,07/12/2015
Commercial,Regional Enterprise,Advertising,60039715,TMP (UK) LTD,137.02,24/12/2015
Commercial,Regional Enterprise,Advertising,60039754,TMP (UK) LTD,112.08,24/12/2015
Commercial,Regional Enterprise,Advertising,60039773,TMP (UK) LTD,115.64,07/12/2015
Commercial,Regional Enterprise,Advertising,60039787,TMP (UK) LTD,122.77,24/12/2015
Commercial,Regional Enterprise,Advertising,60039802,TMP (UK) LTD,357.46,07/12/2015
Commercial,Regional Enterprise,Advertising,60039815,TMP (UK) LTD,122.77,24/12/2015
Commercial,Regional Enterprise,Advertising,60039825,TMP (UK) LTD,46.33,24/12/2015
Commercial,Regional Enterprise,Advertising,60039872,TMP (UK) LTD,112.08,08/12/2015
Commercial,Regional Enterprise,Advertising,60040507,TMP (UK) LTD,46.33,24/12/2015
Commercial,Regional Enterprise,Advertising,60040512,TMP (UK) LTD,42.77,24/12/2015
Commercial,Regional Enterprise,Advertising,60040531,TMP (UK) LTD,57.02,24/12/2015
Commercial,Regional Enterprise,Advertising,60040534,TMP (UK) LTD,112.08,18/12/2015
Commercial,Regional Enterprise,Advertising,60040545,TMP (UK) LTD,112.08,18/12/2015
Commercial,Regional Enterprise,Advertising,60040565,TMP (UK) LTD,32.08,24/12/2015
Commercial,Regional Enterprise,Advertising,60040590,TMP (UK) LTD,42.77,24/12/2015
Commercial,Regional Enterprise,Building Repairs & Maintenance,60038223,S W BRUCE & CO LTD,519.88,15/12/2015
Commercial,Regional Enterprise,Capital Construction and Works,60040065,CONWAY AECOM LTD,"7,731.09",29/12/2015
Commercial,Regional Enterprise,Capital Construction and Works,60038240,S W BRUCE & CO LTD,"1,235.00",15/12/2015
Commercial,Regional Enterprise,Capital Construction and Works,60038362,S W BRUCE & CO LTD,"31,218.00",15/12/2015
Commercial,Regional Enterprise,Consultants Fees,60035799,CBRE INDIRECT INVESTMENT SERVS. LTD,"20,000.00",15/12/2015
Commercial,Regional Enterprise,Consultants Fees,60041821,EVERSHEDS LLP,"42,527.52",24/12/2015
Commercial,Regional Enterprise,Consultants Fees,60039130,P A CONSULTING SERVICES LTD,"27,396.67",17/12/2015
Commercial,Regional Enterprise,Consultants Fees,10012880,RE (REGIONAL ENTERPRISE) LIMITED,"1,718,128.00",29/12/2015
Commercial,Regional Enterprise,Consultants Fees,60037288,SAPIENS CONSULTANCY,"1,128.00",07/12/2015
Commercial,Regional Enterprise,Contract Cleaning,60036949,CHURCHILL CONTRACT SERVICES,488.56,23/12/2015
Commercial,Regional Enterprise,Fees and Charges,20026956,REDACTED - PERSONAL DATA,"1,325.00",14/12/2015
Commercial,Regional Enterprise,Grant Payments,20027168,ACCESS & AUTOMATION LTD,"4,340.00",22/12/2015
Commercial,Regional Enterprise,Grant Payments,20026551,AMWELL CONSTRUCTION LTD,170.04,03/12/2015
Commercial,Regional Enterprise,Grant Payments,20026570,AMWELL CONSTRUCTION LTD,498.42,03/12/2015
Commercial,Regional Enterprise,Grant Payments,20027073,AMWELL CONSTRUCTION LTD,307.32,18/12/2015
Commercial,Regional Enterprise,Grant Payments,20026722,ARTHUR J. FERRYMAN ASSOCIATES,240,09/12/2015
Commercial,Regional Enterprise,Grant Payments,20027082,ARTHUR J. FERRYMAN ASSOCIATES,480,18/12/2015
Commercial,Regional Enterprise,Grant Payments,20027182,ARTHUR J. FERRYMAN ASSOCIATES,360,22/12/2015
Commercial,Regional Enterprise,Grant Payments,20026607,CAPITAL  LOCKSMITHS,124.8,07/12/2015
Commercial,Regional Enterprise,Grant Payments,20026651,CAPITAL  LOCKSMITHS,300,07/12/2015
Commercial,Regional Enterprise,Grant Payments,20026652,CAPITAL  LOCKSMITHS,349.8,07/12/2015
Commercial,Regional Enterprise,Grant Payments,20027070,CAPITAL  LOCKSMITHS,276.6,18/12/2015
Commercial,Regional Enterprise,Grant Payments,20027071,CAPITAL  LOCKSMITHS,160.8,18/12/2015
Commercial,Regional Enterprise,Grant Payments,20027169,CAPITAL  LOCKSMITHS,203.4,23/12/2015
Commercial,Regional Enterprise,Grant Payments,20027170,CAPITAL  LOCKSMITHS,96,23/12/2015
Commercial,Regional Enterprise,Grant Payments,20027171,CAPITAL  LOCKSMITHS,96,23/12/2015
Commercial,Regional Enterprise,Grant Payments,20027172,CAPITAL  LOCKSMITHS,96,23/12/2015
Commercial,Regional Enterprise,Grant Payments,20027173,CAPITAL  LOCKSMITHS,360,23/12/2015
Commercial,Regional Enterprise,Grant Payments,20026723,DOLPHIN MOBILITY LTD.,"3,381.00",09/12/2015
Commercial,Regional Enterprise,Grant Payments,20027178,DOLPHIN MOBILITY LTD.,"3,929.81",22/12/2015
Commercial,Regional Enterprise,Grant Payments,20027179,DOLPHIN MOBILITY LTD.,"3,576.00",22/12/2015
Commercial,Regional Enterprise,Grant Payments,20026568,DP BUILDERS DISABLED ADAPTATIONS,276,03/12/2015
Commercial,Regional Enterprise,Grant Payments,20026724,DP BUILDERS DISABLED ADAPTATIONS,"6,270.00",09/12/2015
Commercial,Regional Enterprise,Grant Payments,20027066,DP BUILDERS DISABLED ADAPTATIONS,"5,421.00",17/12/2015
Commercial,Regional Enterprise,Grant Payments,20027176,DP BUILDERS DISABLED ADAPTATIONS,"4,845.00",22/12/2015
Commercial,Regional Enterprise,Grant Payments,20027177,DP BUILDERS DISABLED ADAPTATIONS,"7,759.00",22/12/2015
Commercial,Regional Enterprise,Grant Payments,20027183,DP BUILDERS DISABLED ADAPTATIONS,"3,610.00",22/12/2015
Commercial,Regional Enterprise,Grant Payments,20027184,DP BUILDERS DISABLED ADAPTATIONS,"6,533.00",22/12/2015
Commercial,Regional Enterprise,Grant Payments,20027185,DP BUILDERS DISABLED ADAPTATIONS,440,23/12/2015
Commercial,Regional Enterprise,Grant Payments,20027186,DP BUILDERS DISABLED ADAPTATIONS,"5,514.00",23/12/2015
Commercial,Regional Enterprise,Grant Payments,20027080,ESK BUILDERS LTD,"9,320.00",18/12/2015
Commercial,Regional Enterprise,Grant Payments,20027116,GYLLSIDE,"4,260.00",18/12/2015
Commercial,Regional Enterprise,Grant Payments,20026548,H D PROPERTY SERVICES LTD,"1,094.00",03/12/2015
Commercial,Regional Enterprise,Grant Payments,20026719,H D PROPERTY SERVICES LTD,"3,125.85",09/12/2015
Commercial,Regional Enterprise,Grant Payments,20026720,H D PROPERTY SERVICES LTD,"2,217.60",09/12/2015
Commercial,Regional Enterprise,Grant Payments,20026569,MITIE PROPERTY SERVICES UK LTD,"4,400.00",04/12/2015
Commercial,Regional Enterprise,Grant Payments,20026519,REDACTED - PERSONAL DATA,"6,242.00",03/12/2015
Commercial,Regional Enterprise,Grant Payments,20026520,REDACTED - PERSONAL DATA,240,03/12/2015
Commercial,Regional Enterprise,Grant Payments,20026521,REDACTED - PERSONAL DATA,"5,286.00",03/12/2015
Commercial,Regional Enterprise,Grant Payments,20026542,REDACTED - PERSONAL DATA,"4,667.00",03/12/2015
Commercial,Regional Enterprise,Grant Payments,20026543,REDACTED - PERSONAL DATA,"3,819.00",03/12/2015
Commercial,Regional Enterprise,Grant Payments,20026545,REDACTED - PERSONAL DATA,"4,086.00",03/12/2015
Commercial,Regional Enterprise,Grant Payments,20026583,REDACTED - PERSONAL DATA,"4,920.00",07/12/2015
Commercial,Regional Enterprise,Grant Payments,20026584,REDACTED - PERSONAL DATA,"4,030.00",07/12/2015
Commercial,Regional Enterprise,Grant Payments,20026721,REDACTED - PERSONAL DATA,"11,979.00",09/12/2015
Commercial,Regional Enterprise,Grant Payments,20027065,REDACTED - PERSONAL DATA,"1,436.00",17/12/2015
Commercial,Regional Enterprise,Grant Payments,20027072,REDACTED - PERSONAL DATA,"4,200.00",18/12/2015
Commercial,Regional Enterprise,Grant Payments,20027180,REDACTED - PERSONAL DATA,"10,959.00",22/12/2015
Commercial,Regional Enterprise,Grant Payments,20027189,REDACTED - PERSONAL DATA,"5,699.00",22/12/2015
Commercial,Regional Enterprise,Grant Payments,20027190,REDACTED - PERSONAL DATA,"8,058.39",22/12/2015
Commercial,Regional Enterprise,Grant Payments,20027191,REDACTED - PERSONAL DATA,"20,000.00",22/12/2015
Commercial,Regional Enterprise,Grant Payments,20026586,SOUTH HERTFORDSHIRE,"2,940.00",07/12/2015
Commercial,Regional Enterprise,Grant Payments,20026587,SOUTH HERTFORDSHIRE,"5,336.86",07/12/2015
Commercial,Regional Enterprise,Grant Payments,20026713,SOUTH HERTFORDSHIRE,504,08/12/2015
Commercial,Regional Enterprise,Grant Payments,20026714,SOUTH HERTFORDSHIRE,"2,887.50",08/12/2015
Commercial,Regional Enterprise,Grant Payments,20027068,SOUTH HERTFORDSHIRE,"6,393.99",18/12/2015
Commercial,Regional Enterprise,Grant Payments,20027175,SOUTH HERTFORDSHIRE,"6,939.00",22/12/2015
Commercial,Regional Enterprise,Grant Payments,20027181,SOUTH HERTFORDSHIRE,"1,620.00",22/12/2015
Commercial,Regional Enterprise,Grant Payments,20027187,SOUTH HERTFORDSHIRE,600,22/12/2015
Commercial,Regional Enterprise,Grant Payments,20027188,SOUTH HERTFORDSHIRE,925,22/12/2015
Commercial,Regional Enterprise,Grant Payments,20026550,STANNAH STAIRLIFTS LTD,"4,394.00",03/12/2015
Commercial,Regional Enterprise,Grant Payments,20026660,STANNAH STAIRLIFTS LTD,"4,991.00",07/12/2015
Commercial,Regional Enterprise,Grant Payments,20026662,STANNAH STAIRLIFTS LTD,"10,950.00",07/12/2015
Commercial,Regional Enterprise,Grant Payments,20026998,STANNAH STAIRLIFTS LTD,"4,694.00",15/12/2015
Commercial,Regional Enterprise,Grant Payments,20027081,STANNAH STAIRLIFTS LTD,"5,480.00",18/12/2015
Commercial,Regional Enterprise,Grant Payments,20027174,STANNAH STAIRLIFTS LTD,"2,784.58",22/12/2015
Commercial,Regional Enterprise,Grant Payments,20026582,TAYLOR DOLMAN LTD,"10,948.00",04/12/2015
Commercial,Regional Enterprise,Grant Payments,20027198,WSW PROPERTY MAINTENANCE LTD,"3,071.60",22/12/2015
Commercial,Regional Enterprise,Legal and Court Fees,60038793,LOCAL GOVERNMENT ASSOCIATION,"1,749.84",17/12/2015
Commercial,Regional Enterprise,Legal and Court Fees,20026440,REDACTED - PERSONAL DATA,795,01/12/2015
Commercial,Regional Enterprise,Legal and Court Fees,20026441,REDACTED - PERSONAL DATA,216.67,01/12/2015
Commercial,Regional Enterprise,Miscellaneous Expenses,20027093,ACCOUNTANT GENERAL OF THE SENIOR COURT,"640,640.00",18/12/2015
Commercial,Regional Enterprise,Miscellaneous Expenses,20027087,REDACTED - PERSONAL DATA,"5,983.00",18/12/2015
Commercial,Regional Enterprise,Miscellaneous Expenses,20027094,REDACTED - PERSONAL DATA,"3,377.00",18/12/2015
Commercial,Regional Enterprise,Other Services,10012878,CONWAY AECOM LTD,"32,468.00",21/12/2015
Commercial,Regional Enterprise,Other Services,10012882,CONWAY AECOM LTD,107.86,23/12/2015
Commercial,Regional Enterprise,Other Services,10012883,CONWAY AECOM LTD,15.48,23/12/2015
Commercial,Regional Enterprise,Other Services,10012885,CONWAY AECOM LTD,"33,476.00",22/12/2015
Commercial,Regional Enterprise,Other Services,10012886,CONWAY AECOM LTD,974.82,29/12/2015
Commercial,Regional Enterprise,Other Services,10012887,CONWAY AECOM LTD,"1,377.38",22/12/2015
Commercial,Regional Enterprise,Other Services,10012888,CONWAY AECOM LTD,"67,937.42",23/12/2015
Commercial,Regional Enterprise,Other Services,10012889,CONWAY AECOM LTD,"24,092.09",22/12/2015
Commercial,Regional Enterprise,Other Services,10012890,CONWAY AECOM LTD,"59,297.23",22/12/2015
Commercial,Regional Enterprise,Other Services,10012891,CONWAY AECOM LTD,"54,972.88",22/12/2015
Commercial,Regional Enterprise,Other Services,10012892,CONWAY AECOM LTD,"3,363.88",22/12/2015
Commercial,Regional Enterprise,Other Services,10012893,CONWAY AECOM LTD,958.1,22/12/2015
Commercial,Regional Enterprise,Other Services,10012894,CONWAY AECOM LTD,"1,589.28",22/12/2015
Commercial,Regional Enterprise,Other Services,10012899,CONWAY AECOM LTD,"70,480.50",23/12/2015
Commercial,Regional Enterprise,Other Services,10012900,CONWAY AECOM LTD,"64,674.00",23/12/2015
Commercial,Regional Enterprise,Other Services,10012901,CONWAY AECOM LTD,"35,996.00",23/12/2015
Commercial,Regional Enterprise,Other Services,10012902,CONWAY AECOM LTD,"34,361.60",23/12/2015
Commercial,Regional Enterprise,Other Services,10012903,CONWAY AECOM LTD,"23,003.37",23/12/2015
Commercial,Regional Enterprise,Other Services,10012904,CONWAY AECOM LTD,"22,650.00",23/12/2015
Commercial,Regional Enterprise,Other Services,10012905,CONWAY AECOM LTD,"21,420.00",23/12/2015
Commercial,Regional Enterprise,Other Services,10012906,CONWAY AECOM LTD,"21,018.75",23/12/2015
Commercial,Regional Enterprise,Other Services,10012907,CONWAY AECOM LTD,"17,694.30",23/12/2015
Commercial,Regional Enterprise,Other Services,10012909,CONWAY AECOM LTD,"14,864.90",23/12/2015
Commercial,Regional Enterprise,Other Services,10012910,CONWAY AECOM LTD,"13,965.00",23/12/2015
Commercial,Regional Enterprise,Other Services,10012911,CONWAY AECOM LTD,"12,852.00",23/12/2015
Commercial,Regional Enterprise,Other Services,10012912,CONWAY AECOM LTD,"12,852.00",23/12/2015
Commercial,Regional Enterprise,Other Services,10012913,CONWAY AECOM LTD,"12,125.00",23/12/2015
Commercial,Regional Enterprise,Other Services,10012914,CONWAY AECOM LTD,"11,207.60",23/12/2015
Commercial,Regional Enterprise,Other Services,10012915,CONWAY AECOM LTD,"11,016.00",23/12/2015
Commercial,Regional Enterprise,Other Services,10012916,CONWAY AECOM LTD,"9,808.97",23/12/2015
Commercial,Regional Enterprise,Other Services,10012917,CONWAY AECOM LTD,"9,180.00",23/12/2015
Commercial,Regional Enterprise,Other Services,10012918,CONWAY AECOM LTD,"8,568.00",23/12/2015
Commercial,Regional Enterprise,Other Services,10012919,CONWAY AECOM LTD,"7,034.00",23/12/2015
Commercial,Regional Enterprise,Other Services,10012920,CONWAY AECOM LTD,"6,000.00",23/12/2015
Commercial,Regional Enterprise,Other Services,10012921,CONWAY AECOM LTD,"1,519.20",23/12/2015
Commercial,Regional Enterprise,Other Services,10012922,CONWAY AECOM LTD,"1,417.92",23/12/2015
Commercial,Regional Enterprise,Other Services,10012923,CONWAY AECOM LTD,"1,417.92",23/12/2015
Commercial,Regional Enterprise,Other Services,10012924,CONWAY AECOM LTD,"1,266.00",23/12/2015
Commercial,Regional Enterprise,Other Services,10012925,CONWAY AECOM LTD,607.68,23/12/2015
Commercial,Regional Enterprise,Other Services,10012926,CONWAY AECOM LTD,633,23/12/2015
Commercial,Regional Enterprise,Other Services,10012927,CONWAY AECOM LTD,354.48,23/12/2015
Commercial,Regional Enterprise,Other Services,10012928,CONWAY AECOM LTD,"1,234.35",23/12/2015
Commercial,Regional Enterprise,Other Services,10012929,CONWAY AECOM LTD,"1,215.36",23/12/2015
Commercial,Regional Enterprise,Other Services,10012930,CONWAY AECOM LTD,"1,004.36",23/12/2015
Commercial,Regional Enterprise,Other Services,10012931,CONWAY AECOM LTD,936.84,23/12/2015
Commercial,Regional Enterprise,Other Services,10012932,CONWAY AECOM LTD,911.52,23/12/2015
Commercial,Regional Enterprise,Other Services,10012933,CONWAY AECOM LTD,512.73,23/12/2015
Commercial,Regional Enterprise,Other Services,10012934,CONWAY AECOM LTD,759.6,23/12/2015
Commercial,Regional Enterprise,Other Services,60027864,CONWAY AECOM LTD,"-100,495.33",21/12/2015
Commercial,Regional Enterprise,Other Services,60035149,CONWAY AECOM LTD,481.08,21/12/2015
Commercial,Regional Enterprise,Other Services,60035257,CONWAY AECOM LTD,"39,653.81",01/12/2015
Commercial,Regional Enterprise,Other Services,60035268,CONWAY AECOM LTD,658.34,21/12/2015
Commercial,Regional Enterprise,Other Services,60036270,CONWAY AECOM LTD,"17,630.08",16/12/2015
Commercial,Regional Enterprise,Other Services,60036350,CONWAY AECOM LTD,"3,132.74",02/12/2015
Commercial,Regional Enterprise,Other Services,60036445,CONWAY AECOM LTD,"9,772.62",10/12/2015
Commercial,Regional Enterprise,Other Services,60036762,CONWAY AECOM LTD,"1,072.82",02/12/2015
Commercial,Regional Enterprise,Other Services,60036928,CONWAY AECOM LTD,"46,508.02",10/12/2015
Commercial,Regional Enterprise,Other Services,60037215,CONWAY AECOM LTD,303.84,21/12/2015
Commercial,Regional Enterprise,Other Services,60037235,CONWAY AECOM LTD,531.72,21/12/2015
Commercial,Regional Enterprise,Other Services,60037309,CONWAY AECOM LTD,974.82,21/12/2015
Commercial,Regional Enterprise,Other Services,60037757,CONWAY AECOM LTD,660,10/12/2015
Commercial,Regional Enterprise,Other Services,60037843,CONWAY AECOM LTD,690,10/12/2015
Commercial,Regional Enterprise,Other Services,60038150,CONWAY AECOM LTD,106.76,04/12/2015
Commercial,Regional Enterprise,Other Services,60038247,CONWAY AECOM LTD,749.47,15/12/2015
Commercial,Regional Enterprise,Other Services,60038334,CONWAY AECOM LTD,"2,395.38",15/12/2015
Commercial,Regional Enterprise,Other Services,60038378,CONWAY AECOM LTD,"23,500.00",15/12/2015
Commercial,Regional Enterprise,Other Services,60038387,CONWAY AECOM LTD,"31,969.47",22/12/2015
Commercial,Regional Enterprise,Other Services,60038622,CONWAY AECOM LTD,"15,738.94",17/12/2015
Commercial,Regional Enterprise,Other Services,60038633,CONWAY AECOM LTD,"5,254.02",17/12/2015
Commercial,Regional Enterprise,Other Services,60038635,CONWAY AECOM LTD,"11,403.94",17/12/2015
Commercial,Regional Enterprise,Other Services,60038641,CONWAY AECOM LTD,"13,831.54",17/12/2015
Commercial,Regional Enterprise,Other Services,60038649,CONWAY AECOM LTD,"17,442.00",17/12/2015
Commercial,Regional Enterprise,Other Services,60038654,CONWAY AECOM LTD,"17,136.00",17/12/2015
Commercial,Regional Enterprise,Other Services,60038673,CONWAY AECOM LTD,"22,644.00",17/12/2015
Commercial,Regional Enterprise,Other Services,60038684,CONWAY AECOM LTD,"9,792.00",17/12/2015
Commercial,Regional Enterprise,Other Services,60038688,CONWAY AECOM LTD,"15,300.00",17/12/2015
Commercial,Regional Enterprise,Other Services,60038692,CONWAY AECOM LTD,"9,063.04",17/12/2015
Commercial,Regional Enterprise,Other Services,60038703,CONWAY AECOM LTD,"9,792.00",17/12/2015
Commercial,Regional Enterprise,Other Services,60038709,CONWAY AECOM LTD,"5,324.40",17/12/2015
Commercial,Regional Enterprise,Other Services,60038712,CONWAY AECOM LTD,"26,928.00",17/12/2015
Commercial,Regional Enterprise,Other Services,60038718,CONWAY AECOM LTD,"14,076.00",17/12/2015
Commercial,Regional Enterprise,Other Services,60039218,CONWAY AECOM LTD,822.9,01/12/2015
Commercial,Regional Enterprise,Other Services,60039279,CONWAY AECOM LTD,"5,662.00",23/12/2015
Commercial,Regional Enterprise,Other Services,60039314,CONWAY AECOM LTD,"36,543.50",23/12/2015
Commercial,Regional Enterprise,Other Services,60039316,CONWAY AECOM LTD,"31,473.60",23/12/2015
Commercial,Regional Enterprise,Other Services,60039329,CONWAY AECOM LTD,"12,876.30",23/12/2015
Commercial,Regional Enterprise,Other Services,60039373,CONWAY AECOM LTD,"33,978.35",24/12/2015
Commercial,Regional Enterprise,Other Services,60039414,CONWAY AECOM LTD,"8,058.72",23/12/2015
Commercial,Regional Enterprise,Other Services,60039415,CONWAY AECOM LTD,798,23/12/2015
Commercial,Regional Enterprise,Other Services,60039419,CONWAY AECOM LTD,"35,220.00",23/12/2015
Commercial,Regional Enterprise,Other Services,60039434,CONWAY AECOM LTD,"1,088.00",23/12/2015
Commercial,Regional Enterprise,Other Services,60039439,CONWAY AECOM LTD,930,23/12/2015
Commercial,Regional Enterprise,Other Services,60039444,CONWAY AECOM LTD,"2,400.00",21/12/2015
Commercial,Regional Enterprise,Other Services,60039446,CONWAY AECOM LTD,600,23/12/2015
Commercial,Regional Enterprise,Other Services,60039457,CONWAY AECOM LTD,"23,592.40",23/12/2015
Commercial,Regional Enterprise,Other Services,60039459,CONWAY AECOM LTD,"21,974.00",23/12/2015
Commercial,Regional Enterprise,Other Services,60039464,CONWAY AECOM LTD,"93,555.00",23/12/2015
Commercial,Regional Enterprise,Other Services,60039470,CONWAY AECOM LTD,"11,096.80",23/12/2015
Commercial,Regional Enterprise,Other Services,60039471,CONWAY AECOM LTD,840,23/12/2015
Commercial,Regional Enterprise,Other Services,60039472,CONWAY AECOM LTD,"42,263.00",23/12/2015
Commercial,Regional Enterprise,Other Services,60039475,CONWAY AECOM LTD,360,23/12/2015
Commercial,Regional Enterprise,Other Services,60039483,CONWAY AECOM LTD,"1,008.00",23/12/2015
Commercial,Regional Enterprise,Other Services,60039485,CONWAY AECOM LTD,840,23/12/2015
Commercial,Regional Enterprise,Other Services,60039488,CONWAY AECOM LTD,930,23/12/2015
Commercial,Regional Enterprise,Other Services,60039494,CONWAY AECOM LTD,480,23/12/2015
Commercial,Regional Enterprise,Other Services,60039501,CONWAY AECOM LTD,"1,104.00",23/12/2015
Commercial,Regional Enterprise,Other Services,60039503,CONWAY AECOM LTD,"1,230.00",23/12/2015
Commercial,Regional Enterprise,Other Services,60039505,CONWAY AECOM LTD,756,23/12/2015
Commercial,Regional Enterprise,Other Services,60039506,CONWAY AECOM LTD,882,23/12/2015
Commercial,Regional Enterprise,Other Services,60039507,CONWAY AECOM LTD,630,23/12/2015
Commercial,Regional Enterprise,Other Services,60039512,CONWAY AECOM LTD,"44,594.70",23/12/2015
Commercial,Regional Enterprise,Other Services,60039524,CONWAY AECOM LTD,"79,046.00",23/12/2015
Commercial,Regional Enterprise,Other Services,60039526,CONWAY AECOM LTD,"1,395.00",21/12/2015
Commercial,Regional Enterprise,Other Services,60039537,CONWAY AECOM LTD,289.16,23/12/2015
Commercial,Regional Enterprise,Other Services,60039630,CONWAY AECOM LTD,378.4,23/12/2015
Commercial,Regional Enterprise,Other Services,60039690,CONWAY AECOM LTD,11.61,23/12/2015
Commercial,Regional Enterprise,Other Services,60039749,CONWAY AECOM LTD,19.61,23/12/2015
Commercial,Regional Enterprise,Other Services,60039810,CONWAY AECOM LTD,325.53,23/12/2015
Commercial,Regional Enterprise,Other Services,60039812,CONWAY AECOM LTD,"1,111.72",23/12/2015
Commercial,Regional Enterprise,Other Services,60040057,CONWAY AECOM LTD,"6,622.18",29/12/2015
Commercial,Regional Enterprise,Other Services,60040071,CONWAY AECOM LTD,696.3,29/12/2015
Commercial,Regional Enterprise,Other Services,60040102,CONWAY AECOM LTD,506.4,29/12/2015
Commercial,Regional Enterprise,Other Services,60040122,CONWAY AECOM LTD,"1,012.80",29/12/2015
Commercial,Regional Enterprise,Other Services,60040135,CONWAY AECOM LTD,607.68,29/12/2015
Commercial,Regional Enterprise,Other Services,60040138,CONWAY AECOM LTD,582.36,29/12/2015
Commercial,Regional Enterprise,Other Services,60040178,CONWAY AECOM LTD,785.98,29/12/2015
Commercial,Regional Enterprise,Other Services,60040223,CONWAY AECOM LTD,791.25,29/12/2015
Commercial,Regional Enterprise,Other Services,60040232,CONWAY AECOM LTD,"23,500.00",29/12/2015
Commercial,Regional Enterprise,Other Services,60040247,CONWAY AECOM LTD,"6,239.66",29/12/2015
Commercial,Regional Enterprise,Other Services,60040493,CONWAY AECOM LTD,455.76,29/12/2015
Commercial,Regional Enterprise,Other Services,60040501,CONWAY AECOM LTD,797.58,29/12/2015
Commercial,Regional Enterprise,Other Services,60040519,CONWAY AECOM LTD,658.32,29/12/2015
Commercial,Regional Enterprise,Other Services,60040542,CONWAY AECOM LTD,"1,371.50",29/12/2015
Commercial,Regional Enterprise,Other Services,60040543,CONWAY AECOM LTD,278.52,29/12/2015
Commercial,Regional Enterprise,Other Services,60040555,CONWAY AECOM LTD,665.56,29/12/2015
Commercial,Regional Enterprise,Other Services,60040571,CONWAY AECOM LTD,759.6,29/12/2015
Commercial,Regional Enterprise,Other Services,60040572,CONWAY AECOM LTD,"1,215.36",29/12/2015
Commercial,Regional Enterprise,Other Services,60040600,CONWAY AECOM LTD,"1,122.52",29/12/2015
Commercial,Regional Enterprise,Other Services,60040611,CONWAY AECOM LTD,"1,025.46",29/12/2015
Commercial,Regional Enterprise,Other Services,60040616,CONWAY AECOM LTD,759.6,29/12/2015
Commercial,Regional Enterprise,Other Services,60040619,CONWAY AECOM LTD,"1,284.99",29/12/2015
Commercial,Regional Enterprise,Other Services,60040647,CONWAY AECOM LTD,728.96,29/12/2015
Commercial,Regional Enterprise,Other Services,60040648,CONWAY AECOM LTD,392.46,29/12/2015
Commercial,Regional Enterprise,Other Services,60040655,CONWAY AECOM LTD,889.34,29/12/2015
Commercial,Regional Enterprise,Other Services,60040661,CONWAY AECOM LTD,860.88,29/12/2015
Commercial,Regional Enterprise,Other Services,60040664,CONWAY AECOM LTD,"1,164.72",29/12/2015
Commercial,Regional Enterprise,Other Services,60040665,CONWAY AECOM LTD,"1,455.90",29/12/2015
Commercial,Regional Enterprise,Other Services,60040669,CONWAY AECOM LTD,"3,080.35",29/12/2015
Commercial,Regional Enterprise,Other Services,60040678,CONWAY AECOM LTD,911.52,29/12/2015
Commercial,Regional Enterprise,Other Services,60040690,CONWAY AECOM LTD,265.86,29/12/2015
Commercial,Regional Enterprise,Other Services,60040704,CONWAY AECOM LTD,949.5,29/12/2015
Commercial,Regional Enterprise,Other Services,60040707,CONWAY AECOM LTD,759.6,29/12/2015
Commercial,Regional Enterprise,Other Services,60040712,CONWAY AECOM LTD,734.28,29/12/2015
Commercial,Regional Enterprise,Other Services,60040714,CONWAY AECOM LTD,696.3,29/12/2015
Commercial,Regional Enterprise,Other Services,60040717,CONWAY AECOM LTD,664.65,29/12/2015
Commercial,Regional Enterprise,Other Services,60040718,CONWAY AECOM LTD,"1,139.40",29/12/2015
Commercial,Regional Enterprise,Other Services,60040726,CONWAY AECOM LTD,607.68,29/12/2015
Commercial,Regional Enterprise,Other Services,60040729,CONWAY AECOM LTD,"1,139.40",29/12/2015
Commercial,Regional Enterprise,Other Services,60040746,CONWAY AECOM LTD,"80,000.00",21/12/2015
Commercial,Regional Enterprise,Other Services,60040757,CONWAY AECOM LTD,"45,000.00",21/12/2015
Commercial,Regional Enterprise,Other Services,60040777,CONWAY AECOM LTD,"69,795.00",15/12/2015
Commercial,Regional Enterprise,Other Services,60040781,CONWAY AECOM LTD,"11,116.00",15/12/2015
Commercial,Regional Enterprise,Other Services,60040793,CONWAY AECOM LTD,"21,239.00",15/12/2015
Commercial,Regional Enterprise,Other Services,60040797,CONWAY AECOM LTD,"20,422.00",15/12/2015
Commercial,Regional Enterprise,Other Services,60040803,CONWAY AECOM LTD,"4,013.00",15/12/2015
Commercial,Regional Enterprise,Other Services,60040833,CONWAY AECOM LTD,"11,264.43",15/12/2015
Commercial,Regional Enterprise,Other Services,60036963,CYCLE CONFIDENT LTD,"3,089.00",03/12/2015
Commercial,Regional Enterprise,Other Services,60037691,CYCLE CONFIDENT LTD,540,01/12/2015
Commercial,Regional Enterprise,Other Services,60038295,CYCLE CONFIDENT LTD,"24,870.69",10/12/2015
Commercial,Regional Enterprise,Other Services,60038340,CYCLE CONFIDENT LTD,"1,560.00",10/12/2015
Commercial,Regional Enterprise,Other Services,60038245,KENT COUNTY COUNCIL (KCS),30.41,14/12/2015
Commercial,Regional Enterprise,Other Services,60038246,KENT COUNTY COUNCIL (KCS),15.52,14/12/2015
Commercial,Regional Enterprise,Other Services,60038256,KENT COUNTY COUNCIL (KCS),14.16,14/12/2015
Commercial,Regional Enterprise,Other Services,60038328,KENT COUNTY COUNCIL (KCS),21.34,14/12/2015
Commercial,Regional Enterprise,Other Services,60040987,LETTERBOX DISTRIBUTION.COM,186,18/12/2015
Commercial,Regional Enterprise,Other Services,60040256,STENNIK ADVERTISING LIMITED,150,11/12/2015
Commercial,Regional Enterprise,Other Services,60039634,THE BARNETGROUP LIMITED,"15,770.00",04/12/2015
Commercial,Regional Enterprise,Other Services,60039667,THE BARNETGROUP LIMITED,"48,320.00",07/12/2015
Commercial,Regional Enterprise,Printing-Contract,60040812,TMP (UK) LTD,118.41,15/12/2015
Commercial,Regional Enterprise,Professional Services,10012879,RE (REGIONAL ENTERPRISE) LIMITED,"4,245,356.00",29/12/2015
Commercial,Regional Enterprise,Professional Services,10012881,RE (REGIONAL ENTERPRISE) LIMITED,"-98,198.00",29/12/2015
Commissioning,Commissioning,Advertising,60037904,TMP (UK) LTD,204.2,01/12/2015
Commissioning,Commissioning,Conference Expenses,20027267,KIRKLEES COUNCIL,265,29/12/2015
Commissioning,Commissioning,Consultants Fees,60039944,BARNET & DISTRICT ATHLETIC CLUB,50,14/12/2015
Commissioning,Commissioning,Consultants Fees,60040780,BARNET & DISTRICT ATHLETIC CLUB,50,16/12/2015
Commissioning,Commissioning,Consultants Fees,80001551,HJC ACTUARIAL CONSULTING LTD,"1,375.00",21/12/2015
Commissioning,Commissioning,Consultants Fees,60039979,QUALITY FIELDWORK & RESEARCH,"3,140.00",10/12/2015
Commissioning,Commissioning,Consultants Fees,60040976,REDACTED - PERSONAL DATA,350,21/12/2015
Commissioning,Commissioning,Consultants Fees,60040979,REDACTED - PERSONAL DATA,150,21/12/2015
Commissioning,Commissioning,Consultants Fees,60040149,TIME BANKING UK,"9,137.50",15/12/2015
Commissioning,Commissioning,Consultants Fees,60041071,TIME BANKING UK,"6,091.67",29/12/2015
Commissioning,Commissioning,Consultants Fees,60041102,TM&CO LTD,"6,005.00",18/12/2015
Commissioning,Commissioning,Employee Expenses,60038321,GATENBY SANDERSON,"3,035.65",08/12/2015
Commissioning,Commissioning,Employee Expenses,60038656,GATENBY SANDERSON,"3,462.35",17/12/2015
Commissioning,Commissioning,Equipment and Materials Purcha,60040092,CELARTEM INC. (DBA EXTENSIS),995,08/12/2015
Commissioning,Commissioning,Equipment and Materials Purcha,60040734,GALLIFORD TRY,"150,000.00",15/12/2015
Commissioning,Commissioning,Equipment and Materials Purcha,60041638,OCS GROUP UK LIMITED,"46,304.00",29/12/2015
Commissioning,Commissioning,Equipment and Materials Purcha,40001259,OFFICE DEPOT UK LTD,102.72,23/12/2015
Commissioning,Commissioning,Equipment and Materials Purcha,60037125,S W BRUCE & CO LTD,"100,000.00",03/12/2015
Commissioning,Commissioning,Food Costs,40001226,OFFICE DEPOT UK LTD,11.16,10/12/2015
Commissioning,Commissioning,Furniture-Purchase-Repair,60038023,BACK CARE SOLUTIONS LIMITED,28.5,24/12/2015
Commissioning,Commissioning,Furniture-Purchase-Repair,20026796,CLEAR ENVIRONMENT (OFFICE CLEARANCE) LTD,"9,600.00",10/12/2015
Commissioning,Commissioning,Furniture-Purchase-Repair,60036043,SENATOR INTERNATIONAL,"64,553.97",11/12/2015
Commissioning,Commissioning,General Office Expenses,40001231,OFFICE DEPOT UK LTD,3,10/12/2015
Commissioning,Commissioning,General Office Expenses,40001277,OFFICE DEPOT UK LTD,5.65,23/12/2015
Commissioning,Commissioning,Grant Payments,60036913,COMMUNITY BARNET,"23,750.00",07/12/2015
Commissioning,Commissioning,Grant Payments,80001591,INCLUSION BARNET,"2,500.00",23/12/2015
Commissioning,Commissioning,Grant Payments,80001527,SAAM THEATRE COMPANY,"1,620.00",08/12/2015
Commissioning,Commissioning,Grant Payments,80001434,STROKE ACTION,"2,250.00",04/12/2015
Commissioning,Commissioning,Grant Payments,80001645,THE YOUNG FOUNDATION,"3,000.00",24/12/2015
Commissioning,Commissioning,Grant Payments,80001612,VALUEYOU,"2,368.00",21/12/2015
Commissioning,Commissioning,Other Agencies - Third Party P,60035980,FAMILY FUND TRADING LTD,924.17,14/12/2015
Commissioning,Commissioning,Other Agencies - Third Party P,60037522,FAMILY FUND TRADING LTD,142,04/12/2015
Commissioning,Commissioning,Other Agencies - Third Party P,60038145,FAMILY FUND TRADING LTD,"1,672.50",14/12/2015
Commissioning,Commissioning,Other Agencies - Third Party P,60038346,FAMILY FUND TRADING LTD,"2,258.34",03/12/2015
Commissioning,Commissioning,Other Agencies - Third Party P,60039649,FAMILY FUND TRADING LTD,"1,114.17",07/12/2015
Commissioning,Commissioning,Other Agencies - Third Party P,60040679,FAMILY FUND TRADING LTD,109,15/12/2015
Commissioning,Commissioning,Other Services,60037730,4PROJECTS LTD,575,04/12/2015
Commissioning,Commissioning,Other Services,60040188,BLUE 9 SECURITY LIMITED,"4,000.00",10/12/2015
Commissioning,Commissioning,Other Services,60034049,BROOMFIELD PARK SWIMMING CLUB,250,10/12/2015
Commissioning,Commissioning,Other Services,60039573,ENVENTURE CONSULTANCY LIMITED,"5,725.00",08/12/2015
Commissioning,Commissioning,Other Services,60041221,HARROW GREEN LTD,"6,380.00",23/12/2015
Commissioning,Commissioning,Other Services,60041229,HARROW GREEN LTD,84.22,23/12/2015
Commissioning,Commissioning,Other Services,60041288,HARROW GREEN LTD,"2,734.10",23/12/2015
Commissioning,Commissioning,Other Services,60041332,HARROW GREEN LTD,"1,376.79",23/12/2015
Commissioning,Commissioning,Other Services,60041359,HARROW GREEN LTD,375.58,23/12/2015
Commissioning,Commissioning,Other Services,60041386,HARROW GREEN LTD,748.05,23/12/2015
Commissioning,Commissioning,Other Services,60039711,IMPOWER CONSULTING LIMITED,"9,768.74",23/12/2015
Commissioning,Commissioning,Other Services,60040300,INTERNATIONAL GOSPEL CHURCH,75,14/12/2015
Commissioning,Commissioning,Other Services,60041233,LONDON WEEKLY NEWSPAPERS LTD,250,21/12/2015
Commissioning,Commissioning,Other Services,60039929,LONDON YOUTH GAMES,240.68,23/12/2015
Commissioning,Commissioning,Other Services,60038446,NEWSQUEST (LONDON) LIMITED,198.84,15/12/2015
Commissioning,Commissioning,Other Services,20026663,REDACTED - PERSONAL DATA,68.6,07/12/2015
Commissioning,Commissioning,Other Services,20026664,REDACTED - PERSONAL DATA,2.76,07/12/2015
Commissioning,Commissioning,Other Services,20026665,REDACTED - PERSONAL DATA,1.84,07/12/2015
Commissioning,Commissioning,Professional Services,60040931,FUTURE PATH DEVELOPMENT CIC,"15,000.00",17/12/2015
Commissioning,Commissioning,Professional Services,10012864,LONDON BOROUGH OF EALING,"2,225.00",11/12/2015
Commissioning,Commissioning,Professional Services,60038702,TMP (UK) LTD,"1,231.00",02/12/2015
Commissioning,Commissioning,Publications,60040921,REDACTED - PERSONAL DATA,150,21/12/2015
Commissioning,Commissioning,Publications,60040941,REDACTED - PERSONAL DATA,250,21/12/2015
Commissioning,Commissioning,Publications,60040966,REDACTED - PERSONAL DATA,500,21/12/2015
Commissioning,Commissioning,Publicity,60038107,LIVEO,240,23/12/2015
Commissioning,Commissioning,Rubbish Collection,60039126,ANTHESIS (UK) LTD,"6,258.00",23/12/2015
Commissioning,Commissioning,Training,60003877,PREMIER PEOPLE SOLUTIONS LTD,478.8,10/12/2015
Commissioning,Commissioning,Ttl IT & Comms,60039293,BRITISH TELECOM PLC,25.26,02/12/2015
Commissioning,Commissioning,Venue Hire,60038078,ARIANA BANQUETING HALL,900,10/12/2015
Commissioning,Commissioning,Venue Hire,60039936,ARIANA BANQUETING HALL,"1,295.00",23/12/2015
Commissioning,Commissioning,Venue Hire,60041775,BARNET & SOUTHGATE COLLEGE,"1,612.00",29/12/2015
Commissioning,Commissioning,Venue Hire,60041779,BARNET & SOUTHGATE COLLEGE,325.5,29/12/2015
Corporate Accounting,Corporate Accounting,Miscellaneous Expenses,20026805,EAST BARNET SCHOOL,280,10/12/2015
Corporate Accounting,Corporate Accounting,Miscellaneous Expenses,20027090,REDACTED - PERSONAL DATA,"1,390.00",18/12/2015
Corporate Accounting,Corporate Accounting,Other Local Authorities - Thir,EBX0092869,GREATER LONDON AUTHORITY,"233,647.00",10/12/2015
Corporate Accounting,Corporate Accounting,Other Local Authorities - Thir,EBX0092996,GREATER LONDON AUTHORITY,"1,642,337.00",11/12/2015
Corporate Accounting,Corporate Accounting,Other Local Authorities - Thir,EBX0094335,GREATER LONDON AUTHORITY,"4,004,237.40",23/12/2015
Corporate Accounting,Corporate Accounting,Other Transfer Payments to Soc,20026620,CITIBANK NA LONDON,43.5,07/12/2015
Corporate Accounting,Corporate Accounting,Other Transfer Payments to Soc,60034147,CITIBANK NA LONDON,277.9,08/12/2015
Corporate Accounting,Corporate Accounting,Other Transfer Payments to Soc,60035206,CITIBANK NA LONDON,"2,354.26",08/12/2015
Corporate Accounting,Corporate Accounting,Other Transfer Payments to Soc,60035804,CITIBANK NA LONDON,100,08/12/2015
Corporate Accounting,Corporate Accounting,Other Transfer Payments to Soc,60036892,CITIBANK NA LONDON,"2,771.12",03/12/2015
Corporate Accounting,Corporate Accounting,Other Transfer Payments to Soc,60037230,CITIBANK NA LONDON,"1,116.26",08/12/2015
Corporate Accounting,Corporate Accounting,Other Transfer Payments to Soc,60037280,CITIBANK NA LONDON,350.53,08/12/2015
Corporate Accounting,Corporate Accounting,Other Transfer Payments to Soc,60037305,CITIBANK NA LONDON,507.9,08/12/2015
Corporate Accounting,Corporate Accounting,Other Transfer Payments to Soc,60037324,CITIBANK NA LONDON,710.82,17/12/2015
Corporate Accounting,Corporate Accounting,Other Transfer Payments to Soc,60039020,CITIBANK NA LONDON,10,08/12/2015
Corporate Accounting,Corporate Accounting,Other Transfer Payments to Soc,60039039,CITIBANK NA LONDON,"2,525.16",08/12/2015
Corporate Accounting,Corporate Accounting,Other Transfer Payments to Soc,60039114,CITIBANK NA LONDON,115.8,16/12/2015
Corporate Accounting,Corporate Accounting,Other Transfer Payments to Soc,60039124,CITIBANK NA LONDON,"3,489.73",08/12/2015
Corporate Accounting,Corporate Accounting,Other Transfer Payments to Soc,60039170,CITIBANK NA LONDON,508,02/12/2015
Corporate Accounting,Corporate Accounting,Other Transfer Payments to Soc,60039234,CITIBANK NA LONDON,802.9,02/12/2015
Corporate Accounting,Corporate Accounting,Other Transfer Payments to Soc,60039238,CITIBANK NA LONDON,572.36,02/12/2015
Corporate Accounting,Corporate Accounting,Other Transfer Payments to Soc,60039242,CITIBANK NA LONDON,50,03/12/2015
Corporate Accounting,Corporate Accounting,Other Transfer Payments to Soc,60039272,CITIBANK NA LONDON,293.5,03/12/2015
Corporate Accounting,Corporate Accounting,Other Transfer Payments to Soc,60039302,CITIBANK NA LONDON,140,03/12/2015
Corporate Accounting,Corporate Accounting,Other Transfer Payments to Soc,60039317,CITIBANK NA LONDON,185,03/12/2015
Corporate Accounting,Corporate Accounting,Other Transfer Payments to Soc,60039398,CITIBANK NA LONDON,572.6,03/12/2015
Corporate Accounting,Corporate Accounting,Other Transfer Payments to Soc,60039432,CITIBANK NA LONDON,339,04/12/2015
Corporate Accounting,Corporate Accounting,Other Transfer Payments to Soc,60039629,CITIBANK NA LONDON,75,07/12/2015
Corporate Accounting,Corporate Accounting,Other Transfer Payments to Soc,60039641,CITIBANK NA LONDON,246.7,07/12/2015
Corporate Accounting,Corporate Accounting,Other Transfer Payments to Soc,60039675,CITIBANK NA LONDON,261,07/12/2015
Corporate Accounting,Corporate Accounting,Other Transfer Payments to Soc,60039681,CITIBANK NA LONDON,95.1,07/12/2015
Corporate Accounting,Corporate Accounting,Other Transfer Payments to Soc,60039691,CITIBANK NA LONDON,"3,164.00",07/12/2015
Corporate Accounting,Corporate Accounting,Other Transfer Payments to Soc,60039707,CITIBANK NA LONDON,17,07/12/2015
Corporate Accounting,Corporate Accounting,Other Transfer Payments to Soc,60039800,CITIBANK NA LONDON,96.86,07/12/2015
Corporate Accounting,Corporate Accounting,Other Transfer Payments to Soc,60039828,CITIBANK NA LONDON,74.86,07/12/2015
Corporate Accounting,Corporate Accounting,Other Transfer Payments to Soc,60039969,CITIBANK NA LONDON,362.9,08/12/2015
Corporate Accounting,Corporate Accounting,Other Transfer Payments to Soc,60040496,CITIBANK NA LONDON,199.75,14/12/2015
Corporate Accounting,Corporate Accounting,Other Transfer Payments to Soc,60040537,CITIBANK NA LONDON,750,14/12/2015
Corporate Accounting,Corporate Accounting,Other Transfer Payments to Soc,60040554,CITIBANK NA LONDON,383,14/12/2015
Corporate Accounting,Corporate Accounting,Other Transfer Payments to Soc,60040594,CITIBANK NA LONDON,57.9,14/12/2015
Corporate Accounting,Corporate Accounting,Other Transfer Payments to Soc,60040599,CITIBANK NA LONDON,300,14/12/2015
Corporate Accounting,Corporate Accounting,Other Transfer Payments to Soc,60040603,CITIBANK NA LONDON,"16,443.40",14/12/2015
Corporate Accounting,Corporate Accounting,Other Transfer Payments to Soc,60040743,CITIBANK NA LONDON,165.98,16/12/2015
Corporate Accounting,Corporate Accounting,Other Transfer Payments to Soc,60040758,CITIBANK NA LONDON,295.8,16/12/2015
Corporate Accounting,Corporate Accounting,Other Transfer Payments to Soc,60040775,CITIBANK NA LONDON,117.9,16/12/2015
Corporate Accounting,Corporate Accounting,Other Transfer Payments to Soc,60040827,CITIBANK NA LONDON,200,16/12/2015
Corporate Accounting,Corporate Accounting,Other Transfer Payments to Soc,60040828,CITIBANK NA LONDON,"1,622.80",16/12/2015
Corporate Accounting,Corporate Accounting,Other Transfer Payments to Soc,60041193,CITIBANK NA LONDON,800,22/12/2015
Corporate Accounting,Corporate Accounting,Other Transfer Payments to Soc,60041205,CITIBANK NA LONDON,238.48,22/12/2015
Corporate Accounting,Corporate Accounting,Other Transfer Payments to Soc,60041237,CITIBANK NA LONDON,50,22/12/2015
Corporate Accounting,Corporate Accounting,Other Transfer Payments to Soc,60041277,CITIBANK NA LONDON,"3,290.32",22/12/2015
Corporate Accounting,Corporate Accounting,Other Transfer Payments to Soc,60041363,CITIBANK NA LONDON,900,22/12/2015
Corporate Accounting,Corporate Accounting,Other Transfer Payments to Soc,60041408,CITIBANK NA LONDON,808.6,22/12/2015
Corporate Accounting,Corporate Accounting,Other Transfer Payments to Soc,60041650,CITIBANK NA LONDON,250,29/12/2015
Corporate Accounting,Corporate Accounting,Other Transfer Payments to Soc,60041709,CITIBANK NA LONDON,"8,808.52",29/12/2015
Corporate Accounting,Corporate Accounting,Other Transfer Payments to Soc,60041761,CITIBANK NA LONDON,333.75,29/12/2015
Corporate Accounting,Corporate Accounting,Other Transfer Payments to Soc,60041766,CITIBANK NA LONDON,66.03,29/12/2015
Delivery Units,Adults and Communities,Advertising,60030406,TMP (UK) LTD,"1,485.00",16/12/2015
Delivery Units,Adults and Communities,Advertising,60040183,TMP (UK) LTD,"1,326.05",08/12/2015
Delivery Units,Adults and Communities,Advertising for staff,60029974,PREMIER PEOPLE SOLUTIONS LTD,-935,29/12/2015
Delivery Units,Adults and Communities,Advertising for staff,60040015,PREMIER PEOPLE SOLUTIONS LTD,"2,307.00",29/12/2015
Delivery Units,Adults and Communities,Building Repairs & Maintenance,60038290,CAMBS-PAT LTD,389.5,09/12/2015
Delivery Units,Adults and Communities,Cleaning and domestic material,40001255,OFFICE DEPOT UK LTD,7.14,21/12/2015
Delivery Units,Adults and Communities,Cleaning and domestic material,40001284,OFFICE DEPOT UK LTD,54.4,29/12/2015
Delivery Units,Adults and Communities,Cleaning and domestic material,60038811,SUPERCLEAN SERVICES WOTHORPE LTD,602.55,08/12/2015
Delivery Units,Adults and Communities,Consultants Fees,60040363,FOCUS CONSULTANTS 2010 LLP,562.5,29/12/2015
Delivery Units,Adults and Communities,Consultants Fees,20027143,LONDON BOROUGH OF WALTHAM FOREST,"12,220.22",22/12/2015
Delivery Units,Adults and Communities,Consultants Fees,20027144,LONDON BOROUGH OF WALTHAM FOREST,"12,845.15",22/12/2015
Delivery Units,Adults and Communities,Consultants Fees,60037697,WILLIAM STURGES & CO,"1,069.00",14/12/2015
Delivery Units,Adults and Communities,Electricity,60030260,KENT COUNTY COUNCIL (KCS),342.01,11/12/2015
Delivery Units,Adults and Communities,Employee Expenses,60038011,BARNET ENFIELD & HARINGEY MENTAL,"51,174.00",14/12/2015
Delivery Units,Adults and Communities,Employee Expenses,60040024,CENTRAL LONDONCOMMUNITY HEALTHCARE,"88,097.00",07/12/2015
Delivery Units,Adults and Communities,Employee Expenses,60039814,TMP (UK) LTD,"1,534.60",07/12/2015
Delivery Units,Adults and Communities,Equipment and Materials Purcha,60038059,MEDEQUIP ASSISTIVE TECHNOLOGY LTD,"1,310.02",09/12/2015
Delivery Units,Adults and Communities,Equipment and Materials Purcha,60038092,MEDEQUIP ASSISTIVE TECHNOLOGY LTD,551.4,09/12/2015
Delivery Units,Adults and Communities,Equipment and Materials Purcha,60038132,MEDEQUIP ASSISTIVE TECHNOLOGY LTD,"2,166.01",09/12/2015
Delivery Units,Adults and Communities,Equipment and Materials Purcha,60038179,MEDEQUIP ASSISTIVE TECHNOLOGY LTD,468,09/12/2015
Delivery Units,Adults and Communities,Food Costs,60039413,DAIRY CREST LIMITED,2.88,11/12/2015
Delivery Units,Adults and Communities,Food Costs,60039442,DAIRY CREST LIMITED,2.88,04/12/2015
Delivery Units,Adults and Communities,Food Costs,60039514,DAIRY CREST LIMITED,2.88,04/12/2015
Delivery Units,Adults and Communities,Food Costs,60039531,DAIRY CREST LIMITED,2.88,04/12/2015
Delivery Units,Adults and Communities,Food Costs,60040419,DAIRY CREST LIMITED,2.88,18/12/2015
Delivery Units,Adults and Communities,Food Costs,60040762,DAIRY CREST LIMITED,2.88,23/12/2015
Delivery Units,Adults and Communities,Food Costs,60041680,DAIRY CREST LIMITED,2.88,29/12/2015
Delivery Units,Adults and Communities,Furniture-Purchase-Repair,60039676,NORTH LONDON LOCKSMITHS LTD,75,07/12/2015
Delivery Units,Adults and Communities,Gas,60035523,BRITISH GAS BUSINESS,200.9,09/12/2015
Delivery Units,Adults and Communities,Gas,60039479,BRITISH GAS BUSINESS,778.92,03/12/2015
Delivery Units,Adults and Communities,Gas,60039478,KENT COUNTY COUNCIL (KCS),94.14,11/12/2015
Delivery Units,Adults and Communities,Gas,60041242,KENT COUNTY COUNCIL (KCS),209.69,29/12/2015
Delivery Units,Adults and Communities,General Office Expenses,40001293,OFFICE DEPOT UK LTD,3.02,29/12/2015
Delivery Units,Adults and Communities,Grant Payments,20026541,REDACTED - PERSONAL DATA,"1,050.00",03/12/2015
Delivery Units,Adults and Communities,Grant Payments,20026654,SOUTH HERTFORDSHIRE,"1,260.00",07/12/2015
Delivery Units,Adults and Communities,Other Agencies - Third Party P,30102983,AARON COURT CARE HOME,"2,144.91",08/12/2015
Delivery Units,Adults and Communities,Other Agencies - Third Party P,30102924,ABBEY RAVENSCROFT PARK NURSING HOME,"2,569.89",08/12/2015
Delivery Units,Adults and Communities,Other Agencies - Third Party P,30102925,ABBEY RAVENSCROFT PARK NURSING HOME,"2,569.89",08/12/2015
Delivery Units,Adults and Communities,Other Agencies - Third Party P,30102926,ABBEY RAVENSCROFT PARK NURSING HOME,"2,369.79",08/12/2015
Delivery Units,Adults and Communities,Other Agencies - Third Party P,30102927,ABBEY RAVENSCROFT PARK NURSING HOME,"2,320.37",08/12/2015
Delivery Units,Adults and Communities,Other Agencies - Third Party P,30103439,ABBEY RAVENSCROFT PARK NURSING HOME,"2,569.89",14/12/2015
Delivery Units,Adults and Communities,Other Agencies - Third Party P,30103441,ABBEY RAVENSCROFT PARK NURSING HOME,"2,320.37",14/12/2015
Delivery Units,Adults and Communities,Other Agencies - Third Party P,30103442,ABBEY RAVENSCROFT PARK NURSING HOME,"2,569.89",14/12/2015
Delivery Units,Adults and Communities,Other Agencies - Third Party P,30103443,ABBEY RAVENSCROFT PARK NURSING HOME,"2,569.89",14/12/2015
Delivery Units,Adults and Communities,Other Agencies - Third Party P,30103444,ABBEY RAVENSCROFT PARK NURSING HOME,"2,569.89",14/12/2015
Delivery Units,Adults and Communities,Other Agencies - Third Party P,30104110,ABBEY RAVENSCROFT PARK NURSING HOME,"2,569.89",18/12/2015
Delivery Units,Adults and Communities,Other Agencies - Third Party P,30102726,ABOUT ME CARE & SUPPORT LTD,"1,365.84",07/12/2015
Delivery Units,Adults and Communities,Other Agencies - Third Party P,30102570,ACCEDO CARE LTD,"8,960.00",07/12/2015
Delivery Units,Adults and Communities,Other Agencies - Third Party P,30103326,ACCEDO CARE LTD,"5,600.00",14/12/2015
Delivery Units,Adults and Communities,Other Agencies - Third Party P,30102776,ACTION ON HEARING LOSS,"32,612.84",07/12/2015
Delivery Units,Adults and Communities,Other Agencies - Third Party P,30102777,ACTION ON HEARING LOSS,"-2,516.51",07/12/2015
Delivery Units,Adults and Communities,Other Agencies - Third Party P,30104699,ADDICTION RECOVERY CENTRE,"2,900.00",23/12/2015
Delivery Units,Adults and Communities,Other Agencies - Third Party P,30102658,AGUDAS ISRAEL HOUSING ASSCTN LTD,"3,321.42",07/12/2015
Delivery Units,Adults and Communities,Other Agencies - Third Party P,30102659,AGUDAS ISRAEL HOUSING ASSCTN LTD,-559.32,07/12/2015
Delivery Units,Adults and Communities,Other Agencies - Third Party P,30102660,AGUDAS ISRAEL HOUSING ASSCTN LTD,"3,154.25",07/12/2015
Delivery Units,Adults and Communities,Other Agencies - Third Party P,30102661,AGUDAS ISRAEL HOUSING ASSCTN LTD,"1,357.14",07/12/2015
Delivery Units,Adults and Communities,Other Agencies - Third Party P,30102662,AGUDAS ISRAEL HOUSING ASSCTN LTD,"2,527.83",07/12/2015
Delivery Units,Adults and Communities,Other Agencies - Third Party P,30102672,AGUDAS ISRAEL HOUSING ASSCTN LTD,"3,214.29",10/12/2015
Delivery Units,Adults and Communities,Other Agencies - Third Party P,30102673,AGUDAS ISRAEL HOUSING ASSCTN LTD,-541.29,10/12/2015
Delivery Units,Adults and Communities,Other Agencies - Third Party P,30102674,AGUDAS ISRAEL HOUSING ASSCTN LTD,"3,052.50",10/12/2015
Delivery Units,Adults and Communities,Other Agencies - Third Party P,30102675,AGUDAS ISRAEL HOUSING ASSCTN LTD,"2,446.29",10/12/2015
Delivery Units,Adults and Communities,Other Agencies - Third Party P,30102637,ALL ABOUT CARE,"1,613.10",07/12/2015
Delivery Units,Adults and Communities,Other Agencies - Third Party P,30102258,ALWYCK HOUSING GROUP,"2,757.39",02/12/2015
Delivery Units,Adults and Communities,Other Agencies - Third Party P,30102576,ALWYCK HOUSING GROUP,"2,430.90",07/12/2015
Delivery Units,Adults and Communities,Other Agencies - Third Party P,30104367,ALWYCK HOUSING GROUP,"2,031.76",22/12/2015
Delivery Units,Adults and Communities,Other Agencies - Third Party P,30103389,ANASTASIA LODGE,"3,000.00",14/12/2015
Delivery Units,Adults and Communities,Other Agencies - Third Party P,30103458,ANCASTER COURT NURSING HOME,"2,487.77",14/12/2015
Delivery Units,Adults and Communities,Other Agencies - Third Party P,30103438,ANCHOR TRUST,"2,232.64",14/12/2015
Delivery Units,Adults and Communities,Other Agencies - Third Party P,30103039,APEX CARE HOME LTD,"3,999.69",08/12/2015
Delivery Units,Adults and Communities,Other Agencies - Third Party P,30103040,APEX CARE HOME LTD,-344.79,08/12/2015
Delivery Units,Adults and Communities,Other Agencies - Third Party P,30102968,ASHFIELDS RESIDENTIAL CARE HOME,"2,657.14",29/12/2015
Delivery Units,Adults and Communities,Other Agencies - Third Party P,30102969,ASHFIELDS RESIDENTIAL CARE HOME,"2,571.43",08/12/2015
Delivery Units,Adults and Communities,Other Agencies - Third Party P,30102970,ASHFIELDS RESIDENTIAL CARE HOME,"2,144.91",08/12/2015
Delivery Units,Adults and Communities,Other Agencies - Third Party P,30102971,ASHFIELDS RESIDENTIAL CARE HOME,"2,340.04",08/12/2015
Delivery Units,Adults and Communities,Other Agencies - Third Party P,30102972,ASHFIELDS RESIDENTIAL CARE HOME,"2,340.04",08/12/2015
Delivery Units,Adults and Communities,Other Agencies - Third Party P,30102973,ASHFIELDS RESIDENTIAL CARE HOME,"2,216.41",29/12/2015
Delivery Units,Adults and Communities,Other Agencies - Third Party P,30102974,ASHFIELDS RESIDENTIAL CARE HOME,"2,418.04",29/12/2015
Delivery Units,Adults and Communities,Other Agencies - Third Party P,30102975,ASHFIELDS RESIDENTIAL CARE HOME,"2,418.04",29/12/2015
Delivery Units,Adults and Communities,Other Agencies - Third Party P,30104113,ASHTON LODGE CARE CENTRE,"2,569.89",18/12/2015
Delivery Units,Adults and Communities,Other Agencies - Third Party P,30104114,ASHTON LODGE CARE CENTRE,"2,569.89",18/12/2015
Delivery Units,Adults and Communities,Other Agencies - Third Party P,30104115,ASHTON LODGE CARE CENTRE,"2,569.89",18/12/2015
Delivery Units,Adults and Communities,Other Agencies - Third Party P,30104116,ASHTON LODGE CARE CENTRE,"2,369.79",18/12/2015
Delivery Units,Adults and Communities,Other Agencies - Third Party P,30104121,ASHTON LODGE CARE CENTRE,"4,426.33",18/12/2015
Delivery Units,Adults and Communities,Other Agencies - Third Party P,30104129,ASHTON LODGE CARE CENTRE,"2,320.37",18/12/2015
Delivery Units,Adults and Communities,Other Agencies - Third Party P,30104132,ASHTON LODGE CARE CENTRE,"2,369.79",18/12/2015
Delivery Units,Adults and Communities,Other Agencies - Third Party P,30104134,ASHTON LODGE CARE CENTRE,"2,421.43",18/12/2015
Delivery Units,Adults and Communities,Other Agencies - Third Party P,30104188,ASHTON LODGE CARE CENTRE,"2,369.79",18/12/2015
Delivery Units,Adults and Communities,Other Agencies - Third Party P,30104191,ASHTON LODGE CARE CENTRE,"2,320.37",18/12/2015
Delivery Units,Adults and Communities,Other Agencies - Third Party P,30104193,ASHTON LODGE CARE CENTRE,"2,569.89",18/12/2015
Delivery Units,Adults and Communities,Other Agencies - Third Party P,30104679,ASHTON LODGE CARE CENTRE,"2,571.43",23/12/2015
Delivery Units,Adults and Communities,Other Agencies - Third Party P,30104707,ASHTON LODGE CARE CENTRE,"3,900.86",23/12/2015
Delivery Units,Adults and Communities,Other Agencies - Third Party P,30102989,ASPEN VILLAGES LTD,"2,144.91",08/12/2015
Delivery Units,Adults and Communities,Other Agencies - Third Party P,30102990,ASPEN VILLAGES LTD,"2,487.77",08/12/2015
Delivery Units,Adults and Communities,Other Agencies - Third Party P,30102991,ASPEN VILLAGES LTD,"3,214.29",08/12/2015
Delivery Units,Adults and Communities,Other Agencies - Third Party P,30102992,ASPEN VILLAGES LTD,"3,428.57",08/12/2015
Delivery Units,Adults and Communities,Other Agencies - Third Party P,30102993,ASPEN VILLAGES LTD,"4,714.29",08/12/2015
Delivery Units,Adults and Communities,Other Agencies - Third Party P,30102994,ASPEN VILLAGES LTD,"3,642.86",08/12/2015
Delivery Units,Adults and Communities,Other Agencies - Third Party P,30103412,AUTUMN GARDENS,"9,240.00",14/12/2015
Delivery Units,Adults and Communities,Other Agencies - Third Party P,30103413,AUTUMN GARDENS,"2,800.00",14/12/2015
Delivery Units,Adults and Communities,Other Agencies - Third Party P,30103414,AUTUMN GARDENS,"2,880.00",14/12/2015
Delivery Units,Adults and Communities,Other Agencies - Third Party P,30103416,AUTUMN GARDENS,"2,184.04",14/12/2015
Delivery Units,Adults and Communities,Other Agencies - Third Party P,30103417,AUTUMN GARDENS,"2,800.00",14/12/2015
Delivery Units,Adults and Communities,Other Agencies - Third Party P,30103418,AUTUMN GARDENS,"2,880.00",14/12/2015
Delivery Units,Adults and Communities,Other Agencies - Third Party P,30103419,AUTUMN GARDENS,"3,850.00",14/12/2015
Delivery Units,Adults and Communities,Other Agencies - Third Party P,20026656,B & M CARE,"2,340.04",07/12/2015
Delivery Units,Adults and Communities,Other Agencies - Third Party P,30102758,B & M CARE,"2,144.91",07/12/2015
Delivery Units,Adults and Communities,Other Agencies - Third Party P,30102759,B & M CARE,"2,340.04",07/12/2015
Delivery Units,Adults and Communities,Other Agencies - Third Party P,30102760,B & M CARE,"2,340.00",07/12/2015
Delivery Units,Adults and Communities,Other Agencies - Third Party P,30102761,B & M CARE,-556.59,07/12/2015
Delivery Units,Adults and Communities,Other Agencies - Third Party P,30102762,B & M CARE,"2,340.04",07/12/2015
Delivery Units,Adults and Communities,Other Agencies - Third Party P,30102763,B & M CARE,"2,340.04",07/12/2015
Delivery Units,Adults and Communities,Other Agencies - Third Party P,30102764,B & M CARE,"2,369.79",07/12/2015
Delivery Units,Adults and Communities,Other Agencies - Third Party P,30104120,B & M CARE,"2,892.86",18/12/2015
Delivery Units,Adults and Communities,Other Agencies - Third Party P,30104427,B & M CARE,"2,314.47",22/12/2015
Delivery Units,Adults and Communities,Other Agencies - Third Party P,30104428,B & M CARE,"2,509.27",22/12/2015
Delivery Units,Adults and Communities,Other Agencies - Third Party P,30104429,B & M CARE,"2,509.27",22/12/2015
Delivery Units,Adults and Communities,Other Agencies - Third Party P,30104037,BARNET CENTRE FOR INDEPENDENT LIVIN,"12,085.97",17/12/2015
Delivery Units,Adults and Communities,Other Agencies - Third Party P,30104038,BARNET HOMES LIMITED,"13,674.99",17/12/2015
Delivery Units,Adults and Communities,Other Agencies - Third Party P,30104164,BARNET MENCAP,589.65,18/12/2015
Delivery Units,Adults and Communities,Other Agencies - Third Party P,30104454,BARNET MENCAP,"18,197.25",22/12/2015
Delivery Units,Adults and Communities,Other Agencies - Third Party P,30104455,BARNET MENCAP,"18,197.25",22/12/2015
Delivery Units,Adults and Communities,Other Agencies - Third Party P,30102707,BAYTREE COMMUNITY CARE (LONDON) LTD,-541.29,07/12/2015
Delivery Units,Adults and Communities,Other Agencies - Third Party P,30102708,BAYTREE COMMUNITY CARE (LONDON) LTD,"3,424.27",07/12/2015
Delivery Units,Adults and Communities,Other Agencies - Third Party P,30102890,BAYTREE COMMUNITY CARE (LONDON) LTD,734.4,08/12/2015
Delivery Units,Adults and Communities,Other Agencies - Third Party P,30102891,BAYTREE COMMUNITY CARE (LONDON) LTD,734.4,08/12/2015
Delivery Units,Adults and Communities,Other Agencies - Third Party P,30102892,BAYTREE COMMUNITY CARE (LONDON) LTD,"1,280.00",08/12/2015
Delivery Units,Adults and Communities,Other Agencies - Third Party P,30102893,BAYTREE COMMUNITY CARE (LONDON) LTD,"1,280.00",08/12/2015
Delivery Units,Adults and Communities,Other Agencies - Third Party P,30104392,BAYTREE COMMUNITY CARE (LONDON) LTD,734.4,22/12/2015
Delivery Units,Adults and Communities,Other Agencies - Third Party P,30104393,BAYTREE COMMUNITY CARE (LONDON) LTD,"1,280.00",22/12/2015
Delivery Units,Adults and Communities,Other Agencies - Third Party P,30102682,BENSLOW MANAGEMENT COMPANY LIMITED,"2,340.04",07/12/2015
Delivery Units,Adults and Communities,Other Agencies - Third Party P,30103464,BIRCHWOOD GRANGE CARE HOME,"2,571.43",14/12/2015
Delivery Units,Adults and Communities,Other Agencies - Third Party P,30103465,BIRCHWOOD GRANGE CARE HOME,"2,487.77",14/12/2015
Delivery Units,Adults and Communities,Other Agencies - Third Party P,30104412,BIRCHWOOD GRANGE CARE HOME,"2,657.14",22/12/2015
Delivery Units,Adults and Communities,Other Agencies - Third Party P,30104413,BIRCHWOOD GRANGE CARE HOME,"2,570.70",22/12/2015
Delivery Units,Adults and Communities,Other Agencies - Third Party P,30102857,BRADBURY HOUSE ORGANISATION,"3,349.07",08/12/2015
Delivery Units,Adults and Communities,Other Agencies - Third Party P,30102858,BRADBURY HOUSE ORGANISATION,-344.79,08/12/2015
Delivery Units,Adults and Communities,Other Agencies - Third Party P,30103327,BROADWAY LODGE,"9,540.00",14/12/2015
Delivery Units,Adults and Communities,Other Agencies - Third Party P,30102542,BROOKDALE HEALTHCARE,"9,000.00",07/12/2015
Delivery Units,Adults and Communities,Other Agencies - Third Party P,30102543,BROOKDALE HEALTHCARE,"9,300.00",07/12/2015
Delivery Units,Adults and Communities,Other Agencies - Third Party P,30102544,BROOKDALE HEALTHCARE,"7,554.90",07/12/2015
Delivery Units,Adults and Communities,Other Agencies - Third Party P,30102546,BROOKDALE HEALTHCARE,"9,497.70",07/12/2015
Delivery Units,Adults and Communities,Other Agencies - Third Party P,30102841,BROOKDALE HEALTHCARE,"9,672.90",08/12/2015
Delivery Units,Adults and Communities,Other Agencies - Third Party P,30104524,BROOKDALE HEALTHCARE,"3,759.36",23/12/2015
Delivery Units,Adults and Communities,Other Agencies - Third Party P,30104575,BROOKDALE HEALTHCARE,"9,995.33",23/12/2015
Delivery Units,Adults and Communities,Other Agencies - Third Party P,30104798,BROOKDALE HEALTHCARE,"9,300.00",24/12/2015
Delivery Units,Adults and Communities,Other Agencies - Third Party P,30104799,BROOKDALE HEALTHCARE,"9,610.00",24/12/2015
Delivery Units,Adults and Communities,Other Agencies - Third Party P,30104800,BROOKDALE HEALTHCARE,"7,806.73",24/12/2015
Delivery Units,Adults and Communities,Other Agencies - Third Party P,30104802,BROOKDALE HEALTHCARE,"9,814.29",24/12/2015
Delivery Units,Adults and Communities,Other Agencies - Third Party P,30102765,BUPA CARE HOMES,"2,318.93",07/12/2015
Delivery Units,Adults and Communities,Other Agencies - Third Party P,30102766,BUPA CARE HOMES,"2,244.13",07/12/2015
Delivery Units,Adults and Communities,Other Agencies - Third Party P,30102767,BUPA CARE HOMES,"2,318.93",07/12/2015
Delivery Units,Adults and Communities,Other Agencies - Third Party P,30102768,BUPA CARE HOMES,"2,318.93",07/12/2015
Delivery Units,Adults and Communities,Other Agencies - Third Party P,30102769,BUPA CARE HOMES,"2,878.57",07/12/2015
Delivery Units,Adults and Communities,Other Agencies - Third Party P,30102770,BUPA CARE HOMES,"1,047.26",07/12/2015
Delivery Units,Adults and Communities,Other Agencies - Third Party P,30102771,BUPA CARE HOMES,"3,153.69",07/12/2015
Delivery Units,Adults and Communities,Other Agencies - Third Party P,30102772,BUPA CARE HOMES,"3,214.29",07/12/2015
Delivery Units,Adults and Communities,Other Agencies - Third Party P,30102773,BUPA CARE HOMES,"3,214.29",07/12/2015
Delivery Units,Adults and Communities,Other Agencies - Third Party P,30103003,BUPA CARE HOMES,"2,144.91",08/12/2015
Delivery Units,Adults and Communities,Other Agencies - Third Party P,30103004,BUPA CARE HOMES,"2,528.57",08/12/2015
Delivery Units,Adults and Communities,Other Agencies - Third Party P,30103005,BUPA CARE HOMES,"2,340.04",08/12/2015
Delivery Units,Adults and Communities,Other Agencies - Third Party P,30103047,BUPA CARE HOMES,"2,239.37",08/12/2015
Delivery Units,Adults and Communities,Other Agencies - Third Party P,30103048,BUPA CARE HOMES,"2,239.37",08/12/2015
Delivery Units,Adults and Communities,Other Agencies - Third Party P,30103055,BUPA CARE HOMES,"4,686.43",08/12/2015
Delivery Units,Adults and Communities,Other Agencies - Third Party P,30103495,BUPA CARE HOMES,"1,950.04",14/12/2015
Delivery Units,Adults and Communities,Other Agencies - Third Party P,30103577,BUPA CARE HOMES,663.41,11/12/2015
Delivery Units,Adults and Communities,Other Agencies - Third Party P,30104023,BUPA CARE HOMES,"2,318.93",16/12/2015
Delivery Units,Adults and Communities,Other Agencies - Third Party P,30104122,BUPA CARE HOMES,"1,570.89",18/12/2015
Delivery Units,Adults and Communities,Other Agencies - Third Party P,30104123,BUPA CARE HOMES,598.43,18/12/2015
Delivery Units,Adults and Communities,Other Agencies - Third Party P,30104124,BUPA CARE HOMES,"2,244.13",18/12/2015
Delivery Units,Adults and Communities,Other Agencies - Third Party P,30104125,BUPA CARE HOMES,"2,829.73",18/12/2015
Delivery Units,Adults and Communities,Other Agencies - Third Party P,30104126,BUPA CARE HOMES,"2,227.80",18/12/2015
Delivery Units,Adults and Communities,Other Agencies - Third Party P,30104127,BUPA CARE HOMES,"2,244.13",18/12/2015
Delivery Units,Adults and Communities,Other Agencies - Third Party P,30104128,BUPA CARE HOMES,-946.11,18/12/2015
Delivery Units,Adults and Communities,Other Agencies - Third Party P,30104194,BUPA CARE HOMES,"2,487.77",18/12/2015
Delivery Units,Adults and Communities,Other Agencies - Third Party P,30104195,BUPA CARE HOMES,"2,330.19",18/12/2015
Delivery Units,Adults and Communities,Other Agencies - Third Party P,30104430,BUPA CARE HOMES,149.61,22/12/2015
Delivery Units,Adults and Communities,Other Agencies - Third Party P,30104666,BUPA CARE HOMES,"7,500.00",23/12/2015
Delivery Units,Adults and Communities,Other Agencies - Third Party P,30104667,BUPA CARE HOMES,"4,428.57",23/12/2015
Delivery Units,Adults and Communities,Other Agencies - Third Party P,30104668,BUPA CARE HOMES,"2,244.13",23/12/2015
Delivery Units,Adults and Communities,Other Agencies - Third Party P,30104669,BUPA CARE HOMES,"2,244.13",23/12/2015
Delivery Units,Adults and Communities,Other Agencies - Third Party P,30104670,BUPA CARE HOMES,"2,785.71",23/12/2015
Delivery Units,Adults and Communities,Other Agencies - Third Party P,30104671,BUPA CARE HOMES,"4,285.71",23/12/2015
Delivery Units,Adults and Communities,Other Agencies - Third Party P,30104672,BUPA CARE HOMES,"3,153.69",23/12/2015
Delivery Units,Adults and Communities,Other Agencies - Third Party P,30103014,CAMBIAN BEECHES,"12,739.80",08/12/2015
Delivery Units,Adults and Communities,Other Agencies - Third Party P,30103394,CAMPHILL DEVON COMMUNITY LIMITED,"4,508.00",14/12/2015
Delivery Units,Adults and Communities,Other Agencies - Third Party P,30102640,CANDLE COURT NURSING HOME,"4,375.43",07/12/2015
Delivery Units,Adults and Communities,Other Agencies - Third Party P,30102641,CANDLE COURT NURSING HOME,"3,764.29",07/12/2015
Delivery Units,Adults and Communities,Other Agencies - Third Party P,30102642,CANDLE COURT NURSING HOME,"4,234.29",07/12/2015
Delivery Units,Adults and Communities,Other Agencies - Third Party P,30102643,CANDLE COURT NURSING HOME,"2,487.77",07/12/2015
Delivery Units,Adults and Communities,Other Agencies - Third Party P,30102644,CANDLE COURT NURSING HOME,"2,487.77",07/12/2015
Delivery Units,Adults and Communities,Other Agencies - Third Party P,30102645,CANDLE COURT NURSING HOME,"3,642.86",07/12/2015
Delivery Units,Adults and Communities,Other Agencies - Third Party P,30102647,CANDLE COURT NURSING HOME,82.11,07/12/2015
Delivery Units,Adults and Communities,Other Agencies - Third Party P,30102648,CANDLE COURT NURSING HOME,82.11,07/12/2015
Delivery Units,Adults and Communities,Other Agencies - Third Party P,30104858,CANDLE COURT NURSING HOME,"3,061.34",24/12/2015
Delivery Units,Adults and Communities,Other Agencies - Third Party P,30104860,CANDLE COURT NURSING HOME,"2,487.77",24/12/2015
Delivery Units,Adults and Communities,Other Agencies - Third Party P,30104861,CANDLE COURT NURSING HOME,"2,487.77",24/12/2015
Delivery Units,Adults and Communities,Other Agencies - Third Party P,30104862,CANDLE COURT NURSING HOME,-491.08,24/12/2015
Delivery Units,Adults and Communities,Other Agencies - Third Party P,30103000,CARE ASSIST LIMITED,"4,071.43",08/12/2015
Delivery Units,Adults and Communities,Other Agencies - Third Party P,30103001,CARE ASSIST LIMITED,"4,071.43",08/12/2015
Delivery Units,Adults and Communities,Other Agencies - Third Party P,30102987,CARE UK COMMUNITY PARTNERSHIPS,"2,774.96",08/12/2015
Delivery Units,Adults and Communities,Other Agencies - Third Party P,30103858,CARE WORLDWIDE (LONDON) LTD,"2,680.88",15/12/2015
Delivery Units,Adults and Communities,Other Agencies - Third Party P,30103859,CARE WORLDWIDE (LONDON) LTD,"3,936.46",15/12/2015
Delivery Units,Adults and Communities,Other Agencies - Third Party P,30103860,CARE WORLDWIDE (LONDON) LTD,"4,246.53",15/12/2015
Delivery Units,Adults and Communities,Other Agencies - Third Party P,30103861,CARE WORLDWIDE (LONDON) LTD,"2,685.98",15/12/2015
Delivery Units,Adults and Communities,Other Agencies - Third Party P,30103862,CARE WORLDWIDE (LONDON) LTD,"2,794.44",15/12/2015
Delivery Units,Adults and Communities,Other Agencies - Third Party P,30103863,CARE WORLDWIDE (LONDON) LTD,"4,400.13",15/12/2015
Delivery Units,Adults and Communities,Other Agencies - Third Party P,30102704,CAREBASE BURNT OAK 2006 LIMITED,"1,700.00",07/12/2015
Delivery Units,Adults and Communities,Other Agencies - Third Party P,30102705,CAREBASE BURNT OAK 2006 LIMITED,"1,700.00",07/12/2015
Delivery Units,Adults and Communities,Other Agencies - Third Party P,30103411,CAREBASE BURNT OAK 2006 LIMITED,"-1,409.74",14/12/2015
Delivery Units,Adults and Communities,Other Agencies - Third Party P,30103446,CAREBASE BURNT OAK 2006 LIMITED,"2,244.13",14/12/2015
Delivery Units,Adults and Communities,Other Agencies - Third Party P,30103447,CAREBASE BURNT OAK 2006 LIMITED,"2,487.77",14/12/2015
Delivery Units,Adults and Communities,Other Agencies - Third Party P,30103448,CAREBASE BURNT OAK 2006 LIMITED,"2,487.77",14/12/2015
Delivery Units,Adults and Communities,Other Agencies - Third Party P,30103449,CAREBASE BURNT OAK 2006 LIMITED,"2,487.77",14/12/2015
Delivery Units,Adults and Communities,Other Agencies - Third Party P,30103450,CAREBASE BURNT OAK 2006 LIMITED,"2,487.77",14/12/2015
Delivery Units,Adults and Communities,Other Agencies - Third Party P,30103451,CAREBASE BURNT OAK 2006 LIMITED,"2,571.43",14/12/2015
Delivery Units,Adults and Communities,Other Agencies - Third Party P,30103452,CAREBASE BURNT OAK 2006 LIMITED,"2,340.04",14/12/2015
Delivery Units,Adults and Communities,Other Agencies - Third Party P,30103453,CAREBASE BURNT OAK 2006 LIMITED,"2,487.77",14/12/2015
Delivery Units,Adults and Communities,Other Agencies - Third Party P,30104602,CAREBASE BURNT OAK 2006 LIMITED,"1,716.03",23/12/2015
Delivery Units,Adults and Communities,Other Agencies - Third Party P,30104651,CAREBASE BURNT OAK 2006 LIMITED,"2,657.14",23/12/2015
Delivery Units,Adults and Communities,Other Agencies - Third Party P,30102825,CARETECH COMMUNITY SERVICES LTD,"4,478.57",07/12/2015
Delivery Units,Adults and Communities,Other Agencies - Third Party P,30103529,CARETECH COMMUNITY SERVICES LTD,"4,478.57",14/12/2015
Delivery Units,Adults and Communities,Other Agencies - Third Party P,30103533,CARETECH COMMUNITY SERVICES LTD,459.94,14/12/2015
Delivery Units,Adults and Communities,Other Agencies - Third Party P,30103535,CARETECH COMMUNITY SERVICES LTD,789.81,14/12/2015
Delivery Units,Adults and Communities,Other Agencies - Third Party P,30103536,CARETECH COMMUNITY SERVICES LTD,"4,496.66",14/12/2015
Delivery Units,Adults and Communities,Other Agencies - Third Party P,30103537,CARETECH COMMUNITY SERVICES LTD,699.3,14/12/2015
Delivery Units,Adults and Communities,Other Agencies - Third Party P,30103538,CARETECH COMMUNITY SERVICES LTD,"7,375.71",14/12/2015
Delivery Units,Adults and Communities,Other Agencies - Third Party P,30103539,CARETECH COMMUNITY SERVICES LTD,"4,478.74",14/12/2015
Delivery Units,Adults and Communities,Other Agencies - Third Party P,30103541,CARETECH COMMUNITY SERVICES LTD,789.81,14/12/2015
Delivery Units,Adults and Communities,Other Agencies - Third Party P,30103542,CARETECH COMMUNITY SERVICES LTD,"4,478.57",14/12/2015
Delivery Units,Adults and Communities,Other Agencies - Third Party P,30103545,CARETECH COMMUNITY SERVICES LTD,"4,478.57",14/12/2015
Delivery Units,Adults and Communities,Other Agencies - Third Party P,30103546,CARETECH COMMUNITY SERVICES LTD,889.5,14/12/2015
Delivery Units,Adults and Communities,Other Agencies - Third Party P,30103549,CARETECH COMMUNITY SERVICES LTD,"1,053.04",14/12/2015
Delivery Units,Adults and Communities,Other Agencies - Third Party P,30103553,CARETECH COMMUNITY SERVICES LTD,"1,053.04",14/12/2015
Delivery Units,Adults and Communities,Other Agencies - Third Party P,30103557,CARETECH COMMUNITY SERVICES LTD,"1,053.04",14/12/2015
Delivery Units,Adults and Communities,Other Agencies - Third Party P,30103558,CARETECH COMMUNITY SERVICES LTD,"4,478.57",14/12/2015
Delivery Units,Adults and Communities,Other Agencies - Third Party P,30103559,CARETECH COMMUNITY SERVICES LTD,"2,080.59",14/12/2015
Delivery Units,Adults and Communities,Other Agencies - Third Party P,30103560,CARETECH COMMUNITY SERVICES LTD,"4,628.57",14/12/2015
Delivery Units,Adults and Communities,Other Agencies - Third Party P,30103561,CARETECH COMMUNITY SERVICES LTD,"1,478.57",14/12/2015
Delivery Units,Adults and Communities,Other Agencies - Third Party P,30103563,CARETECH COMMUNITY SERVICES LTD,889.5,14/12/2015
Delivery Units,Adults and Communities,Other Agencies - Third Party P,30103585,CARETECH COMMUNITY SERVICES LTD,"2,506.20",14/12/2015
Delivery Units,Adults and Communities,Other Agencies - Third Party P,30104500,CAREWATCH (BARNET),86.94,22/12/2015
Delivery Units,Adults and Communities,Other Agencies - Third Party P,30102583,CARLTON COURT (TLC GROUP),"16,302.30",07/12/2015
Delivery Units,Adults and Communities,Other Agencies - Third Party P,30102584,CARLTON COURT (TLC GROUP),"3,642.86",07/12/2015
Delivery Units,Adults and Communities,Other Agencies - Third Party P,30102585,CARLTON COURT (TLC GROUP),"2,144.91",07/12/2015
Delivery Units,Adults and Communities,Other Agencies - Third Party P,30102586,CARLTON COURT (TLC GROUP),"2,340.04",07/12/2015
Delivery Units,Adults and Communities,Other Agencies - Third Party P,30102587,CARLTON COURT (TLC GROUP),"2,340.04",07/12/2015
Delivery Units,Adults and Communities,Other Agencies - Third Party P,30102588,CARLTON COURT (TLC GROUP),"2,144.91",07/12/2015
Delivery Units,Adults and Communities,Other Agencies - Third Party P,30102589,CARLTON COURT (TLC GROUP),"2,487.77",07/12/2015
Delivery Units,Adults and Communities,Other Agencies - Third Party P,30102590,CARLTON COURT (TLC GROUP),"2,144.91",07/12/2015
Delivery Units,Adults and Communities,Other Agencies - Third Party P,30102591,CARLTON COURT (TLC GROUP),"2,487.77",07/12/2015
Delivery Units,Adults and Communities,Other Agencies - Third Party P,30102592,CARLTON COURT (TLC GROUP),"2,487.77",07/12/2015
Delivery Units,Adults and Communities,Other Agencies - Third Party P,30102593,CARLTON COURT (TLC GROUP),"2,487.77",07/12/2015
Delivery Units,Adults and Communities,Other Agencies - Third Party P,30102594,CARLTON COURT (TLC GROUP),-543.43,07/12/2015
Delivery Units,Adults and Communities,Other Agencies - Third Party P,30102595,CARLTON COURT (TLC GROUP),"2,487.77",07/12/2015
Delivery Units,Adults and Communities,Other Agencies - Third Party P,30102596,CARLTON COURT (TLC GROUP),"2,487.77",07/12/2015
Delivery Units,Adults and Communities,Other Agencies - Third Party P,30102597,CARLTON COURT (TLC GROUP),"2,487.77",07/12/2015
Delivery Units,Adults and Communities,Other Agencies - Third Party P,30102598,CARLTON COURT (TLC GROUP),"3,214.29",07/12/2015
Delivery Units,Adults and Communities,Other Agencies - Third Party P,30102599,CARLTON COURT (TLC GROUP),"3,600.90",07/12/2015
Delivery Units,Adults and Communities,Other Agencies - Third Party P,30102600,CARLTON COURT (TLC GROUP),"2,487.77",07/12/2015
Delivery Units,Adults and Communities,Other Agencies - Third Party P,30102601,CARLTON COURT (TLC GROUP),"2,487.77",07/12/2015
Delivery Units,Adults and Communities,Other Agencies - Third Party P,30102602,CARLTON COURT (TLC GROUP),"5,571.43",07/12/2015
Delivery Units,Adults and Communities,Other Agencies - Third Party P,30102603,CARLTON COURT (TLC GROUP),"2,244.13",07/12/2015
Delivery Units,Adults and Communities,Other Agencies - Third Party P,30102604,CARLTON COURT (TLC GROUP),"2,487.77",07/12/2015
Delivery Units,Adults and Communities,Other Agencies - Third Party P,30102606,CARLTON COURT (TLC GROUP),"2,340.04",07/12/2015
Delivery Units,Adults and Communities,Other Agencies - Third Party P,30102607,CARLTON COURT (TLC GROUP),38.32,07/12/2015
Delivery Units,Adults and Communities,Other Agencies - Third Party P,30102608,CARLTON COURT (TLC GROUP),82.11,07/12/2015
Delivery Units,Adults and Communities,Other Agencies - Third Party P,30102609,CARLTON COURT (TLC GROUP),31.97,07/12/2015
Delivery Units,Adults and Communities,Other Agencies - Third Party P,30102610,CARLTON COURT (TLC GROUP),29.74,07/12/2015
Delivery Units,Adults and Communities,Other Agencies - Third Party P,30102611,CARLTON COURT (TLC GROUP),29.74,07/12/2015
Delivery Units,Adults and Communities,Other Agencies - Third Party P,30102612,CARLTON COURT (TLC GROUP),31.97,07/12/2015
Delivery Units,Adults and Communities,Other Agencies - Third Party P,30102613,CARLTON COURT (TLC GROUP),82.11,07/12/2015
Delivery Units,Adults and Communities,Other Agencies - Third Party P,30102614,CARLTON COURT (TLC GROUP),82.11,07/12/2015
Delivery Units,Adults and Communities,Other Agencies - Third Party P,30102615,CARLTON COURT (TLC GROUP),31.97,07/12/2015
Delivery Units,Adults and Communities,Other Agencies - Third Party P,30102616,CARLTON COURT (TLC GROUP),82.11,07/12/2015
Delivery Units,Adults and Communities,Other Agencies - Third Party P,30102617,CARLTON COURT (TLC GROUP),82.11,07/12/2015
Delivery Units,Adults and Communities,Other Agencies - Third Party P,30102618,CARLTON COURT (TLC GROUP),82.11,07/12/2015
Delivery Units,Adults and Communities,Other Agencies - Third Party P,30102619,CARLTON COURT (TLC GROUP),82.11,07/12/2015
Delivery Units,Adults and Communities,Other Agencies - Third Party P,30102620,CARLTON COURT (TLC GROUP),76.24,07/12/2015
Delivery Units,Adults and Communities,Other Agencies - Third Party P,30102621,CARLTON COURT (TLC GROUP),82.11,07/12/2015
Delivery Units,Adults and Communities,Other Agencies - Third Party P,30102622,CARLTON COURT (TLC GROUP),82.11,07/12/2015
Delivery Units,Adults and Communities,Other Agencies - Third Party P,30102623,CARLTON COURT (TLC GROUP),29.74,07/12/2015
Delivery Units,Adults and Communities,Other Agencies - Third Party P,30104368,CARLTON COURT (TLC GROUP),"2,340.04",22/12/2015
Delivery Units,Adults and Communities,Other Agencies - Third Party P,30104833,CARLTON COURT (TLC GROUP),"3,764.29",24/12/2015
Delivery Units,Adults and Communities,Other Agencies - Third Party P,30104834,CARLTON COURT (TLC GROUP),"2,448.78",24/12/2015
Delivery Units,Adults and Communities,Other Agencies - Third Party P,30104835,CARLTON COURT (TLC GROUP),"2,448.78",24/12/2015
Delivery Units,Adults and Communities,Other Agencies - Third Party P,30104836,CARLTON COURT (TLC GROUP),"2,249.45",24/12/2015
Delivery Units,Adults and Communities,Other Agencies - Third Party P,30104837,CARLTON COURT (TLC GROUP),"2,249.45",24/12/2015
Delivery Units,Adults and Communities,Other Agencies - Third Party P,30104838,CARLTON COURT (TLC GROUP),"2,655.55",24/12/2015
Delivery Units,Adults and Communities,Other Agencies - Third Party P,30104839,CARLTON COURT (TLC GROUP),"2,655.55",24/12/2015
Delivery Units,Adults and Communities,Other Agencies - Third Party P,30104841,CARLTON COURT (TLC GROUP),"2,655.55",24/12/2015
Delivery Units,Adults and Communities,Other Agencies - Third Party P,30104842,CARLTON COURT (TLC GROUP),"2,655.55",24/12/2015
Delivery Units,Adults and Communities,Other Agencies - Third Party P,30104843,CARLTON COURT (TLC GROUP),"3,720.93",24/12/2015
Delivery Units,Adults and Communities,Other Agencies - Third Party P,30104844,CARLTON COURT (TLC GROUP),"2,655.55",24/12/2015
Delivery Units,Adults and Communities,Other Agencies - Third Party P,30104845,CARLTON COURT (TLC GROUP),"5,757.14",24/12/2015
Delivery Units,Adults and Communities,Other Agencies - Third Party P,30104846,CARLTON COURT (TLC GROUP),"2,397.72",24/12/2015
Delivery Units,Adults and Communities,Other Agencies - Third Party P,30104848,CARLTON COURT (TLC GROUP),"2,448.78",24/12/2015
Delivery Units,Adults and Communities,Other Agencies - Third Party P,30102653,CATHERINE LODGE,"2,184.04",07/12/2015
Delivery Units,Adults and Communities,Other Agencies - Third Party P,30102654,CATHERINE LODGE,"2,184.04",07/12/2015
Delivery Units,Adults and Communities,Other Agencies - Third Party P,30103391,CATHERINE LODGE,"2,184.04",14/12/2015
Delivery Units,Adults and Communities,Other Agencies - Third Party P,30103392,CATHERINE LODGE,"2,184.04",14/12/2015
Delivery Units,Adults and Communities,Other Agencies - Third Party P,30103380,CAVENDISH RADIO CARS,901.4,14/12/2015
Delivery Units,Adults and Communities,Other Agencies - Third Party P,30103381,CAVENDISH RADIO CARS,901.4,14/12/2015
Delivery Units,Adults and Communities,Other Agencies - Third Party P,30103382,CAVENDISH RADIO CARS,856.33,14/12/2015
Delivery Units,Adults and Communities,Other Agencies - Third Party P,30103383,CAVENDISH RADIO CARS,901.4,14/12/2015
Delivery Units,Adults and Communities,Other Agencies - Third Party P,30103384,CAVENDISH RADIO CARS,901.4,14/12/2015
Delivery Units,Adults and Communities,Other Agencies - Third Party P,30102574,CDR CARE LTD,"1,200.00",07/12/2015
Delivery Units,Adults and Communities,Other Agencies - Third Party P,30103328,CDR CARE LTD,800,14/12/2015
Delivery Units,Adults and Communities,Other Agencies - Third Party P,30103329,CDR CARE LTD,800,14/12/2015
Delivery Units,Adults and Communities,Other Agencies - Third Party P,30102976,CEDARS NURSING HOME,"2,483.01",08/12/2015
Delivery Units,Adults and Communities,Other Agencies - Third Party P,30102977,CEDARS NURSING HOME,"2,483.01",08/12/2015
Delivery Units,Adults and Communities,Other Agencies - Third Party P,30102978,CEDARS NURSING HOME,"2,277.34",08/12/2015
Delivery Units,Adults and Communities,Other Agencies - Third Party P,30102979,CEDARS NURSING HOME,"2,483.01",08/12/2015
Delivery Units,Adults and Communities,Other Agencies - Third Party P,30102980,CEDARS NURSING HOME,"2,239.37",08/12/2015
Delivery Units,Adults and Communities,Other Agencies - Third Party P,30102981,CEDARS NURSING HOME,"2,483.01",08/12/2015
Delivery Units,Adults and Communities,Other Agencies - Third Party P,30102982,CEDARS NURSING HOME,"2,277.34",08/12/2015
Delivery Units,Adults and Communities,Other Agencies - Third Party P,30103468,CEDARS NURSING HOME,"2,483.01",14/12/2015
Delivery Units,Adults and Communities,Other Agencies - Third Party P,30102882,CENTRAL MIDDLESEX SKILLS,"1,085.52",08/12/2015
Delivery Units,Adults and Communities,Other Agencies - Third Party P,30102883,CENTRAL MIDDLESEX SKILLS,"1,175.98",08/12/2015
Delivery Units,Adults and Communities,Other Agencies - Third Party P,30102884,CENTRAL MIDDLESEX SKILLS,904.6,08/12/2015
Delivery Units,Adults and Communities,Other Agencies - Third Party P,30102885,CENTRAL MIDDLESEX SKILLS,723.68,08/12/2015
Delivery Units,Adults and Communities,Other Agencies - Third Party P,30102667,CHATSWORTH CARE,"10,264.29",07/12/2015
Delivery Units,Adults and Communities,Other Agencies - Third Party P,30102678,CHOICE CARE GROUP,"8,454.90",07/12/2015
Delivery Units,Adults and Communities,Other Agencies - Third Party P,30102679,CHOICE CARE GROUP,-344.79,07/12/2015
Delivery Units,Adults and Communities,Other Agencies - Third Party P,30103469,CLARE HOUSE NURSING HOME,"2,094.52",14/12/2015
Delivery Units,Adults and Communities,Other Agencies - Third Party P,30102266,CLOVELLY HOUSE RESID. HOME LTD,"2,652.54",02/12/2015
Delivery Units,Adults and Communities,Other Agencies - Third Party P,30102267,CLOVELLY HOUSE RESID. HOME LTD,-52.54,02/12/2015
Delivery Units,Adults and Communities,Other Agencies - Third Party P,30104418,CLOVELLY HOUSE RESID. HOME LTD,"1,404.03",22/12/2015
Delivery Units,Adults and Communities,Other Agencies - Third Party P,30104419,CLOVELLY HOUSE RESID. HOME LTD,"2,600.00",22/12/2015
Delivery Units,Adults and Communities,Other Agencies - Third Party P,30104420,CLOVELLY HOUSE RESID. HOME LTD,"1,900.40",22/12/2015
Delivery Units,Adults and Communities,Other Agencies - Third Party P,30104421,CLOVELLY HOUSE RESID. HOME LTD,"2,600.00",22/12/2015
Delivery Units,Adults and Communities,Other Agencies - Third Party P,30104422,CLOVELLY HOUSE RESID. HOME LTD,"2,211.80",22/12/2015
Delivery Units,Adults and Communities,Other Agencies - Third Party P,30104423,CLOVELLY HOUSE RESID. HOME LTD,"2,211.80",22/12/2015
Delivery Units,Adults and Communities,Other Agencies - Third Party P,30102260,CMG HOMES LTD,-710.88,07/12/2015
Delivery Units,Adults and Communities,Other Agencies - Third Party P,30102860,COMPLETE CARE SERVICES LTD,"5,251.80",08/12/2015
Delivery Units,Adults and Communities,Other Agencies - Third Party P,30103520,CONNIFERS CARE LTD,"8,270.74",14/12/2015
Delivery Units,Adults and Communities,Other Agencies - Third Party P,30102713,COOPERSCROFT CARE HOME,"6,005.76",07/12/2015
Delivery Units,Adults and Communities,Other Agencies - Third Party P,30102665,CRAEGMOOR,"3,665.19",07/12/2015
Delivery Units,Adults and Communities,Other Agencies - Third Party P,30102666,CRAEGMOOR,-271.93,07/12/2015
Delivery Units,Adults and Communities,Other Agencies - Third Party P,30102709,DABB PAA,"1,092.96",07/12/2015
Delivery Units,Adults and Communities,Other Agencies - Third Party P,30102710,DABB PAA,273.24,07/12/2015
Delivery Units,Adults and Communities,Other Agencies - Third Party P,30104603,DABB PAA,"1,092.96",23/12/2015
Delivery Units,Adults and Communities,Other Agencies - Third Party P,30103425,DANA CARE LIMITED,"9,582.86",14/12/2015
Delivery Units,Adults and Communities,Other Agencies - Third Party P,30102492,DIMENSIONS UK,-112.2,04/12/2015
Delivery Units,Adults and Communities,Other Agencies - Third Party P,30102494,DIMENSIONS UK,149.6,04/12/2015
Delivery Units,Adults and Communities,Other Agencies - Third Party P,30102495,DIMENSIONS UK,149.6,04/12/2015
Delivery Units,Adults and Communities,Other Agencies - Third Party P,30102496,DIMENSIONS UK,224.4,04/12/2015
Delivery Units,Adults and Communities,Other Agencies - Third Party P,30102497,DIMENSIONS UK,149.6,04/12/2015
Delivery Units,Adults and Communities,Other Agencies - Third Party P,30102498,DIMENSIONS UK,224.4,04/12/2015
Delivery Units,Adults and Communities,Other Agencies - Third Party P,30102499,DIMENSIONS UK,149.6,04/12/2015
Delivery Units,Adults and Communities,Other Agencies - Third Party P,30102500,DIMENSIONS UK,149.6,04/12/2015
Delivery Units,Adults and Communities,Other Agencies - Third Party P,30102501,DIMENSIONS UK,149.6,04/12/2015
Delivery Units,Adults and Communities,Other Agencies - Third Party P,30102502,DIMENSIONS UK,74.8,04/12/2015
Delivery Units,Adults and Communities,Other Agencies - Third Party P,30102503,DIMENSIONS UK,74.8,04/12/2015
Delivery Units,Adults and Communities,Other Agencies - Third Party P,30102504,DIMENSIONS UK,149.6,04/12/2015
Delivery Units,Adults and Communities,Other Agencies - Third Party P,30102505,DIMENSIONS UK,149.6,04/12/2015
Delivery Units,Adults and Communities,Other Agencies - Third Party P,30102506,DIMENSIONS UK,149.6,04/12/2015
Delivery Units,Adults and Communities,Other Agencies - Third Party P,30102507,DIMENSIONS UK,149.6,04/12/2015
Delivery Units,Adults and Communities,Other Agencies - Third Party P,30102508,DIMENSIONS UK,74.8,04/12/2015
Delivery Units,Adults and Communities,Other Agencies - Third Party P,30102509,DIMENSIONS UK,74.8,04/12/2015
Delivery Units,Adults and Communities,Other Agencies - Third Party P,30102510,DIMENSIONS UK,523.6,04/12/2015
Delivery Units,Adults and Communities,Other Agencies - Third Party P,30102511,DIMENSIONS UK,299.2,04/12/2015
Delivery Units,Adults and Communities,Other Agencies - Third Party P,30102512,DIMENSIONS UK,224.4,04/12/2015
Delivery Units,Adults and Communities,Other Agencies - Third Party P,30102513,DIMENSIONS UK,299.2,04/12/2015
Delivery Units,Adults and Communities,Other Agencies - Third Party P,30102514,DIMENSIONS UK,149.6,04/12/2015
Delivery Units,Adults and Communities,Other Agencies - Third Party P,30102515,DIMENSIONS UK,"1,122.00",04/12/2015
Delivery Units,Adults and Communities,Other Agencies - Third Party P,30102516,DIMENSIONS UK,"1,870.00",04/12/2015
Delivery Units,Adults and Communities,Other Agencies - Third Party P,30102517,DIMENSIONS UK,224.4,04/12/2015
Delivery Units,Adults and Communities,Other Agencies - Third Party P,30102518,DIMENSIONS UK,"1,122.00",04/12/2015
Delivery Units,Adults and Communities,Other Agencies - Third Party P,30102519,DIMENSIONS UK,"1,122.00",04/12/2015
Delivery Units,Adults and Communities,Other Agencies - Third Party P,30102520,DIMENSIONS UK,224.4,04/12/2015
Delivery Units,Adults and Communities,Other Agencies - Third Party P,30102818,DIMENSIONS UK,149.6,08/12/2015
Delivery Units,Adults and Communities,Other Agencies - Third Party P,30102819,DIMENSIONS UK,448.8,08/12/2015
Delivery Units,Adults and Communities,Other Agencies - Third Party P,30102820,DIMENSIONS UK,149.6,08/12/2015
Delivery Units,Adults and Communities,Other Agencies - Third Party P,30102821,DIMENSIONS UK,112.2,08/12/2015
Delivery Units,Adults and Communities,Other Agencies - Third Party P,30102822,DIMENSIONS UK,149.6,08/12/2015
Delivery Units,Adults and Communities,Other Agencies - Third Party P,30102823,DIMENSIONS UK,149.6,08/12/2015
Delivery Units,Adults and Communities,Other Agencies - Third Party P,30102824,DIMENSIONS UK,149.6,08/12/2015
Delivery Units,Adults and Communities,Other Agencies - Third Party P,30103034,DIMENSIONS UK,"7,950.68",08/12/2015
Delivery Units,Adults and Communities,Other Agencies - Third Party P,30103035,DIMENSIONS UK,74.8,08/12/2015
Delivery Units,Adults and Communities,Other Agencies - Third Party P,30103036,DIMENSIONS UK,56.1,08/12/2015
Delivery Units,Adults and Communities,Other Agencies - Third Party P,30103037,DIMENSIONS UK,374,08/12/2015
Delivery Units,Adults and Communities,Other Agencies - Third Party P,30103038,DIMENSIONS UK,374,08/12/2015
Delivery Units,Adults and Communities,Other Agencies - Third Party P,30103526,DIMENSIONS UK,-74.8,15/12/2015
Delivery Units,Adults and Communities,Other Agencies - Third Party P,30103527,DIMENSIONS UK,-74.8,15/12/2015
Delivery Units,Adults and Communities,Other Agencies - Third Party P,30103886,DIMENSIONS UK,"2,128.00",15/12/2015
Delivery Units,Adults and Communities,Other Agencies - Third Party P,30103890,DIMENSIONS UK,"1,541.00",15/12/2015
Delivery Units,Adults and Communities,Other Agencies - Third Party P,30104170,DIMENSIONS UK,"6,025.32",18/12/2015
Delivery Units,Adults and Communities,Other Agencies - Third Party P,30104171,DIMENSIONS UK,"4,495.76",18/12/2015
Delivery Units,Adults and Communities,Other Agencies - Third Party P,30104172,DIMENSIONS UK,"4,495.76",18/12/2015
Delivery Units,Adults and Communities,Other Agencies - Third Party P,30104569,DIMENSIONS UK,"7,950.68",23/12/2015
Delivery Units,Adults and Communities,Other Agencies - Third Party P,30102629,EASTSIDE HOUSE RESIDENTIAL CARE HOM,"2,031.76",04/12/2015
Delivery Units,Adults and Communities,Other Agencies - Third Party P,30104673,EASTSIDE HOUSE RESIDENTIAL CARE HOM,"2,031.76",22/12/2015
Delivery Units,Adults and Communities,Other Agencies - Third Party P,30102262,ELEANOR PALMER TRUST NO 2 A/C.,"3,120.06",02/12/2015
Delivery Units,Adults and Communities,Other Agencies - Third Party P,30102676,ELEANOR PALMER TRUST NO 2 A/C.,"1,092.02",07/12/2015
Delivery Units,Adults and Communities,Other Agencies - Third Party P,30103084,ELEANOR PALMER TRUST NO 2 A/C.,"2,496.05",09/12/2015
Delivery Units,Adults and Communities,Other Agencies - Third Party P,30104378,ELIZA HOUSE,"1,026.90",22/12/2015
Delivery Units,Adults and Communities,Other Agencies - Third Party P,30102631,ELIZABETH FITZROY SUPPORT,-344.79,07/12/2015
Delivery Units,Adults and Communities,Other Agencies - Third Party P,30102712,ELIZABETH FITZROY SUPPORT,-344.79,07/12/2015
Delivery Units,Adults and Communities,Other Agencies - Third Party P,30104716,ELIZABETH HOUSE,"2,369.79",23/12/2015
Delivery Units,Adults and Communities,Other Agencies - Third Party P,30103456,ELM PARK LODGE,"3,192.86",14/12/2015
Delivery Units,Adults and Communities,Other Agencies - Third Party P,30103466,ELM PARK LODGE,"3,372.39",14/12/2015
Delivery Units,Adults and Communities,Other Agencies - Third Party P,30103467,ELM PARK LODGE,"3,407.14",14/12/2015
Delivery Units,Adults and Communities,Other Agencies - Third Party P,30103509,ELM PARK LODGE,"3,330.00",14/12/2015
Delivery Units,Adults and Communities,Other Agencies - Third Party P,30103510,ELM PARK LODGE,"2,035.46",14/12/2015
Delivery Units,Adults and Communities,Other Agencies - Third Party P,30103513,ELM PARK LODGE,"3,321.43",14/12/2015
Delivery Units,Adults and Communities,Other Agencies - Third Party P,30103514,ELM PARK LODGE,"2,092.11",14/12/2015
Delivery Units,Adults and Communities,Other Agencies - Third Party P,30103522,ELM PARK LODGE,"3,107.14",14/12/2015
Delivery Units,Adults and Communities,Other Agencies - Third Party P,30103524,ELM PARK LODGE,"3,321.43",14/12/2015
Delivery Units,Adults and Communities,Other Agencies - Third Party P,30103573,ELM PARK LODGE,"3,344.14",14/12/2015
Delivery Units,Adults and Communities,Other Agencies - Third Party P,30103579,ELM PARK LODGE,"3,068.57",14/12/2015
Delivery Units,Adults and Communities,Other Agencies - Third Party P,30104660,EMMAUS HOUSE,"2,288.14",23/12/2015
Delivery Units,Adults and Communities,Other Agencies - Third Party P,30102720,ENARA COMMUNITY CARE,-12.97,10/12/2015
Delivery Units,Adults and Communities,Other Agencies - Third Party P,30103488,ENARA COMMUNITY CARE,12.84,18/12/2015
Delivery Units,Adults and Communities,Other Agencies - Third Party P,30103489,ENARA COMMUNITY CARE,51.36,18/12/2015
Delivery Units,Adults and Communities,Other Agencies - Third Party P,30103490,ENARA COMMUNITY CARE,51.36,18/12/2015
Delivery Units,Adults and Communities,Other Agencies - Third Party P,30103491,ENARA COMMUNITY CARE,51.36,18/12/2015
Delivery Units,Adults and Communities,Other Agencies - Third Party P,30104307,ENARA COMMUNITY CARE,64.16,21/12/2015
Delivery Units,Adults and Communities,Other Agencies - Third Party P,30104308,ENARA COMMUNITY CARE,51.36,21/12/2015
Delivery Units,Adults and Communities,Other Agencies - Third Party P,30104309,ENARA COMMUNITY CARE,51.36,21/12/2015
Delivery Units,Adults and Communities,Other Agencies - Third Party P,30104310,ENARA COMMUNITY CARE,51.36,21/12/2015
Delivery Units,Adults and Communities,Other Agencies - Third Party P,30104311,ENARA COMMUNITY CARE,51.36,21/12/2015
Delivery Units,Adults and Communities,Other Agencies - Third Party P,30104312,ENARA COMMUNITY CARE,51.36,21/12/2015
Delivery Units,Adults and Communities,Other Agencies - Third Party P,30104313,ENARA COMMUNITY CARE,51.36,21/12/2015
Delivery Units,Adults and Communities,Other Agencies - Third Party P,30104314,ENARA COMMUNITY CARE,51.36,21/12/2015
Delivery Units,Adults and Communities,Other Agencies - Third Party P,30104315,ENARA COMMUNITY CARE,51.36,21/12/2015
Delivery Units,Adults and Communities,Other Agencies - Third Party P,30104316,ENARA COMMUNITY CARE,51.36,21/12/2015
Delivery Units,Adults and Communities,Other Agencies - Third Party P,30104317,ENARA COMMUNITY CARE,51.36,21/12/2015
Delivery Units,Adults and Communities,Other Agencies - Third Party P,30104318,ENARA COMMUNITY CARE,51.36,21/12/2015
Delivery Units,Adults and Communities,Other Agencies - Third Party P,30104319,ENARA COMMUNITY CARE,51.36,21/12/2015
Delivery Units,Adults and Communities,Other Agencies - Third Party P,30104320,ENARA COMMUNITY CARE,51.36,21/12/2015
Delivery Units,Adults and Communities,Other Agencies - Third Party P,30104321,ENARA COMMUNITY CARE,51.36,21/12/2015
Delivery Units,Adults and Communities,Other Agencies - Third Party P,30104322,ENARA COMMUNITY CARE,51.36,21/12/2015
Delivery Units,Adults and Communities,Other Agencies - Third Party P,30104323,ENARA COMMUNITY CARE,51.36,21/12/2015
Delivery Units,Adults and Communities,Other Agencies - Third Party P,30104324,ENARA COMMUNITY CARE,51.36,21/12/2015
Delivery Units,Adults and Communities,Other Agencies - Third Party P,30103260,EVE HERSOV & CO,262,14/12/2015
Delivery Units,Adults and Communities,Other Agencies - Third Party P,30102902,FERNBANK NURSING HOME.,"2,320.20",08/12/2015
Delivery Units,Adults and Communities,Other Agencies - Third Party P,30102903,FERNBANK NURSING HOME.,"2,320.20",08/12/2015
Delivery Units,Adults and Communities,Other Agencies - Third Party P,30102904,FERNBANK NURSING HOME.,"2,320.20",08/12/2015
Delivery Units,Adults and Communities,Other Agencies - Third Party P,30102905,FERNBANK NURSING HOME.,"2,320.20",08/12/2015
Delivery Units,Adults and Communities,Other Agencies - Third Party P,30102906,FERNBANK NURSING HOME.,"2,320.20",08/12/2015
Delivery Units,Adults and Communities,Other Agencies - Third Party P,30102907,FERNBANK NURSING HOME.,"2,320.20",08/12/2015
Delivery Units,Adults and Communities,Other Agencies - Third Party P,30102908,FERNBANK NURSING HOME.,"2,320.20",08/12/2015
Delivery Units,Adults and Communities,Other Agencies - Third Party P,30102909,FERNBANK NURSING HOME.,"2,569.80",08/12/2015
Delivery Units,Adults and Communities,Other Agencies - Third Party P,30102899,FINBOND LIMITED,"2,340.04",08/12/2015
Delivery Units,Adults and Communities,Other Agencies - Third Party P,30102900,FINBOND LIMITED,"2,352.86",08/12/2015
Delivery Units,Adults and Communities,Other Agencies - Third Party P,30104148,FLAGSWAN TWO LTD,"2,464.29",18/12/2015
Delivery Units,Adults and Communities,Other Agencies - Third Party P,30104417,FOUR SEASONS 2000 LTD,"2,001.92",22/12/2015
Delivery Units,Adults and Communities,Other Agencies - Third Party P,30102786,FOUR SEASONS HEALTH CARE,"2,085.68",07/12/2015
Delivery Units,Adults and Communities,Other Agencies - Third Party P,30102787,FOUR SEASONS HEALTH CARE,"2,085.68",07/12/2015
Delivery Units,Adults and Communities,Other Agencies - Third Party P,30102788,FOUR SEASONS HEALTH CARE,"2,123.48",07/12/2015
Delivery Units,Adults and Communities,Other Agencies - Third Party P,30102789,FOUR SEASONS HEALTH CARE,"2,313.08",07/12/2015
Delivery Units,Adults and Communities,Other Agencies - Third Party P,30102790,FOUR SEASONS HEALTH CARE,"2,085.68",07/12/2015
Delivery Units,Adults and Communities,Other Agencies - Third Party P,30102791,FOUR SEASONS HEALTH CARE,"2,321.92",07/12/2015
Delivery Units,Adults and Communities,Other Agencies - Third Party P,30102792,FOUR SEASONS HEALTH CARE,"2,120.45",07/12/2015
Delivery Units,Adults and Communities,Other Agencies - Third Party P,30102793,FOUR SEASONS HEALTH CARE,"2,090.08",07/12/2015
Delivery Units,Adults and Communities,Other Agencies - Third Party P,30102794,FOUR SEASONS HEALTH CARE,"2,313.08",07/12/2015
Delivery Units,Adults and Communities,Other Agencies - Third Party P,30102795,FOUR SEASONS HEALTH CARE,"2,090.08",07/12/2015
Delivery Units,Adults and Communities,Other Agencies - Third Party P,30102796,FOUR SEASONS HEALTH CARE,"2,321.92",07/12/2015
Delivery Units,Adults and Communities,Other Agencies - Third Party P,30102797,FOUR SEASONS HEALTH CARE,"2,321.92",07/12/2015
Delivery Units,Adults and Communities,Other Agencies - Third Party P,30102798,FOUR SEASONS HEALTH CARE,"2,120.41",07/12/2015
Delivery Units,Adults and Communities,Other Agencies - Third Party P,30102799,FOUR SEASONS HEALTH CARE,"2,090.08",07/12/2015
Delivery Units,Adults and Communities,Other Agencies - Third Party P,30104424,FOUR SEASONS HEALTH CARE,-32,22/12/2015
Delivery Units,Adults and Communities,Other Agencies - Third Party P,30104439,FOUR SEASONS HEALTH CARE,"2,117.72",22/12/2015
Delivery Units,Adults and Communities,Other Agencies - Third Party P,30103397,FOUR SEASONS HEALTH CARE (NO.4) LTD,"2,004.00",14/12/2015
Delivery Units,Adults and Communities,Other Agencies - Third Party P,30104599,FOUR SEASONS HEALTH CARE (NO.4) LTD,"2,004.00",23/12/2015
Delivery Units,Adults and Communities,Other Agencies - Third Party P,30103574,FREEWAYS TRUST LIMITED,25.58,29/12/2015
Delivery Units,Adults and Communities,Other Agencies - Third Party P,30103575,FREEWAYS TRUST LIMITED,829.8,18/12/2015
Delivery Units,Adults and Communities,Other Agencies - Third Party P,30103586,FREEWAYS TRUST LIMITED,"2,109.48",18/12/2015
Delivery Units,Adults and Communities,Other Agencies - Third Party P,20027039,FREMANTLE TRUST,"36,666.89",16/12/2015
Delivery Units,Adults and Communities,Other Agencies - Third Party P,30104003,FREMANTLE TRUST,"3,052.00",16/12/2015
Delivery Units,Adults and Communities,Other Agencies - Third Party P,30104005,FREMANTLE TRUST,595.67,16/12/2015
Delivery Units,Adults and Communities,Other Agencies - Third Party P,30104027,FREMANTLE TRUST,"2,274.44",16/12/2015
Delivery Units,Adults and Communities,Other Agencies - Third Party P,30104409,FREMANTLE TRUST,"2,908.00",22/12/2015
Delivery Units,Adults and Communities,Other Agencies - Third Party P,30102263,FRIARY LODGE,"1,092.02",02/12/2015
Delivery Units,Adults and Communities,Other Agencies - Third Party P,30103379,FRIARY LODGE,"2,369.78",14/12/2015
Delivery Units,Adults and Communities,Other Agencies - Third Party P,30103388,FRIARY LODGE,"2,176.88",14/12/2015
Delivery Units,Adults and Communities,Other Agencies - Third Party P,30103398,FRIARY LODGE,"2,369.78",14/12/2015
Delivery Units,Adults and Communities,Other Agencies - Third Party P,30103420,FRIARY LODGE,"2,369.78",14/12/2015
Delivery Units,Adults and Communities,Other Agencies - Third Party P,30104580,FRIARY LODGE,"2,448.78",23/12/2015
Delivery Units,Adults and Communities,Other Agencies - Third Party P,30104581,FRIARY LODGE,"2,249.44",23/12/2015
Delivery Units,Adults and Communities,Other Agencies - Third Party P,30104600,FRIARY LODGE,"2,448.78",23/12/2015
Delivery Units,Adults and Communities,Other Agencies - Third Party P,30104604,FRIARY LODGE,"2,448.78",23/12/2015
Delivery Units,Adults and Communities,Other Agencies - Third Party P,30102737,FRIERN RESIDENTIAL CARE HOME,"2,035.46",07/12/2015
Delivery Units,Adults and Communities,Other Agencies - Third Party P,30102741,FRIERN RESIDENTIAL CARE HOME,"3,857.14",07/12/2015
Delivery Units,Adults and Communities,Other Agencies - Third Party P,30102756,FRIERN RESIDENTIAL CARE HOME,"1,219.72",07/12/2015
Delivery Units,Adults and Communities,Other Agencies - Third Party P,30102757,FRIERN RESIDENTIAL CARE HOME,-541.29,07/12/2015
Delivery Units,Adults and Communities,Other Agencies - Third Party P,30102783,FRIERN RESIDENTIAL CARE HOME,857.97,07/12/2015
Delivery Units,Adults and Communities,Other Agencies - Third Party P,30102784,FRIERN RESIDENTIAL CARE HOME,-216.52,07/12/2015
Delivery Units,Adults and Communities,Other Agencies - Third Party P,30102803,FRIERN RESIDENTIAL CARE HOME,"2,035.46",07/12/2015
Delivery Units,Adults and Communities,Other Agencies - Third Party P,30102804,FRIERN RESIDENTIAL CARE HOME,-344.79,07/12/2015
Delivery Units,Adults and Communities,Other Agencies - Third Party P,30102813,FRIERN RESIDENTIAL CARE HOME,"1,322.66",07/12/2015
Delivery Units,Adults and Communities,Other Agencies - Third Party P,30102814,FRIERN RESIDENTIAL CARE HOME,-392.57,07/12/2015
Delivery Units,Adults and Communities,Other Agencies - Third Party P,30102838,FRIERN RESIDENTIAL CARE HOME,"2,144.92",07/12/2015
Delivery Units,Adults and Communities,Other Agencies - Third Party P,30102839,FRIERN RESIDENTIAL CARE HOME,-541.29,07/12/2015
Delivery Units,Adults and Communities,Other Agencies - Third Party P,30103251,GENTLE HANDS CARE HOMES LIMITED,"4,394.00",14/12/2015
Delivery Units,Adults and Communities,Other Agencies - Third Party P,30102848,GLEBELANDS,"12,000.00",08/12/2015
Delivery Units,Adults and Communities,Other Agencies - Third Party P,30102984,GLENHOLME PSYCHIATRIC AFTER CARE HO,"3,964.89",08/12/2015
Delivery Units,Adults and Communities,Other Agencies - Third Party P,30103018,GLENHOLME PSYCHIATRIC AFTER CARE HO,"3,857.57",08/12/2015
Delivery Units,Adults and Communities,Other Agencies - Third Party P,30103057,GLENHOLME PSYCHIATRIC AFTER CARE HO,"4,071.43",08/12/2015
Delivery Units,Adults and Communities,Other Agencies - Third Party P,30102680,GLOUCESTERSHIRE GROUP HOMES,"4,054.03",07/12/2015
Delivery Units,Adults and Communities,Other Agencies - Third Party P,30102681,GLOUCESTERSHIRE GROUP HOMES,-796.76,07/12/2015
Delivery Units,Adults and Communities,Other Agencies - Third Party P,30104446,GREEN TREES,"1,326.02",22/12/2015
Delivery Units,Adults and Communities,Other Agencies - Third Party P,30104464,GREEN TREES,"2,211.80",22/12/2015
Delivery Units,Adults and Communities,Other Agencies - Third Party P,30104682,GREEN TREES,868.92,23/12/2015
Delivery Units,Adults and Communities,Other Agencies - Third Party P,30104714,GREEN TREES,"1,105.02",23/12/2015
Delivery Units,Adults and Communities,Other Agencies - Third Party P,30102624,H.C.S. (ENFIELD) LTD,"5,101.89",07/12/2015
Delivery Units,Adults and Communities,Other Agencies - Third Party P,30102625,H.C.S. (ENFIELD) LTD,-344.79,07/12/2015
Delivery Units,Adults and Communities,Other Agencies - Third Party P,30102997,HALLMARK CARE (KINGS LYNN) LTD,"2,797.07",08/12/2015
Delivery Units,Adults and Communities,Other Agencies - Third Party P,30104688,HARDEN,"4,343.12",23/12/2015
Delivery Units,Adults and Communities,Other Agencies - Third Party P,30104074,HARTWIG CARE LIMITED,111.47,18/12/2015
Delivery Units,Adults and Communities,Other Agencies - Third Party P,30104075,HARTWIG CARE LIMITED,95.97,18/12/2015
Delivery Units,Adults and Communities,Other Agencies - Third Party P,30104076,HARTWIG CARE LIMITED,92.54,18/12/2015
Delivery Units,Adults and Communities,Other Agencies - Third Party P,30104078,HARTWIG CARE LIMITED,93.78,18/12/2015
Delivery Units,Adults and Communities,Other Agencies - Third Party P,30104079,HARTWIG CARE LIMITED,99.71,18/12/2015
Delivery Units,Adults and Communities,Other Agencies - Third Party P,30104081,HARTWIG CARE LIMITED,145.76,18/12/2015
Delivery Units,Adults and Communities,Other Agencies - Third Party P,30104082,HARTWIG CARE LIMITED,148.89,18/12/2015
Delivery Units,Adults and Communities,Other Agencies - Third Party P,30104325,HARTWIG CARE LIMITED,"1,249.08",21/12/2015
Delivery Units,Adults and Communities,Other Agencies - Third Party P,30104326,HARTWIG CARE LIMITED,759.68,21/12/2015
Delivery Units,Adults and Communities,Other Agencies - Third Party P,30100121,HEADWAY EAST LONDON,340,08/12/2015
Delivery Units,Adults and Communities,Other Agencies - Third Party P,30102859,HEADWAY EAST LONDON,376.08,23/12/2015
Delivery Units,Adults and Communities,Other Agencies - Third Party P,30104086,HENRY NIHILL HOUSE,"2,165.68",18/12/2015
Delivery Units,Adults and Communities,Other Agencies - Third Party P,30104385,HILLGREEN CARE LTD,"6,864.42",22/12/2015
Delivery Units,Adults and Communities,Other Agencies - Third Party P,30104130,HILTON LODGE LTD.,"4,368.06",18/12/2015
Delivery Units,Adults and Communities,Other Agencies - Third Party P,30104131,HILTON LODGE LTD.,"4,512.08",18/12/2015
Delivery Units,Adults and Communities,Other Agencies - Third Party P,30104145,HILTON LODGE LTD.,"4,368.08",18/12/2015
Delivery Units,Adults and Communities,Other Agencies - Third Party P,30104147,HILTON LODGE LTD.,"4,368.08",18/12/2015
Delivery Units,Adults and Communities,Other Agencies - Third Party P,30104189,HILTON LODGE LTD.,"4,368.08",18/12/2015
Delivery Units,Adults and Communities,Other Agencies - Third Party P,30104192,HILTON LODGE LTD.,"4,368.06",18/12/2015
Delivery Units,Adults and Communities,Other Agencies - Third Party P,30104447,HILTON LODGE LTD.,"4,368.06",22/12/2015
Delivery Units,Adults and Communities,Other Agencies - Third Party P,20026572,HMCTS,400,04/12/2015
Delivery Units,Adults and Communities,Other Agencies - Third Party P,30104709,HOLLY HOUSE,"2,248.48",23/12/2015
Delivery Units,Adults and Communities,Other Agencies - Third Party P,30102988,HOLLY HOUSE CARE HOME,"3,276.06",08/12/2015
Delivery Units,Adults and Communities,Other Agencies - Third Party P,30102816,HOLLY HOUSE RESIDENTIAL CARE HOME,"3,421.02",07/12/2015
Delivery Units,Adults and Communities,Other Agencies - Third Party P,30102735,HOME FARM TRUST LTD,"2,657.40",07/12/2015
Delivery Units,Adults and Communities,Other Agencies - Third Party P,30102736,HOME FARM TRUST LTD,-321.8,07/12/2015
Delivery Units,Adults and Communities,Other Agencies - Third Party P,30103051,HOME FROM HOME CARE LTD,"9,769.00",08/12/2015
Delivery Units,Adults and Communities,Other Agencies - Third Party P,30103052,HOME FROM HOME CARE LTD,-350.6,08/12/2015
Delivery Units,Adults and Communities,Other Agencies - Third Party P,30102740,HONISTER RESIDENTIAL CARE LTD,"2,340.04",07/12/2015
Delivery Units,Adults and Communities,Other Agencies - Third Party P,30104655,HONISTER RESIDENTIAL CARE LTD,"2,418.04",23/12/2015
Delivery Units,Adults and Communities,Other Agencies - Third Party P,30103930,HOPE WORLDWIDE,"2,078.70",16/12/2015
Delivery Units,Adults and Communities,Other Agencies - Third Party P,30099511,HOUSING 21 (BARNET),-246,07/12/2015
Delivery Units,Adults and Communities,Other Agencies - Third Party P,30099512,HOUSING 21 (BARNET),-246,07/12/2015
Delivery Units,Adults and Communities,Other Agencies - Third Party P,30099513,HOUSING 21 (BARNET),-246,07/12/2015
Delivery Units,Adults and Communities,Other Agencies - Third Party P,30099887,HOUSING 21 (BARNET),-246,07/12/2015
Delivery Units,Adults and Communities,Other Agencies - Third Party P,30099888,HOUSING 21 (BARNET),-246,07/12/2015
Delivery Units,Adults and Communities,Other Agencies - Third Party P,30100451,HOUSING 21 (BARNET),-246,07/12/2015
Delivery Units,Adults and Communities,Other Agencies - Third Party P,30100452,HOUSING 21 (BARNET),-246,07/12/2015
Delivery Units,Adults and Communities,Other Agencies - Third Party P,30100453,HOUSING 21 (BARNET),-246,07/12/2015
Delivery Units,Adults and Communities,Other Agencies - Third Party P,30100454,HOUSING 21 (BARNET),-246,07/12/2015
Delivery Units,Adults and Communities,Other Agencies - Third Party P,30100985,HOUSING 21 (BARNET),-246,07/12/2015
Delivery Units,Adults and Communities,Other Agencies - Third Party P,30100986,HOUSING 21 (BARNET),-246,23/12/2015
Delivery Units,Adults and Communities,Other Agencies - Third Party P,20026844,HUSKARDS NEW CARE LTD,"2,216.50",11/12/2015
Delivery Units,Adults and Communities,Other Agencies - Third Party P,30104190,HUSKARDS NEW CARE LTD,"2,145.00",18/12/2015
Delivery Units,Adults and Communities,Other Agencies - Third Party P,30104708,HUSKARDS NEW CARE LTD,"2,216.50",23/12/2015
Delivery Units,Adults and Communities,Other Agencies - Third Party P,30103083,INDEPENDENCE HOMES LIMITED,"2,900.00",09/12/2015
Delivery Units,Adults and Communities,Other Agencies - Third Party P,30102854,INDIVIDUALISED CARE LIMITED,247.5,08/12/2015
Delivery Units,Adults and Communities,Other Agencies - Third Party P,30103332,INDIVIDUALISED CARE LIMITED,490,14/12/2015
Delivery Units,Adults and Communities,Other Agencies - Third Party P,30103333,INDIVIDUALISED CARE LIMITED,"2,400.00",14/12/2015
Delivery Units,Adults and Communities,Other Agencies - Third Party P,30103334,INDIVIDUALISED CARE LIMITED,700,14/12/2015
Delivery Units,Adults and Communities,Other Agencies - Third Party P,30103335,INDIVIDUALISED CARE LIMITED,500,14/12/2015
Delivery Units,Adults and Communities,Other Agencies - Third Party P,30103336,INDIVIDUALISED CARE LIMITED,800,14/12/2015
Delivery Units,Adults and Communities,Other Agencies - Third Party P,30103337,INDIVIDUALISED CARE LIMITED,712,14/12/2015
Delivery Units,Adults and Communities,Other Agencies - Third Party P,30103338,INDIVIDUALISED CARE LIMITED,224,14/12/2015
Delivery Units,Adults and Communities,Other Agencies - Third Party P,30103339,INDIVIDUALISED CARE LIMITED,224,14/12/2015
Delivery Units,Adults and Communities,Other Agencies - Third Party P,30103340,INDIVIDUALISED CARE LIMITED,600,14/12/2015
Delivery Units,Adults and Communities,Other Agencies - Third Party P,30103341,INDIVIDUALISED CARE LIMITED,"1,000.00",14/12/2015
Delivery Units,Adults and Communities,Other Agencies - Third Party P,30103342,INDIVIDUALISED CARE LIMITED,"1,100.00",14/12/2015
Delivery Units,Adults and Communities,Other Agencies - Third Party P,30103343,INDIVIDUALISED CARE LIMITED,"1,400.00",14/12/2015
Delivery Units,Adults and Communities,Other Agencies - Third Party P,30103344,INDIVIDUALISED CARE LIMITED,700,14/12/2015
Delivery Units,Adults and Communities,Other Agencies - Third Party P,30103345,INDIVIDUALISED CARE LIMITED,300,14/12/2015
Delivery Units,Adults and Communities,Other Agencies - Third Party P,30103346,INDIVIDUALISED CARE LIMITED,"1,244.00",14/12/2015
Delivery Units,Adults and Communities,Other Agencies - Third Party P,30103347,INDIVIDUALISED CARE LIMITED,800,14/12/2015
Delivery Units,Adults and Communities,Other Agencies - Third Party P,30103851,INDIVIDUALISED CARE LIMITED,700,15/12/2015
Delivery Units,Adults and Communities,Other Agencies - Third Party P,30103852,INDIVIDUALISED CARE LIMITED,600,15/12/2015
Delivery Units,Adults and Communities,Other Agencies - Third Party P,30103853,INDIVIDUALISED CARE LIMITED,"1,000.00",15/12/2015
Delivery Units,Adults and Communities,Other Agencies - Third Party P,30103854,INDIVIDUALISED CARE LIMITED,400,15/12/2015
Delivery Units,Adults and Communities,Other Agencies - Third Party P,30103856,INDIVIDUALISED CARE LIMITED,800,15/12/2015
Delivery Units,Adults and Communities,Other Agencies - Third Party P,30104069,INDIVIDUALISED CARE LIMITED,225,18/12/2015
Delivery Units,Adults and Communities,Other Agencies - Third Party P,30104070,INDIVIDUALISED CARE LIMITED,232.5,18/12/2015
Delivery Units,Adults and Communities,Other Agencies - Third Party P,30104071,INDIVIDUALISED CARE LIMITED,"1,700.00",18/12/2015
Delivery Units,Adults and Communities,Other Agencies - Third Party P,30104493,INDIVIDUALISED CARE LIMITED,35,22/12/2015
Delivery Units,Adults and Communities,Other Agencies - Third Party P,30104494,INDIVIDUALISED CARE LIMITED,122.5,22/12/2015
Delivery Units,Adults and Communities,Other Agencies - Third Party P,30104495,INDIVIDUALISED CARE LIMITED,255,22/12/2015
Delivery Units,Adults and Communities,Other Agencies - Third Party P,30104496,INDIVIDUALISED CARE LIMITED,400,22/12/2015
Delivery Units,Adults and Communities,Other Agencies - Third Party P,30104497,INDIVIDUALISED CARE LIMITED,500,22/12/2015
Delivery Units,Adults and Communities,Other Agencies - Third Party P,30104498,INDIVIDUALISED CARE LIMITED,300,22/12/2015
Delivery Units,Adults and Communities,Other Agencies - Third Party P,30104499,INDIVIDUALISED CARE LIMITED,600,22/12/2015
Delivery Units,Adults and Communities,Other Agencies - Third Party P,30102881,INSIGHT SPECIALIST BEHAVIOURAL,"5,944.08",08/12/2015
Delivery Units,Adults and Communities,Other Agencies - Third Party P,30104383,INSIGHT SPECIALIST BEHAVIOURAL,"5,944.08",22/12/2015
Delivery Units,Adults and Communities,Other Agencies - Third Party P,30103224,INTEGRATED SERVICES PROGRAMME,"2,600.08",14/12/2015
Delivery Units,Adults and Communities,Other Agencies - Third Party P,30103225,INTEGRATED SERVICES PROGRAMME,"2,600.08",14/12/2015
Delivery Units,Adults and Communities,Other Agencies - Third Party P,30103258,ISLINGTON OUTLOOK (ST JOHNS),879.6,14/12/2015
Delivery Units,Adults and Communities,Other Agencies - Third Party P,30103259,ISLINGTON OUTLOOK (ST JOHNS),879.6,14/12/2015
Delivery Units,Adults and Communities,Other Agencies - Third Party P,30104135,ISLINGTON OUTLOOK (ST JOHNS),879.6,18/12/2015
Delivery Units,Adults and Communities,Other Agencies - Third Party P,30104136,ISLINGTON OUTLOOK (ST JOHNS),879.6,18/12/2015
Delivery Units,Adults and Communities,Other Agencies - Third Party P,30103375,JACARANDA HEALTHCARE,269.5,14/12/2015
Delivery Units,Adults and Communities,Other Agencies - Third Party P,30103376,JACARANDA HEALTHCARE,"1,429.40",14/12/2015
Delivery Units,Adults and Communities,Other Agencies - Third Party P,30103377,JACARANDA HEALTHCARE,821.3,14/12/2015
Delivery Units,Adults and Communities,Other Agencies - Third Party P,30103378,JACARANDA HEALTHCARE,162,14/12/2015
Delivery Units,Adults and Communities,Other Agencies - Third Party P,30103872,JACARANDA HEALTHCARE,57.8,15/12/2015
Delivery Units,Adults and Communities,Other Agencies - Third Party P,30103873,JACARANDA HEALTHCARE,45,15/12/2015
Delivery Units,Adults and Communities,Other Agencies - Third Party P,30103874,JACARANDA HEALTHCARE,696.7,15/12/2015
Delivery Units,Adults and Communities,Other Agencies - Third Party P,30104025,JEMINI RESPONSE,"9,100.00",23/12/2015
Delivery Units,Adults and Communities,Other Agencies - Third Party P,30102264,JEWISH CARE,533.34,02/12/2015
Delivery Units,Adults and Communities,Other Agencies - Third Party P,30102724,JEWISH CARE,"8,794.21",07/12/2015
Delivery Units,Adults and Communities,Other Agencies - Third Party P,30102913,JEWISH CARE,685.72,08/12/2015
Delivery Units,Adults and Communities,Other Agencies - Third Party P,30102914,JEWISH CARE,982.82,08/12/2015
Delivery Units,Adults and Communities,Other Agencies - Third Party P,30102915,JEWISH CARE,163.8,08/12/2015
Delivery Units,Adults and Communities,Other Agencies - Third Party P,30102916,JEWISH CARE,912.37,08/12/2015
Delivery Units,Adults and Communities,Other Agencies - Third Party P,30102917,JEWISH CARE,"2,273.96",08/12/2015
Delivery Units,Adults and Communities,Other Agencies - Third Party P,30102918,JEWISH CARE,"3,483.60",08/12/2015
Delivery Units,Adults and Communities,Other Agencies - Third Party P,30104101,JEWISH CARE,"2,133.36",18/12/2015
Delivery Units,Adults and Communities,Other Agencies - Third Party P,30104102,JEWISH CARE,"3,200.00",18/12/2015
Delivery Units,Adults and Communities,Other Agencies - Third Party P,30104405,JEWISH CARE,"1,719.93",22/12/2015
Delivery Units,Adults and Communities,Other Agencies - Third Party P,30104639,JEWISH CARE,248.83,23/12/2015
Delivery Units,Adults and Communities,Other Agencies - Third Party P,30104642,JEWISH CARE,13.54,23/12/2015
Delivery Units,Adults and Communities,Other Agencies - Third Party P,30104645,JEWISH CARE,"1,161.20",23/12/2015
Delivery Units,Adults and Communities,Other Agencies - Third Party P,30104646,JEWISH CARE,"1,352.00",23/12/2015
Delivery Units,Adults and Communities,Other Agencies - Third Party P,30104647,JEWISH CARE,"1,161.20",23/12/2015
Delivery Units,Adults and Communities,Other Agencies - Third Party P,30103356,JIGSAW CREATIVE CARE LIMITED,"12,087.04",14/12/2015
Delivery Units,Adults and Communities,Other Agencies - Third Party P,30103357,JIGSAW CREATIVE CARE LIMITED,"5,648.00",14/12/2015
Delivery Units,Adults and Communities,Other Agencies - Third Party P,30103358,JIGSAW CREATIVE CARE LIMITED,"11,132.00",14/12/2015
Delivery Units,Adults and Communities,Other Agencies - Third Party P,30102541,KEMBLE HOUSE,"7,928.70",07/12/2015
Delivery Units,Adults and Communities,Other Agencies - Third Party P,30102545,KEMBLE HOUSE,"9,368.10",07/12/2015
Delivery Units,Adults and Communities,Other Agencies - Third Party P,30102547,KEMBLE HOUSE,"3,231.30",07/12/2015
Delivery Units,Adults and Communities,Other Agencies - Third Party P,30102548,KEMBLE HOUSE,"7,198.50",07/12/2015
Delivery Units,Adults and Communities,Other Agencies - Third Party P,30104796,KEMBLE HOUSE,"3,339.01",24/12/2015
Delivery Units,Adults and Communities,Other Agencies - Third Party P,30104801,KEMBLE HOUSE,"9,680.37",24/12/2015
Delivery Units,Adults and Communities,Other Agencies - Third Party P,30103085,KISHARON DAY SCHOOL,"1,464.03",09/12/2015
Delivery Units,Adults and Communities,Other Agencies - Third Party P,30103086,KISHARON DAY SCHOOL,"4,260.72",09/12/2015
Delivery Units,Adults and Communities,Other Agencies - Third Party P,30103087,KISHARON DAY SCHOOL,"2,144.10",09/12/2015
Delivery Units,Adults and Communities,Other Agencies - Third Party P,30103088,KISHARON DAY SCHOOL,"2,284.24",09/12/2015
Delivery Units,Adults and Communities,Other Agencies - Third Party P,30103089,KISHARON DAY SCHOOL,686.88,09/12/2015
Delivery Units,Adults and Communities,Other Agencies - Third Party P,30103090,KISHARON DAY SCHOOL,"1,373.49",09/12/2015
Delivery Units,Adults and Communities,Other Agencies - Third Party P,30103091,KISHARON DAY SCHOOL,794.08,09/12/2015
Delivery Units,Adults and Communities,Other Agencies - Third Party P,30103092,KISHARON DAY SCHOOL,381.54,09/12/2015
Delivery Units,Adults and Communities,Other Agencies - Third Party P,30103093,KISHARON DAY SCHOOL,"1,373.49",09/12/2015
Delivery Units,Adults and Communities,Other Agencies - Third Party P,30103094,KISHARON DAY SCHOOL,397.11,09/12/2015
Delivery Units,Adults and Communities,Other Agencies - Third Party P,30103095,KISHARON DAY SCHOOL,"1,679.87",09/12/2015
Delivery Units,Adults and Communities,Other Agencies - Third Party P,30103096,KISHARON DAY SCHOOL,"1,340.18",09/12/2015
Delivery Units,Adults and Communities,Other Agencies - Third Party P,30103097,KISHARON DAY SCHOOL,"1,241.16",09/12/2015
Delivery Units,Adults and Communities,Other Agencies - Third Party P,30103098,KISHARON DAY SCHOOL,"1,369.23",09/12/2015
Delivery Units,Adults and Communities,Other Agencies - Third Party P,30103099,KISHARON DAY SCHOOL,"1,133.60",09/12/2015
Delivery Units,Adults and Communities,Other Agencies - Third Party P,30103100,KISHARON DAY SCHOOL,"1,373.68",09/12/2015
Delivery Units,Adults and Communities,Other Agencies - Third Party P,30103101,KISHARON DAY SCHOOL,733.72,09/12/2015
Delivery Units,Adults and Communities,Other Agencies - Third Party P,30103228,KISHARON DAY SCHOOL,"1,914.00",14/12/2015
Delivery Units,Adults and Communities,Other Agencies - Third Party P,30103229,KISHARON DAY SCHOOL,"1,914.00",14/12/2015
Delivery Units,Adults and Communities,Other Agencies - Third Party P,30103230,KISHARON DAY SCHOOL,"1,914.00",14/12/2015
Delivery Units,Adults and Communities,Other Agencies - Third Party P,30103231,KISHARON DAY SCHOOL,"1,275.96",14/12/2015
Delivery Units,Adults and Communities,Other Agencies - Third Party P,30103232,KISHARON DAY SCHOOL,"1,914.00",14/12/2015
Delivery Units,Adults and Communities,Other Agencies - Third Party P,30102271,LANGDON COMMUNITY LTD,425.6,02/12/2015
Delivery Units,Adults and Communities,Other Agencies - Third Party P,30102272,LANGDON COMMUNITY LTD,"1,276.80",02/12/2015
Delivery Units,Adults and Communities,Other Agencies - Third Party P,30102273,LANGDON COMMUNITY LTD,"2,979.20",02/12/2015
Delivery Units,Adults and Communities,Other Agencies - Third Party P,30103255,LCS PARTNERSHIPS LTD,896,14/12/2015
Delivery Units,Adults and Communities,Other Agencies - Third Party P,30104680,LCS PARTNERSHIPS LTD,896,23/12/2015
Delivery Units,Adults and Communities,Other Agencies - Third Party P,30104681,LCS PARTNERSHIPS LTD,896,23/12/2015
Delivery Units,Adults and Communities,Other Agencies - Third Party P,30103012,LEEMING BAR CARE HOME,"1,876.76",08/12/2015
Delivery Units,Adults and Communities,Other Agencies - Third Party P,30102744,LEO BAECK HOUSING ASSOC. LTD,"2,176.80",07/12/2015
Delivery Units,Adults and Communities,Other Agencies - Third Party P,30104583,LEO BAECK HOUSING ASSOC. LTD,"2,249.36",23/12/2015
Delivery Units,Adults and Communities,Other Agencies - Third Party P,30104674,LEO BAECK HOUSING ASSOC. LTD,"2,249.36",23/12/2015
Delivery Units,Adults and Communities,Other Agencies - Third Party P,30104675,LEO BAECK HOUSING ASSOC. LTD,"2,249.36",23/12/2015
Delivery Units,Adults and Communities,Other Agencies - Third Party P,30104676,LEO BAECK HOUSING ASSOC. LTD,"2,249.36",23/12/2015
Delivery Units,Adults and Communities,Other Agencies - Third Party P,30104677,LEO BAECK HOUSING ASSOC. LTD,"2,249.36",23/12/2015
Delivery Units,Adults and Communities,Other Agencies - Third Party P,30104700,LEWIS.W.HAMMERSON MEMORIAL HOME,"2,176.89",23/12/2015
Delivery Units,Adults and Communities,Other Agencies - Third Party P,30104701,LEWIS.W.HAMMERSON MEMORIAL HOME,"2,176.89",23/12/2015
Delivery Units,Adults and Communities,Other Agencies - Third Party P,30104704,LEWIS.W.HAMMERSON MEMORIAL HOME,"2,176.89",23/12/2015
Delivery Units,Adults and Communities,Other Agencies - Third Party P,30104705,LEWIS.W.HAMMERSON MEMORIAL HOME,"2,176.89",23/12/2015
Delivery Units,Adults and Communities,Other Agencies - Third Party P,30104706,LEWIS.W.HAMMERSON MEMORIAL HOME,"-1,523.82",23/12/2015
Delivery Units,Adults and Communities,Other Agencies - Third Party P,30102691,LIFESTYLE CARE PLC,"2,094.52",07/12/2015
Delivery Units,Adults and Communities,Other Agencies - Third Party P,30102692,LIFESTYLE CARE PLC,"2,094.52",07/12/2015
Delivery Units,Adults and Communities,Other Agencies - Third Party P,30102693,LIFESTYLE CARE PLC,748.04,07/12/2015
Delivery Units,Adults and Communities,Other Agencies - Third Party P,30102694,LIFESTYLE CARE PLC,"2,321.64",07/12/2015
Delivery Units,Adults and Communities,Other Agencies - Third Party P,30102695,LIFESTYLE CARE PLC,"2,094.52",07/12/2015
Delivery Units,Adults and Communities,Other Agencies - Third Party P,30102696,LIFESTYLE CARE PLC,"2,094.52",07/12/2015
Delivery Units,Adults and Communities,Other Agencies - Third Party P,30102697,LIFESTYLE CARE PLC,"2,321.64",07/12/2015
Delivery Units,Adults and Communities,Other Agencies - Third Party P,30102698,LIFESTYLE CARE PLC,"2,321.64",07/12/2015
Delivery Units,Adults and Communities,Other Agencies - Third Party P,30102699,LIFESTYLE CARE PLC,"2,094.52",07/12/2015
Delivery Units,Adults and Communities,Other Agencies - Third Party P,30102700,LIFESTYLE CARE PLC,"2,094.52",07/12/2015
Delivery Units,Adults and Communities,Other Agencies - Third Party P,30102701,LIFESTYLE CARE PLC,"2,321.92",07/12/2015
Delivery Units,Adults and Communities,Other Agencies - Third Party P,30102702,LIFESTYLE CARE PLC,"2,094.52",07/12/2015
Delivery Units,Adults and Communities,Other Agencies - Third Party P,30103472,LIFEWAYS,"3,145.24",14/12/2015
Delivery Units,Adults and Communities,Other Agencies - Third Party P,30103473,LIFEWAYS,"6,930.00",14/12/2015
Delivery Units,Adults and Communities,Other Agencies - Third Party P,30103475,LIFEWAYS,"5,037.40",14/12/2015
Delivery Units,Adults and Communities,Other Agencies - Third Party P,30103476,LIFEWAYS,"5,943.00",14/12/2015
Delivery Units,Adults and Communities,Other Agencies - Third Party P,30103481,LIFEWAYS,"3,656.00",14/12/2015
Delivery Units,Adults and Communities,Other Agencies - Third Party P,30103482,LIFEWAYS,"5,766.44",14/12/2015
Delivery Units,Adults and Communities,Other Agencies - Third Party P,30103483,LIFEWAYS,"2,377.20",14/12/2015
Delivery Units,Adults and Communities,Other Agencies - Third Party P,30103484,LIFEWAYS,"4,828.24",14/12/2015
Delivery Units,Adults and Communities,Other Agencies - Third Party P,30099188,LIONCARE LIMITED,"1,053.60",01/12/2015
Delivery Units,Adults and Communities,Other Agencies - Third Party P,30102889,LIONCARE LIMITED,"1,053.60",29/12/2015
Delivery Units,Adults and Communities,Other Agencies - Third Party P,30103021,LIVABILITY,"5,279.24",08/12/2015
Delivery Units,Adults and Communities,Other Agencies - Third Party P,30104414,LIVABILITY,"2,400.00",22/12/2015
Delivery Units,Adults and Communities,Other Agencies - Third Party P,30104415,LIVABILITY,"3,424.00",22/12/2015
Delivery Units,Adults and Communities,Other Agencies - Third Party P,30104448,LIVABILITY,"4,891.20",22/12/2015
Delivery Units,Adults and Communities,Other Agencies - Third Party P,30104449,LIVABILITY,"5,279.24",22/12/2015
Delivery Units,Adults and Communities,Other Agencies - Third Party P,30104582,LORRAINES CARE HOME LTD,"1,820.00",23/12/2015
Delivery Units,Adults and Communities,Other Agencies - Third Party P,30104823,LYNDON (THE SALVATION ARMY),468,24/12/2015
Delivery Units,Adults and Communities,Other Agencies - Third Party P,30104827,LYNDON (THE SALVATION ARMY),"2,418.00",24/12/2015
Delivery Units,Adults and Communities,Other Agencies - Third Party P,30104832,LYNDON (THE SALVATION ARMY),"2,340.00",24/12/2015
Delivery Units,Adults and Communities,Other Agencies - Third Party P,30103015,M D HOMES,"3,428.57",08/12/2015
Delivery Units,Adults and Communities,Other Agencies - Third Party P,30103571,MADELAYNE COURT,"2,144.91",14/12/2015
Delivery Units,Adults and Communities,Other Agencies - Third Party P,30104000,MAISON MOTI LTD,"3,400.00",16/12/2015
Delivery Units,Adults and Communities,Other Agencies - Third Party P,30104001,MAISON MOTI LTD,"3,400.00",16/12/2015
Delivery Units,Adults and Communities,Other Agencies - Third Party P,30104002,MAISON MOTI LTD,"3,260.00",16/12/2015
Delivery Units,Adults and Communities,Other Agencies - Third Party P,30104299,MAISON MOTI LTD,"2,460.00",21/12/2015
Delivery Units,Adults and Communities,Other Agencies - Third Party P,30104300,MAISON MOTI LTD,"2,500.00",21/12/2015
Delivery Units,Adults and Communities,Other Agencies - Third Party P,30104301,MAISON MOTI LTD,"2,500.00",21/12/2015
Delivery Units,Adults and Communities,Other Agencies - Third Party P,30104302,MAISON MOTI LTD,"2,440.00",21/12/2015
Delivery Units,Adults and Communities,Other Agencies - Third Party P,30104303,MAISON MOTI LTD,"1,026.00",21/12/2015
Delivery Units,Adults and Communities,Other Agencies - Third Party P,30104330,MAISON MOTI LTD,343.4,21/12/2015
Delivery Units,Adults and Communities,Other Agencies - Third Party P,30104503,MAISON MOTI LTD,"1,830.00",22/12/2015
Delivery Units,Adults and Communities,Other Agencies - Third Party P,30104507,MAISON MOTI LTD,610,22/12/2015
Delivery Units,Adults and Communities,Other Agencies - Third Party P,30102831,MARLBOROUGH HOUSE,"3,823.97",07/12/2015
Delivery Units,Adults and Communities,Other Agencies - Third Party P,30102808,MAYFIELD ADULT SERVICES,"9,557.14",07/12/2015
Delivery Units,Adults and Communities,Other Agencies - Third Party P,30102963,MEERA NURSING HOME LIMITED,"2,399.15",08/12/2015
Delivery Units,Adults and Communities,Other Agencies - Third Party P,30102986,MEERA NURSING HOME LIMITED,"2,399.15",08/12/2015
Delivery Units,Adults and Communities,Other Agencies - Third Party P,30102998,MEERA NURSING HOME LIMITED,"2,399.15",08/12/2015
Delivery Units,Adults and Communities,Other Agencies - Third Party P,30103007,MEERA NURSING HOME LIMITED,"2,397.52",08/12/2015
Delivery Units,Adults and Communities,Other Agencies - Third Party P,30103022,MEERA NURSING HOME LIMITED,"2,416.91",08/12/2015
Delivery Units,Adults and Communities,Other Agencies - Third Party P,30103024,MEERA NURSING HOME LIMITED,"2,399.15",08/12/2015
Delivery Units,Adults and Communities,Other Agencies - Third Party P,30103031,MEERA NURSING HOME LIMITED,"2,416.03",08/12/2015
Delivery Units,Adults and Communities,Other Agencies - Third Party P,30103032,MEERA NURSING HOME LIMITED,"2,397.56",08/12/2015
Delivery Units,Adults and Communities,Other Agencies - Third Party P,30103033,MEERA NURSING HOME LIMITED,"2,449.76",08/12/2015
Delivery Units,Adults and Communities,Other Agencies - Third Party P,30103045,MEERA NURSING HOME LIMITED,"2,419.66",08/12/2015
Delivery Units,Adults and Communities,Other Agencies - Third Party P,30102774,MENTAL HEALTH CARE (UK) LTD,"10,267.93",07/12/2015
Delivery Units,Adults and Communities,Other Agencies - Third Party P,30104828,MENTAL HEALTH CARE (UK) LTD,"10,610.19",24/12/2015
Delivery Units,Adults and Communities,Other Agencies - Third Party P,30103519,METHODIST HOMES FOR THE AGED,"2,001.92",14/12/2015
Delivery Units,Adults and Communities,Other Agencies - Third Party P,30103523,METHODIST HOMES FOR THE AGED,"2,500.00",14/12/2015
Delivery Units,Adults and Communities,Other Agencies - Third Party P,30102896,METRO RADIO CARS,118.8,08/12/2015
Delivery Units,Adults and Communities,Other Agencies - Third Party P,30104088,METROPOLITAN HOUSING TRUST,292.1,18/12/2015
Delivery Units,Adults and Communities,Other Agencies - Third Party P,30104089,METROPOLITAN HOUSING TRUST,672.95,18/12/2015
Delivery Units,Adults and Communities,Other Agencies - Third Party P,30104090,METROPOLITAN HOUSING TRUST,631.83,18/12/2015
Delivery Units,Adults and Communities,Other Agencies - Third Party P,30104388,METROPOLITAN HOUSING TRUST,476.99,29/12/2015
Delivery Units,Adults and Communities,Other Agencies - Third Party P,30103246,ML HOMES LTD,"1,780.80",11/12/2015
Delivery Units,Adults and Communities,Other Agencies - Third Party P,30103247,ML HOMES LTD,"1,740.00",11/12/2015
Delivery Units,Adults and Communities,Other Agencies - Third Party P,30103248,ML HOMES LTD,"2,118.36",11/12/2015
Delivery Units,Adults and Communities,Other Agencies - Third Party P,30103249,ML HOMES LTD,"1,433.56",11/12/2015
Delivery Units,Adults and Communities,Other Agencies - Third Party P,30103250,ML HOMES LTD,"2,118.36",11/12/2015
Delivery Units,Adults and Communities,Other Agencies - Third Party P,30103253,ML HOMES LTD,"1,417.24",11/12/2015
Delivery Units,Adults and Communities,Other Agencies - Third Party P,30103254,ML HOMES LTD,"1,428.68",11/12/2015
Delivery Units,Adults and Communities,Other Agencies - Third Party P,30103257,ML HOMES LTD,"1,751.16",11/12/2015
Delivery Units,Adults and Communities,Other Agencies - Third Party P,30103470,ML HOMES LTD,"1,751.16",11/12/2015
Delivery Units,Adults and Communities,Other Agencies - Third Party P,30103506,ML HOMES LTD,"1,955.84",11/12/2015
Delivery Units,Adults and Communities,Other Agencies - Third Party P,30103512,ML HOMES LTD,"1,765.80",11/12/2015
Delivery Units,Adults and Communities,Other Agencies - Third Party P,30102728,MOREWAYS HEALTHCARE,"2,600.00",07/12/2015
Delivery Units,Adults and Communities,Other Agencies - Third Party P,30104566,MOREWAYS HEALTHCARE,"2,907.00",23/12/2015
Delivery Units,Adults and Communities,Other Agencies - Third Party P,30104568,MOREWAYS HEALTHCARE,"1,800.00",23/12/2015
Delivery Units,Adults and Communities,Other Agencies - Third Party P,30104408,NAS SERVICES LTD,"2,035.64",22/12/2015
Delivery Units,Adults and Communities,Other Agencies - Third Party P,30104797,NATIONAL STAR COLLEGE,"28,891.59",24/12/2015
Delivery Units,Adults and Communities,Other Agencies - Third Party P,30103576,NAVJYOT CARE & SUPPORT LIMITED,"4,816.00",14/12/2015
Delivery Units,Adults and Communities,Other Agencies - Third Party P,30102268,NAZARETH HOUSE,571.98,02/12/2015
Delivery Units,Adults and Communities,Other Agencies - Third Party P,30102445,NAZARETH HOUSE,-31.5,14/12/2015
Delivery Units,Adults and Communities,Other Agencies - Third Party P,30102446,NAZARETH HOUSE,-40.6,14/12/2015
Delivery Units,Adults and Communities,Other Agencies - Third Party P,30102447,NAZARETH HOUSE,-109.53,14/12/2015
Delivery Units,Adults and Communities,Other Agencies - Third Party P,30102448,NAZARETH HOUSE,554.14,07/12/2015
Delivery Units,Adults and Communities,Other Agencies - Third Party P,30102449,NAZARETH HOUSE,"2,144.91",07/12/2015
Delivery Units,Adults and Communities,Other Agencies - Third Party P,30102450,NAZARETH HOUSE,"1,528.67",07/12/2015
Delivery Units,Adults and Communities,Other Agencies - Third Party P,30102451,NAZARETH HOUSE,"1,624.20",07/12/2015
Delivery Units,Adults and Communities,Other Agencies - Third Party P,30102452,NAZARETH HOUSE,"1,049.70",07/12/2015
Delivery Units,Adults and Communities,Other Agencies - Third Party P,30102453,NAZARETH HOUSE,"2,216.41",07/12/2015
Delivery Units,Adults and Communities,Other Agencies - Third Party P,30102454,NAZARETH HOUSE,"2,174.70",07/12/2015
Delivery Units,Adults and Communities,Other Agencies - Third Party P,30102455,NAZARETH HOUSE,"2,216.41",07/12/2015
Delivery Units,Adults and Communities,Other Agencies - Third Party P,30102456,NAZARETH HOUSE,"2,934.37",07/12/2015
Delivery Units,Adults and Communities,Other Agencies - Third Party P,30102457,NAZARETH HOUSE,"2,418.04",07/12/2015
Delivery Units,Adults and Communities,Other Agencies - Third Party P,30102458,NAZARETH HOUSE,"2,144.53",07/12/2015
Delivery Units,Adults and Communities,Other Agencies - Third Party P,30102459,NAZARETH HOUSE,"1,579.63",07/12/2015
Delivery Units,Adults and Communities,Other Agencies - Third Party P,30102460,NAZARETH HOUSE,"1,678.34",07/12/2015
Delivery Units,Adults and Communities,Other Agencies - Third Party P,30102461,NAZARETH HOUSE,"1,084.69",07/12/2015
Delivery Units,Adults and Communities,Other Agencies - Third Party P,30102462,NAZARETH HOUSE,"2,216.41",07/12/2015
Delivery Units,Adults and Communities,Other Agencies - Third Party P,30102463,NAZARETH HOUSE,572.61,07/12/2015
Delivery Units,Adults and Communities,Other Agencies - Third Party P,30102464,NAZARETH HOUSE,"2,174.70",07/12/2015
Delivery Units,Adults and Communities,Other Agencies - Third Party P,30102465,NAZARETH HOUSE,"2,216.41",07/12/2015
Delivery Units,Adults and Communities,Other Agencies - Third Party P,30102466,NAZARETH HOUSE,"1,579.63",07/12/2015
Delivery Units,Adults and Communities,Other Agencies - Third Party P,30102467,NAZARETH HOUSE,"1,678.34",07/12/2015
Delivery Units,Adults and Communities,Other Agencies - Third Party P,30102468,NAZARETH HOUSE,"1,084.69",07/12/2015
Delivery Units,Adults and Communities,Other Agencies - Third Party P,30102469,NAZARETH HOUSE,572.61,07/12/2015
Delivery Units,Adults and Communities,Other Agencies - Third Party P,30102470,NAZARETH HOUSE,"2,174.70",07/12/2015
Delivery Units,Adults and Communities,Other Agencies - Third Party P,30102471,NAZARETH HOUSE,"1,528.67",07/12/2015
Delivery Units,Adults and Communities,Other Agencies - Third Party P,30102472,NAZARETH HOUSE,"2,104.95",07/12/2015
Delivery Units,Adults and Communities,Other Agencies - Third Party P,30102473,NAZARETH HOUSE,-495.8,07/12/2015
Delivery Units,Adults and Communities,Other Agencies - Third Party P,30102474,NAZARETH HOUSE,"3,293.69",07/12/2015
Delivery Units,Adults and Communities,Other Agencies - Third Party P,30102475,NAZARETH HOUSE,"-2,284.54",07/12/2015
Delivery Units,Adults and Communities,Other Agencies - Third Party P,30102476,NAZARETH HOUSE,"2,174.70",07/12/2015
Delivery Units,Adults and Communities,Other Agencies - Third Party P,30102477,NAZARETH HOUSE,"1,579.63",07/12/2015
Delivery Units,Adults and Communities,Other Agencies - Third Party P,30102478,NAZARETH HOUSE,572.61,07/12/2015
Delivery Units,Adults and Communities,Other Agencies - Third Party P,30102479,NAZARETH HOUSE,"2,216.01",07/12/2015
Delivery Units,Adults and Communities,Other Agencies - Third Party P,30102480,NAZARETH HOUSE,"2,174.70",07/12/2015
Delivery Units,Adults and Communities,Other Agencies - Third Party P,30102481,NAZARETH HOUSE,554.14,07/12/2015
Delivery Units,Adults and Communities,Other Agencies - Third Party P,30102482,NAZARETH HOUSE,572.61,07/12/2015
Delivery Units,Adults and Communities,Other Agencies - Third Party P,30102483,NAZARETH HOUSE,"2,174.70",07/12/2015
Delivery Units,Adults and Communities,Other Agencies - Third Party P,30102484,NAZARETH HOUSE,"2,174.70",07/12/2015
Delivery Units,Adults and Communities,Other Agencies - Third Party P,30102485,NAZARETH HOUSE,"1,528.67",07/12/2015
Delivery Units,Adults and Communities,Other Agencies - Third Party P,30102486,NAZARETH HOUSE,"1,624.20",07/12/2015
Delivery Units,Adults and Communities,Other Agencies - Third Party P,30102487,NAZARETH HOUSE,"1,049.70",07/12/2015
Delivery Units,Adults and Communities,Other Agencies - Third Party P,30102488,NAZARETH HOUSE,554.14,07/12/2015
Delivery Units,Adults and Communities,Other Agencies - Third Party P,30102489,NAZARETH HOUSE,"2,144.91",07/12/2015
Delivery Units,Adults and Communities,Other Agencies - Third Party P,30102490,NAZARETH HOUSE,"2,001.92",07/12/2015
Delivery Units,Adults and Communities,Other Agencies - Third Party P,30102491,NAZARETH HOUSE,-505.2,07/12/2015
Delivery Units,Adults and Communities,Other Agencies - Third Party P,30102745,NAZARETH HOUSE,-115.74,14/12/2015
Delivery Units,Adults and Communities,Other Agencies - Third Party P,30102750,NAZARETH HOUSE,"1,678.34",07/12/2015
Delivery Units,Adults and Communities,Other Agencies - Third Party P,30102751,NAZARETH HOUSE,"1,678.34",07/12/2015
Delivery Units,Adults and Communities,Other Agencies - Third Party P,30102752,NAZARETH HOUSE,"1,624.20",07/12/2015
Delivery Units,Adults and Communities,Other Agencies - Third Party P,30102753,NAZARETH HOUSE,"1,624.20",07/12/2015
Delivery Units,Adults and Communities,Other Agencies - Third Party P,30102754,NAZARETH HOUSE,"1,678.34",07/12/2015
Delivery Units,Adults and Communities,Other Agencies - Third Party P,30102755,NAZARETH HOUSE,"1,624.20",07/12/2015
Delivery Units,Adults and Communities,Other Agencies - Third Party P,30103002,NAZARETH HOUSE,"2,144.91",08/12/2015
Delivery Units,Adults and Communities,Other Agencies - Third Party P,30103498,NAZARETH HOUSE,"3,036.00",14/12/2015
Delivery Units,Adults and Communities,Other Agencies - Third Party P,30103499,NAZARETH HOUSE,"2,031.76",14/12/2015
Delivery Units,Adults and Communities,Other Agencies - Third Party P,30103500,NAZARETH HOUSE,"2,031.76",14/12/2015
Delivery Units,Adults and Communities,Other Agencies - Third Party P,30103501,NAZARETH HOUSE,"2,650.40",14/12/2015
Delivery Units,Adults and Communities,Other Agencies - Third Party P,30103502,NAZARETH HOUSE,"2,211.80",14/12/2015
Delivery Units,Adults and Communities,Other Agencies - Third Party P,30103504,NAZARETH HOUSE,"2,031.76",14/12/2015
Delivery Units,Adults and Communities,Other Agencies - Third Party P,30103505,NAZARETH HOUSE,"2,031.76",14/12/2015
Delivery Units,Adults and Communities,Other Agencies - Third Party P,30104007,NAZARETH HOUSE,"2,174.70",16/12/2015
Delivery Units,Adults and Communities,Other Agencies - Third Party P,30104008,NAZARETH HOUSE,"2,184.04",16/12/2015
Delivery Units,Adults and Communities,Other Agencies - Third Party P,30104009,NAZARETH HOUSE,"2,001.92",16/12/2015
Delivery Units,Adults and Communities,Other Agencies - Third Party P,30104010,NAZARETH HOUSE,"1,515.92",16/12/2015
Delivery Units,Adults and Communities,Other Agencies - Third Party P,30104011,NAZARETH HOUSE,517.2,16/12/2015
Delivery Units,Adults and Communities,Other Agencies - Third Party P,30104012,NAZARETH HOUSE,"2,174.70",16/12/2015
Delivery Units,Adults and Communities,Other Agencies - Third Party P,30104013,NAZARETH HOUSE,"2,174.70",16/12/2015
Delivery Units,Adults and Communities,Other Agencies - Third Party P,30104014,NAZARETH HOUSE,"3,036.00",16/12/2015
Delivery Units,Adults and Communities,Other Agencies - Third Party P,30104015,NAZARETH HOUSE,"2,001.92",16/12/2015
Delivery Units,Adults and Communities,Other Agencies - Third Party P,30104016,NAZARETH HOUSE,"2,650.40",16/12/2015
Delivery Units,Adults and Communities,Other Agencies - Third Party P,30104017,NAZARETH HOUSE,"2,184.04",16/12/2015
Delivery Units,Adults and Communities,Other Agencies - Third Party P,30104020,NAZARETH HOUSE,"2,001.92",16/12/2015
Delivery Units,Adults and Communities,Other Agencies - Third Party P,30104021,NAZARETH HOUSE,"2,031.76",16/12/2015
Delivery Units,Adults and Communities,Other Agencies - Third Party P,30104022,NAZARETH HOUSE,"2,213.17",16/12/2015
Delivery Units,Adults and Communities,Other Agencies - Third Party P,30104661,NAZARETH HOUSE,"12,655.14",23/12/2015
Delivery Units,Adults and Communities,Other Agencies - Third Party P,30104662,NAZARETH HOUSE,"1,572.94",23/12/2015
Delivery Units,Adults and Communities,Other Agencies - Third Party P,30104663,NAZARETH HOUSE,"2,001.92",23/12/2015
Delivery Units,Adults and Communities,Other Agencies - Third Party P,30104664,NAZARETH HOUSE,"2,180.66",23/12/2015
Delivery Units,Adults and Communities,Other Agencies - Third Party P,30104715,NAZARETH HOUSE,"2,216.41",23/12/2015
Delivery Units,Adults and Communities,Other Agencies - Third Party P,30102259,NEEM TREE CARE CENTRE,700,02/12/2015
Delivery Units,Adults and Communities,Other Agencies - Third Party P,30102578,NEEM TREE CARE CENTRE,"2,612.14",07/12/2015
Delivery Units,Adults and Communities,Other Agencies - Third Party P,30102579,NEEM TREE CARE CENTRE,"2,610.00",07/12/2015
Delivery Units,Adults and Communities,Other Agencies - Third Party P,30102257,NEWCENTURY CARE LTD,"1,578.57",02/12/2015
Delivery Units,Adults and Communities,Other Agencies - Third Party P,30102568,NEWCENTURY CARE LTD,"2,569.89",07/12/2015
Delivery Units,Adults and Communities,Other Agencies - Third Party P,30102845,NEWCENTURY CARE LTD,"2,569.89",08/12/2015
Delivery Units,Adults and Communities,Other Agencies - Third Party P,30104814,NEWCENTURY CARE LTD,"2,600.00",24/12/2015
Delivery Units,Adults and Communities,Other Agencies - Third Party P,30104815,NEWCENTURY CARE LTD,"2,398.56",24/12/2015
Delivery Units,Adults and Communities,Other Agencies - Third Party P,30103881,NEXT STEP SUPPORT LIMITED,"2,240.00",15/12/2015
Delivery Units,Adults and Communities,Other Agencies - Third Party P,30103929,NEXT STEP SUPPORT LIMITED,"2,000.00",15/12/2015
Delivery Units,Adults and Communities,Other Agencies - Third Party P,30103426,NHS BARNET CCG,565.71,14/12/2015
Delivery Units,Adults and Communities,Other Agencies - Third Party P,30103427,NHS BARNET CCG,"2,640.00",14/12/2015
Delivery Units,Adults and Communities,Other Agencies - Third Party P,30103428,NHS BARNET CCG,"2,640.00",14/12/2015
Delivery Units,Adults and Communities,Other Agencies - Third Party P,30103429,NHS BARNET CCG,"2,640.00",14/12/2015
Delivery Units,Adults and Communities,Other Agencies - Third Party P,30103430,NHS BARNET CCG,"2,640.00",14/12/2015
Delivery Units,Adults and Communities,Other Agencies - Third Party P,30103431,NHS BARNET CCG,"2,640.00",14/12/2015
Delivery Units,Adults and Communities,Other Agencies - Third Party P,30103432,NHS BARNET CCG,"2,640.00",14/12/2015
Delivery Units,Adults and Communities,Other Agencies - Third Party P,30103433,NHS BARNET CCG,"2,640.00",14/12/2015
Delivery Units,Adults and Communities,Other Agencies - Third Party P,30103025,NIGHTINGALES RESIDENTIAL CARE HOME,"3,218.79",08/12/2015
Delivery Units,Adults and Communities,Other Agencies - Third Party P,30103026,NIGHTINGALES RESIDENTIAL CARE HOME,-541.29,08/12/2015
Delivery Units,Adults and Communities,Other Agencies - Third Party P,30103027,NIGHTINGALES RESIDENTIAL CARE HOME,"3,218.79",08/12/2015
Delivery Units,Adults and Communities,Other Agencies - Third Party P,30103028,NIGHTINGALES RESIDENTIAL CARE HOME,-541.29,08/12/2015
Delivery Units,Adults and Communities,Other Agencies - Third Party P,30104142,NIGHTINGALES RESIDENTIAL CARE HOME,"1,876.46",18/12/2015
Delivery Units,Adults and Communities,Other Agencies - Third Party P,30104143,NIGHTINGALES RESIDENTIAL CARE HOME,541.29,18/12/2015
Delivery Units,Adults and Communities,Other Agencies - Third Party P,30104144,NIGHTINGALES RESIDENTIAL CARE HOME,559.33,18/12/2015
Delivery Units,Adults and Communities,Other Agencies - Third Party P,30102655,NORTH LONDON CARE SERVICES LTD,"6,058.88",07/12/2015
Delivery Units,Adults and Communities,Other Agencies - Third Party P,30102656,NORTH LONDON CARE SERVICES LTD,-392.57,07/12/2015
Delivery Units,Adults and Communities,Other Agencies - Third Party P,30103896,NORWOOD RAVENSWOOD SCHOOLS LTD,"1,520.00",15/12/2015
Delivery Units,Adults and Communities,Other Agencies - Third Party P,30103897,NORWOOD RAVENSWOOD SCHOOLS LTD,729.6,15/12/2015
Delivery Units,Adults and Communities,Other Agencies - Third Party P,30103898,NORWOOD RAVENSWOOD SCHOOLS LTD,304,15/12/2015
Delivery Units,Adults and Communities,Other Agencies - Third Party P,30103899,NORWOOD RAVENSWOOD SCHOOLS LTD,182.4,15/12/2015
Delivery Units,Adults and Communities,Other Agencies - Third Party P,30103900,NORWOOD RAVENSWOOD SCHOOLS LTD,790.4,15/12/2015
Delivery Units,Adults and Communities,Other Agencies - Third Party P,30103901,NORWOOD RAVENSWOOD SCHOOLS LTD,243.2,15/12/2015
Delivery Units,Adults and Communities,Other Agencies - Third Party P,30103902,NORWOOD RAVENSWOOD SCHOOLS LTD,486.4,15/12/2015
Delivery Units,Adults and Communities,Other Agencies - Third Party P,30103907,NORWOOD RAVENSWOOD SCHOOLS LTD,"1,021.44",15/12/2015
Delivery Units,Adults and Communities,Other Agencies - Third Party P,30103913,NORWOOD RAVENSWOOD SCHOOLS LTD,"1,021.44",15/12/2015
Delivery Units,Adults and Communities,Other Agencies - Third Party P,30103918,NORWOOD RAVENSWOOD SCHOOLS LTD,121.6,15/12/2015
Delivery Units,Adults and Communities,Other Agencies - Third Party P,30103919,NORWOOD RAVENSWOOD SCHOOLS LTD,820.8,15/12/2015
Delivery Units,Adults and Communities,Other Agencies - Third Party P,30103922,NORWOOD RAVENSWOOD SCHOOLS LTD,364.8,15/12/2015
Delivery Units,Adults and Communities,Other Agencies - Third Party P,30103926,NORWOOD RAVENSWOOD SCHOOLS LTD,"5,810.92",15/12/2015
Delivery Units,Adults and Communities,Other Agencies - Third Party P,30104187,NORWOOD RAVENSWOOD SCHOOLS LTD,"5,540.00",18/12/2015
Delivery Units,Adults and Communities,Other Agencies - Third Party P,30103564,ONE STEP (SUPPORT) LTD,"3,395.80",14/12/2015
Delivery Units,Adults and Communities,Other Agencies - Third Party P,30103567,ONE STEP (SUPPORT) LTD,"1,339.80",14/12/2015
Delivery Units,Adults and Communities,Other Agencies - Third Party P,30103570,ONE STEP (SUPPORT) LTD,"2,618.20",14/12/2015
Delivery Units,Adults and Communities,Other Agencies - Third Party P,30103894,ONE STEP (SUPPORT) LTD,638,15/12/2015
Delivery Units,Adults and Communities,Other Agencies - Third Party P,30103895,ONE STEP (SUPPORT) LTD,956,15/12/2015
Delivery Units,Adults and Communities,Other Agencies - Third Party P,30104515,ONE STEP (SUPPORT) LTD,638,22/12/2015
Delivery Units,Adults and Communities,Other Agencies - Third Party P,30104516,ONE STEP (SUPPORT) LTD,638,22/12/2015
Delivery Units,Adults and Communities,Other Agencies - Third Party P,30104517,ONE STEP (SUPPORT) LTD,638,22/12/2015
Delivery Units,Adults and Communities,Other Agencies - Third Party P,30104570,ONE STEP (SUPPORT) LTD,672,23/12/2015
Delivery Units,Adults and Communities,Other Agencies - Third Party P,30102521,ORIGIN HOUSING LIMITED,"1,152.00",04/12/2015
Delivery Units,Adults and Communities,Other Agencies - Third Party P,30102522,ORIGIN HOUSING LIMITED,"1,728.00",04/12/2015
Delivery Units,Adults and Communities,Other Agencies - Third Party P,30102523,ORIGIN HOUSING LIMITED,"1,065.60",04/12/2015
Delivery Units,Adults and Communities,Other Agencies - Third Party P,30104331,ORIGIN HOUSING LIMITED,"1,152.00",21/12/2015
Delivery Units,Adults and Communities,Other Agencies - Third Party P,30104332,ORIGIN HOUSING LIMITED,"1,065.60",21/12/2015
Delivery Units,Adults and Communities,Other Agencies - Third Party P,30104459,ORIGIN HOUSING LIMITED,"1,728.00",22/12/2015
Delivery Units,Adults and Communities,Other Agencies - Third Party P,30104573,ORIGIN HOUSING LIMITED,"1,324.80",23/12/2015
Delivery Units,Adults and Communities,Other Agencies - Third Party P,30104574,ORIGIN HOUSING LIMITED,"1,324.80",23/12/2015
Delivery Units,Adults and Communities,Other Agencies - Third Party P,30102894,PARADISE HOUSE ASSOCIATION LTD,"3,401.19",08/12/2015
Delivery Units,Adults and Communities,Other Agencies - Third Party P,30102895,PARADISE HOUSE ASSOCIATION LTD,-344.79,08/12/2015
Delivery Units,Adults and Communities,Other Agencies - Third Party P,30102649,PARKCARE HOMES (NO2) LIMITED,"5,309.92",07/12/2015
Delivery Units,Adults and Communities,Other Agencies - Third Party P,30102650,PARKCARE HOMES (NO2) LIMITED,-344.79,07/12/2015
Delivery Units,Adults and Communities,Other Agencies - Third Party P,30102651,PARKCARE HOMES (NO2) LIMITED,"4,641.69",07/12/2015
Delivery Units,Adults and Communities,Other Agencies - Third Party P,30102652,PARKCARE HOMES (NO2) LIMITED,-344.79,07/12/2015
Delivery Units,Adults and Communities,Other Agencies - Third Party P,30102663,PARKCARE HOMES (NO2) LIMITED,"4,988.75",07/12/2015
Delivery Units,Adults and Communities,Other Agencies - Third Party P,30102664,PARKCARE HOMES (NO2) LIMITED,-344.79,07/12/2015
Delivery Units,Adults and Communities,Other Agencies - Third Party P,30102668,PARKCARE HOMES (NO2) LIMITED,"4,658.15",07/12/2015
Delivery Units,Adults and Communities,Other Agencies - Third Party P,30102669,PARKCARE HOMES (NO2) LIMITED,-344.79,07/12/2015
Delivery Units,Adults and Communities,Other Agencies - Third Party P,30102670,PARKCARE HOMES (NO2) LIMITED,"4,988.75",07/12/2015
Delivery Units,Adults and Communities,Other Agencies - Third Party P,30102671,PARKCARE HOMES (NO2) LIMITED,-344.79,07/12/2015
Delivery Units,Adults and Communities,Other Agencies - Third Party P,30104306,PILLARCARE,"6,328.00",21/12/2015
Delivery Units,Adults and Communities,Other Agencies - Third Party P,30102985,PLATINUM HEALTH RESOURCES LTD,"4,789.46",08/12/2015
Delivery Units,Adults and Communities,Other Agencies - Third Party P,30102995,PLATINUM HEALTH RESOURCES LTD,"3,767.53",08/12/2015
Delivery Units,Adults and Communities,Other Agencies - Third Party P,30102999,PLATINUM HEALTH RESOURCES LTD,"3,642.86",08/12/2015
Delivery Units,Adults and Communities,Other Agencies - Third Party P,30103013,PLATINUM HEALTH RESOURCES LTD,"3,642.86",08/12/2015
Delivery Units,Adults and Communities,Other Agencies - Third Party P,30102846,PROSPECTS STAFF BUREAU LTD,373.75,08/12/2015
Delivery Units,Adults and Communities,Other Agencies - Third Party P,30103330,PRT BARNET CARERS CENTRE,"1,044.00",14/12/2015
Delivery Units,Adults and Communities,Other Agencies - Third Party P,30103875,PRT BARNET CARERS CENTRE,"2,248.34",15/12/2015
Delivery Units,Adults and Communities,Other Agencies - Third Party P,30104390,QUANTUM CARE LIMITED,"2,364.81",22/12/2015
Delivery Units,Adults and Communities,Other Agencies - Third Party P,30104598,QUANTUM CARE LIMITED,"2,828.57",23/12/2015
Delivery Units,Adults and Communities,Other Agencies - Third Party P,30102805,QUEEN ANN CARE,"3,857.14",07/12/2015
Delivery Units,Adults and Communities,Other Agencies - Third Party P,30104659,QUEEN ANN CARE,"3,985.71",23/12/2015
Delivery Units,Adults and Communities,Other Agencies - Third Party P,30102897,R.M.B.I,"2,210.06",08/12/2015
Delivery Units,Adults and Communities,Other Agencies - Third Party P,30102580,RAINBOW HOMES LONDON LTD,"3,978.00",07/12/2015
Delivery Units,Adults and Communities,Other Agencies - Third Party P,30103390,RAPKYNS CARE CENTRE,"6,188.57",14/12/2015
Delivery Units,Adults and Communities,Other Agencies - Third Party P,30102638,REHABILITATION EDUCATION AND,"3,348.00",07/12/2015
Delivery Units,Adults and Communities,Other Agencies - Third Party P,30102639,REHABILITATION EDUCATION AND,-505.2,07/12/2015
Delivery Units,Adults and Communities,Other Agencies - Third Party P,30102888,RIDGEWAY NURSING HOME,"2,357.10",08/12/2015
Delivery Units,Adults and Communities,Other Agencies - Third Party P,30104162,RIDGEWAY RESIDENTIAL HOME,"2,027.96",18/12/2015
Delivery Units,Adults and Communities,Other Agencies - Third Party P,30102855,ROBERT OWEN COMMUNITIES (ROC),"5,721.43",08/12/2015
Delivery Units,Adults and Communities,Other Agencies - Third Party P,30102856,ROBERT OWEN COMMUNITIES (ROC),-344.79,08/12/2015
Delivery Units,Adults and Communities,Other Agencies - Third Party P,30104512,ROLAND COMMUNITY CARE LTD,"2,088.00",22/12/2015
Delivery Units,Adults and Communities,Other Agencies - Third Party P,20026920,ROLAND RESIDENTIAL CARE HOMES,"3,620.70",11/12/2015
Delivery Units,Adults and Communities,Other Agencies - Third Party P,30104690,ROLAND RESIDENTIAL CARE HOMES,"3,741.39",23/12/2015
Delivery Units,Adults and Communities,Other Agencies - Third Party P,30102962,ROLAND RESIDENTIAL CARE HOMES LTD,"3,121.20",08/12/2015
Delivery Units,Adults and Communities,Other Agencies - Third Party P,30103006,ROLAND RESIDENTIAL CARE HOMES LTD,"4,061.14",08/12/2015
Delivery Units,Adults and Communities,Other Agencies - Third Party P,30103017,ROLAND RESIDENTIAL CARE HOMES LTD,"3,316.41",08/12/2015
Delivery Units,Adults and Communities,Other Agencies - Third Party P,30104654,ROLAND RESIDENTIAL CARE HOMES LTD,"3,225.24",23/12/2015
Delivery Units,Adults and Communities,Other Agencies - Third Party P,30104678,ROLAND RESIDENTIAL CARE HOMES LTD,"4,196.51",23/12/2015
Delivery Units,Adults and Communities,Other Agencies - Third Party P,30104685,ROLAND RESIDENTIAL CARE HOMES LTD,"3,426.96",23/12/2015
Delivery Units,Adults and Communities,Other Agencies - Third Party P,30102269,ROSEACRES CARE HOME LIMITED,"1,872.03",02/12/2015
Delivery Units,Adults and Communities,Other Agencies - Third Party P,30102270,ROSEACRES CARE HOME LIMITED,"1,872.03",02/12/2015
Delivery Units,Adults and Communities,Other Agencies - Third Party P,30104149,ROSEACRES CARE HOME LIMITED,109.73,18/12/2015
Delivery Units,Adults and Communities,Other Agencies - Third Party P,30104150,ROSEACRES CARE HOME LIMITED,"2,400.53",18/12/2015
Delivery Units,Adults and Communities,Other Agencies - Third Party P,30104151,ROSEACRES CARE HOME LIMITED,"2,400.53",18/12/2015
Delivery Units,Adults and Communities,Other Agencies - Third Party P,30104152,ROSEACRES CARE HOME LIMITED,"2,400.53",18/12/2015
Delivery Units,Adults and Communities,Other Agencies - Third Party P,30104153,ROSEACRES CARE HOME LIMITED,"2,400.53",18/12/2015
Delivery Units,Adults and Communities,Other Agencies - Third Party P,30104154,ROSEACRES CARE HOME LIMITED,"2,400.53",18/12/2015
Delivery Units,Adults and Communities,Other Agencies - Third Party P,30104155,ROSEACRES CARE HOME LIMITED,"2,400.53",18/12/2015
Delivery Units,Adults and Communities,Other Agencies - Third Party P,30104156,ROSEACRES CARE HOME LIMITED,"2,400.53",18/12/2015
Delivery Units,Adults and Communities,Other Agencies - Third Party P,30104157,ROSEACRES CARE HOME LIMITED,"2,400.53",18/12/2015
Delivery Units,Adults and Communities,Other Agencies - Third Party P,30104158,ROSEACRES CARE HOME LIMITED,"2,400.53",18/12/2015
Delivery Units,Adults and Communities,Other Agencies - Third Party P,30104159,ROSEACRES CARE HOME LIMITED,"2,400.53",18/12/2015
Delivery Units,Adults and Communities,Other Agencies - Third Party P,30104160,ROSEACRES CARE HOME LIMITED,"2,400.53",18/12/2015
Delivery Units,Adults and Communities,Other Agencies - Third Party P,30104161,ROSEACRES CARE HOME LIMITED,"2,400.53",18/12/2015
Delivery Units,Adults and Communities,Other Agencies - Third Party P,30104450,ROSEACRES CARE HOME LIMITED,"2,400.53",22/12/2015
Delivery Units,Adults and Communities,Other Agencies - Third Party P,30104451,ROSEACRES CARE HOME LIMITED,"2,400.53",22/12/2015
Delivery Units,Adults and Communities,Other Agencies - Third Party P,30104452,ROSEACRES CARE HOME LIMITED,"2,400.53",22/12/2015
Delivery Units,Adults and Communities,Other Agencies - Third Party P,30103511,ROWAN HOUSE,"4,279.63",14/12/2015
Delivery Units,Adults and Communities,Other Agencies - Third Party P,30104379,ROYAL MENCAP SOCIETY,"1,722.60",22/12/2015
Delivery Units,Adults and Communities,Other Agencies - Third Party P,30104380,ROYAL MENCAP SOCIETY,"1,595.00",22/12/2015
Delivery Units,Adults and Communities,Other Agencies - Third Party P,30102880,SAGE NURSING HOME,"1,271.77",08/12/2015
Delivery Units,Adults and Communities,Other Agencies - Third Party P,30104381,SAGE NURSING HOME,858,22/12/2015
